Workbook

Sheet Start
A1: Energie-Check | F1: =Betriebsübersicht!F1 -> V 1.0 | J1: Startseite - Übersicht | AA1: Energie-Check | AF1: =Betriebsübersicht!F1 -> V 1.0 | AJ1: Startseite - Infos
A3: Erfassung und Beurteilung des einzelbetrieblichen Energieverbrauchs | AA3: Infos und Bearbeitungshinweise
A5: Mit Energie-Check für landwirtschaftliche Betriebe in Bayern kann der Landwirt oder Berater | AB5: Eingabefelder | AI5: Felder für die Eingabe betrieblicher Daten
A6: durch die Eingabe betriebsspezifischer Daten zum Energieverbrauch und zum Betrieb selbst, | AB6: berechnete Felder | AI6: Felder die vom Programm berechnet werden
A7: eine Einordnung der individuellen betrieblichen Situation erarbeiten und diese anhand | AB7: Werte | AI7: Werte die aus Eingebefeldern übernommen wurden bzw.
A8: hinterlegter Vergleichswerte einordnen. | AJ8: - | AK8: Felder mit hinterlegten Werten
A9: Neben dem effizienten Energieeinsatz werden der Klimaschutz, die Erzeugung und Eigen- | AJ9: - | AK9: Felder mit hinterlegten Faktoren
A10: nutzung regenerativer Energie betrachtet.
AA11: Im Registerblatt Betriebsübersicht können die Betriebs-, Flächen- und Tierdaten eingegeben
A12: Der Energie-Check beinhaltet Vergleichskennzahlen, Einsparpotenziale und -möglichkeiten für | AC12: werden.
A13: die Produktionsverfahren:
A14: Rinder-, Schweine-, und Geflügelhaltung sowie des Kraftstoffeinsatz für die Außenwirtschaft | AA14: Im Registerblatt Energieeinsatz wird der betriebliche Energieverbrauch und die
AC15: Energiekosten der letzten drei Jahre abgefragt.
B16: Über die Buttons oder Register gelangen Sie auf die einzelnen Tabellenblätter
AA17: Im Registerblatt Abgrenzung BZ (Betriebszweige) kann der betriebliche Energieverbrauch
B18: Dateneingabe | AC18: der Sektoren Strom, Wärme und Kraftstoff (lt. Zählerständen, Energiekosten-
AC19: abrechnungen, …) auf die einzelnen Betriebszweige aufgeteilt werden.
AA21: In den Ergebnisblättern der verschiedenen Betriebszweige (Rinder-, Schweine-, Geflügelhltung,
B22: Ergebnisseiten | AC22: Futter- und Marktfruchtbau, ...) werden die betrieblichen Energieverbrauchsdaten
C23: Rinderhaltung | AC23: Sollwerten gegenübergestellt.
AB24: Die Energiebedarfssollwerte richten sich nach durchschnittlichen Verbrauchskennzahlen
AC25: aus Tierhaltungseinrichungen mit guter, zeitgemäßer technischer Ausstattung.
C26: Schweinhaltung | AB26: Ausgehend von den allgemeinen Ergebnisseiten der Betriebszweige kann in
AC27: die Detailbetrachtungen gewechselt werden. Hier kann der Energiebedarf
AC28: betriebsspezifisch, je nach vorhandener Produktionseinrichtung/-technik differenziert
AC29: ausgewählt und bewertet werden.
AB30: Berechnungshilfen sollen bei der Dateneingabe durch
AC31: - | AD31: Abgrenzung und Summierung von Abrechnungszeiträumen und Verbrauchern
C32: Geflügelhaltung | AC32: - | AD32: Umrechnungsfaktoren für Verbrauchswerte und Preise
AC33: - | AD33: Zu-/Abschlagwerte für andere technische Ausführungen
AC34: unterstützen.
C35: Futter-/Marktfruchtbau | AB35: Unter Handlungsempfehlungen finden sie zu den jeweiligen Bereichen (Produktions-/
AC36: Betriebszweigen) Möglichkeiten, um die Effizienz bzw. das Verfahren
C37: Energieeigennutzung | AC37: zu verbessern.
C39: Klimawirkung | AA39: Im Registerblatt CO2 sind spezifische CO2-Emissionsfaktoren nach Energieträgern aufgelistet.
AC40: Mit der Berechnungshilfe kann die Klimawirksamkeit einer möglichen
AC41: Energieeinsparmaßnahme berechnet werden.
B42: Infoseiten
AA43: Auf den weiteren Registerblättern finden Sie Informationen zu Förderprogrammen,
AC44: Datenquellen, weiterführender Literatur, sowie einen Fragebogen zur Bewertung,
AC45: Potenzialanalyse und der Möglichkeit eigene Anmerkungen mitzuteilen.
AA47: Auf dem Registerblatt Druck können Sie die Seiten für den PDF-Druck auswählen.
E49: © LfL | G49: Bayerische Landesanstalt für Landwirtschaft | Z49: S.1 | AE49: Viel Freude bei der Eigenanalyse Ihres Energieverbrauchs! | AZ49: S.2

Sheet Betriebsübersicht
A1: Energie-Check | F1: V 1.0 | J1: Betriebsübersicht - Dateneingabe
B3: Eingabefelder | I3: Felder für die Eingabe betrieblicher Daten
B4: berechnete Felder | I4: Felder die vom Programm berechnet werden
B5: Werte | I5: Werte die aus Eingebefeldern übernommen wurden bzw.
J6: - | K6: Felder mit hinterlegten Werten
J7: - | K7: Felder mit hinterlegten Faktoren
A8: Betriebsübersicht
H9: Bitte Betriebsdaten eingeben | R9: Datum | T9: 2022-09-20
B10: Anschrift
C11: Name | H11: Claudia
C12: Straße / Nr. | H12: Gruber
C13: PLZ / Ort | H13: 12345 Viehhausen
C14: Telefon / Mobil
C15: e-mail
B18: Betriebsfläche | AB18: Betriebsfläche
C19: Grünlandfläche (DG) | J19: 46 | M19: ha | O19: Ackerfläche (AF) | V19: 32 | Y19: ha | AC19: Grünlandfläche (DG) | AJ19: 120 | AM19: l/ha | AO19: Ackerfläche (AF) | AV19: 100 | AY19: l/ha
C20: davon | J20: =-(J19-J21-J22) -> 0 | O20: davon | V20: =-(V19-V21-V22-V23-V24-V25) -> -2 | AC20: davon | AO20: davon
D21: Silage | J21: 38 | M21: ha | P21: Getreide | V21: 6 | Y21: ha | AD21: Silage | AJ21: 110 | AM21: l/ha | AP21: Getreide | AV21: 90 | AY21: l/ha
D22: Heu | J22: 8 | M22: ha | P22: Silomais | V22: 12 | Y22: ha | AD22: Heu | AJ22: 130 | AM22: l/ha | AP22: Silomais | AV22: 110 | AY22: l/ha
P23: Kartoffeln | V23: 2 | Y23: ha | AP23: Kartoffeln | AV23: 130 | AY23: l/ha
P24: Zuckerrüben | V24: 4 | Y24: ha | AP24: Zuckerrüben | AV24: 110 | AY24: l/ha
C25: Sonstige | P25: Ackergras | V25: 6 | Y25: ha | AP25: Ackergras | AV25: 150 | AY25: l/ha
C26: Forstfläche | J26: 6 | M26: ha | AC26: Forstfläche | AJ26: 20 | AM26: l/ha
C27: Sonderkulturfläche | M27: ha | O27: LW Nutzfläche | V27: =J19+V19 -> 78 | Y27: ha | AC27: Sonderkulturfläche | AJ27: 200 | AM27: l/ha | AO27: LW Nutzfläche | AV27: 110 | AY27: l/ha
B29: Tierhaltung
C30: Rinder | O30: Schweine
D31: Milchvieh | J31: 82 | M31: TP | P31: Zuchtsauen | V31: 80 | Y31: TP
D32: Mastkälber | J32: 40 | M32: TP | P32: Ferkel | V32: 400 | Y32: TP
D33: Mastrinder | J33: 120 | M33: TP | P33: Mastschweine | V33: 200 | Y33: TP
D34: Sonstige Rinder | J34: 40 | M34: TP
O35: TP = Tierplätze
C36: Geflügel
D37: Legehennen | J37: 8000 | M37: TP | P37: Sonstige | V37: 2 | Y37: TP
D38: Mastgeflügel | J38: 4000 | M38: TP
B40: Gebäude
C41: Wohngebäude/Baujahr | J41: 1972 | O41: Stallgebäude/Baujahr | V41: 2008
E42: beheizete Fläche | J42: 180 | M42: m² | Q42: beheizete Fläche | V42: 3000 | Y42: m²
C44: Wohngebäude/Baujahr | J44: 2010 | O44: Stallgebäude/Baujahr
E45: beheizete Fläche | J45: 140 | M45: m² | Q45: beheizete Fläche | Y45: m²
B48: Anmerkungen: | G48: 3 Pferde
G49: Sonstige Gebäude = Maschinenhalle + Werkstatt | Z49: BÜ

Sheet Energieeinsatz
A1: Energie-Check | F1: =Betriebsübersicht!F1 -> V 1.0 | J1: Energieeinsatz - Eingabeblatt | AA1: Energie-Check | AF1: =Betriebsübersicht!F1 -> V 1.0 | AJ1: Energieeinsatz - Ergebnisblatt | BA1: Energie-Check | BF1: =Betriebsübersicht!F1 -> V 1.0 | BJ1: Energieeinsatz - Infoblatt
C2: Bitte Abrechnungsjahre, Verbrauchsdaten und Kosten eintragen | AA2: Entwicklung des Verbrauchs und der Kosten: Strom - Kraftstoff - Wärme | BA2: Berechnungshilfe und Umrechnungsfaktoren
E4: Abrechnungsjahr | L4: 1999 | Q4: 2020 | V4: 2021 | AA4: Energieeinsatz | AG4: Abrechnungsjahr | AL4: =L4 -> 1999 | AQ4: =Q4 -> 2020 | AV4: =V4 -> 2021 | BB4: Eingabefelder | BI4: Felder für die Eingabe betrieblicher Daten
A5: Strom | V5: aktuelles Jahr | BB5: berechnete Felder | BI5: Felder die vom Programm berechnet werden
C6: Verbrauchswerte | K6: 1 | L6: 35642 | O6: kWh | Q6: 84698 | T6: kWh | V6: 21566 | Y6: kWh | AB6: Strom | AF6: Verbrauch | AL6: =L11 -> 83878 | AO6: kWh | AQ6: =Q11 -> 84698 | AT6: kWh | AV6: =V11 -> 83100 | AY6: kWh | BB6: Werte | BI6: Werte die aus Eingebefeldern übernommen wurden bzw.
K7: 2 | L7: 48236 | O7: kWh | T7: kWh | V7: 18963 | Y7: kWh | AF7: Kosten | AL7: =L18 -> 20729.28 | AO7: € | AQ7: =Q18 -> 21290.7 | AT7: € | AV7: =V18 -> 22364.16 | AY7: € | BJ7: - | BK7: Felder mit hinterlegten Werten
B8: Stromverbrauch in kWh | K8: 3 | O8: kWh | T8: kWh | V8: 42571 | Y8: kWh | BJ8: - | BK8: Felder mit hinterlegten Faktoren
K9: 4 | O9: kWh | T9: kWh | Y9: kWh
K10: 5 | O10: kWh | T10: kWh | Y10: kWh
H11: Summe | L11: =SUM(L6:N10) -> 83878 | O11: kWh | Q11: =SUM(Q6:S10) -> 84698 | T11: kWh | V11: =SUM(V6:X10) -> 83100 | Y11: kWh
C12: Kosten | F12: Grundpreis | L12: 116.2 | O12: € | Q12: 116.2 | T12: € | V12: 122.4 | Y12: €
F13: Arbeitspreis *) | K13: 1 | L13: 0.24 | O13: €/kWh | Q13: 0.25 | T13: €/kWh | V13: 0.25 | Y13: €/kWh | BA13: Umrechnungshilfe für den Wärme- bzw. Heizenergieeinsatz
K14: 2 | L14: 0.25 | O14: €/kWh | T14: €/kWh | V14: 0.26 | Y14: €/kWh
B15: Strompreis, netto in ct/kWh | K15: 3 | O15: €/kWh | T15: €/kWh | V15: 0.28 | Y15: €/kWh | BA15: Umrechnungsfaktoren Verbrauchswerte
K16: 4 | O16: €/kWh | T16: €/kWh | Y16: €/kWh | BQ16: Heizwert
K17: 5 | O17: €/kWh | T17: €/kWh | Y17: €/kWh | BD17: Heizöl | BL17: 8000 | BO17: l | BQ17: 9.8 | BV17: =BL17*BQ17 -> 78400 | BY17: kWh
H18: Summe | L18: =L12+(L6*L13+L7*L14+L8*L15+L9*L16+L10*L17) -> 20729.28 | O18: € | Q18: =Q12+(Q6*Q13+Q7*Q14+Q8*Q15+Q9*Q16+Q10*Q17) -> 21290.7 | T18: € | V18: =V12+(V6*V13+V7*V14+V8*V15+V9*V16*V10*V17) -> 22364.16 | Y18: € | BD18: Erdgas | BL18: 8000 | BO18: m³ | BQ18: 10.4 | BV18: =BL18*BQ18 -> 83200 | BY18: kWh
B19: *) der Arbeitspreis bezieht sich auf den jeweiligen Verbrauchswert in den Zeilen 1 bis 5 | BD19: Flüssiggas | BL19: 1200 | BO19: l | BQ19: 6.57 | BV19: 7884 | BY19: kWh
BD20: Scheitholz - Hartholz | BL20: 14 | BO20: rm | BQ20: 1800 | BV20: 25200 | BY20: kWh
A21: Diesel | AB21: Kraftstoff | AF21: Verbrauch | AL21: =L27 -> 21200 | AO21: Liter | AQ21: =Q27 -> 20400 | AT21: Liter | AV21: =V27 -> 24000 | AY21: Liter | BD21: Scheitholz - Weichholz | BL21: 12 | BO21: rm | BQ21: 1400 | BV21: 16800 | BY21: kWh
C22: Verbrauchswerte | K22: 1 | L22: 6000 | O22: l | Q22: 7000 | T22: l | V22: 3000 | Y22: l | AB22: Diesel | AF22: Kosten | AL22: =L33 -> 18148 | AO22: € | AQ22: =Q33 -> 15974 | AT22: € | AV22: =V33 -> 19600 | AY22: € | BD22: Hackschnitzel - Hartholz | BL22: 14 | BO22: srm | BQ22: 945 | BV22: 13230 | BY22: kWh
K23: 2 | L23: 8000 | O23: l | Q23: 6000 | T23: l | V23: 4000 | Y23: l | BD23: Hackschnitzel - Weichholz | BL23: 12 | BO23: srm | BQ23: 720 | BV23: 8640 | BY23: kWh
B24: Dieselverbrauch in l | K24: 3 | L24: 1200 | O24: l | Q24: 7400 | T24: l | V24: 9000 | Y24: l | BD24: Holzpellets | BL24: 8.4 | BO24: t | BQ24: 4300 | BV24: 36120 | BY24: kWh
K25: 4 | L25: 3000 | O25: l | T25: l | V25: 8000 | Y25: l
K26: 5 | L26: 3000 | O26: l | T26: l | Y26: l
H27: Summe | L27: =SUM(L22:N26) -> 21200 | O27: l | Q27: =SUM(Q22:S26) -> 20400 | T27: l | V27: =SUM(V22:X26) -> 24000 | Y27: l | BA27: Umrechnungsfaktoren Preise
C28: Kosten *) | K28: 1 | L28: 0.86 | O28: €/l | Q28: 0.81 | T28: €/l | V28: 0.78 | Y28: €/l | BQ28: Heizwert
K29: 2 | L29: 0.86 | O29: €/l | Q29: 0.78 | T29: €/l | V29: 0.79 | Y29: €/l | BD29: Heizöl | BL29: 1.08 | BO29: €/l | BQ29: 9.8 | BV29: =BL29/BQ29*100 -> 11.02040816 | BY29: ct/kWh
K30: 3 | L30: 0.84 | O30: €/l | Q30: 0.76 | T30: €/l | V30: 0.82 | Y30: €/l | BD30: Erdgas | BL30: 0.66 | BO30: €/m³ | BQ30: 10.4 | BV30: =BL30/BQ30*100 -> 6.346153846 | BY30: ct/kWh
B31: Dieselpreis, netto in ct/l | K31: 4 | L31: 0.88 | O31: €/l | T31: €/l | V31: 0.84 | Y31: €/l | BD31: Flüssiggas | BL31: 1.18 | BO31: €/l | BQ31: 6.57 | BV31: =BL31/BQ31*100 -> 17.96042618 | BY31: ct/kWh
K32: 5 | L32: 0.82 | O32: €/l | T32: €/l | Y32: €/l | BD32: Scheitholz - Hartholz | BL32: 85 | BO32: €/rm | BQ32: 1800 | BV32: 4.722222222 | BY32: ct/kWh
H33: Summe | L33: =L22*L28+L23*L29+L24*L30+L25*L31+L26*L32 -> 18148 | O33: € | Q33: =Q22*Q28+Q23*Q29+Q24*Q30+Q25*Q31+Q26*Q32 -> 15974 | T33: € | V33: =V22*V28+V23*V29+V24*V30+V25*V31+V26*V32 -> 19600 | Y33: € | BD33: Scheitholz - Weichholz | BL33: 75 | BO33: €/rm | BQ33: 1400 | BV33: 5.357142857 | BY33: ct/kWh
B34: *) der Arbeitspreis bezieht sich auf den jeweiligen Verbrauchswert in den Zeilen 1 bis 5 | BD34: Hackschnitzel - Hartholz | BL34: 28 | BO34: €/srm | BQ34: 945 | BV34: 2.962962963 | BY34: ct/kWh
BD35: Hackschnitzel - Weichholz | BL35: 22 | BO35: €/srm | BQ35: 700 | BV35: 3.142857143 | BY35: ct/kWh
A36: Wärme | F36: zur Berechnungshilfe | AB36: Wärme | AF36: Verbrauch | AL36: =L42 -> 185000 | AO36: kWh | AQ36: =Q42 -> 184000 | AT36: kWh | AV36: =V42 -> 184000 | AY36: kWh | BD36: Holzpellets | BL36: 360 | BO36: €/t | BQ36: 4300 | BV36: 8.372093023 | BY36: ct/kWh
C37: Verbrauchswerte | K37: 1 | L37: 59000 | O37: kWh | Q37: 56000 | T37: kWh | V37: 58800 | Y37: kWh | AB37: Heizenergie | AF37: Kosten | AL37: =L48 -> 10667.4 | AO37: € | AQ37: =Q48 -> 11656 | AT37: € | AV37: =V48 -> 12389.2 | AY37: €
K38: 2 | L38: 126000 | O38: kWh | Q38: 128000 | T38: kWh | V38: 125200 | Y38: kWh | BH38: Zurück
B39: Heizenergieverbrauch in kWh | K39: 3 | O39: kWh | T39: kWh | Y39: kWh
K40: 4 | O40: kWh | T40: kWh | Y40: kWh
K41: 5 | O41: kWh | T41: kWh | Y41: kWh | BA41: Handlungsempfehlungen:
H42: Summe | L42: =SUM(L37:N41) -> 185000 | O42: kWh | Q42: =SUM(Q37:S41) -> 184000 | T42: kWh | V42: =SUM(V37:X41) -> 184000 | Y42: kWh | BC42: - | BD42: Beobachtung, Aufzeichnung und Auswertung der Verbrauchsdaten und der
C43: Kosten *) | K43: 1 | L43: 8.94 | O43: ct/kWh | Q43: 10.3 | T43: ct/kWh | V43: 11.02 | Y43: ct/kWh | BD43: Preisentwicklung
K44: 2 | L44: 4.28 | O44: ct/kWh | Q44: 4.6 | T44: ct/kWh | V44: 4.72 | Y44: ct/kWh | BC44: - | BD44: Anbieter- bzw. Tarifwechsel überprüfen
K45: 3 | O45: ct/kWh | T45: ct/kWh | Y45: ct/kWh
B46: Energiepreis, netto in ct/kWh | K46: 4 | O46: ct/kWh | T46: ct/kWh | Y46: ct/kWh
K47: 5 | O47: ct/kWh | T47: ct/kWh | Y47: ct/kWh
H48: Summe | L48: =(L37*L43+L38*L44+L39*L45+L40*L46+L41*L47)/100 -> 10667.4 | O48: € | Q48: =(Q37*Q43+Q38*Q44+Q39*Q45+Q40*Q46+Q41*Q47)/100 -> 11656 | T48: € | V48: =(V37*V43+V38*V44+V39*V45+V40*V46+V41*V47)/100 -> 12389.2 | Y48: €
B49: *) der Arbeitspreis bezieht sich auf den jeweiligen Verbrauchswert in den Zeilen 1 bis 5 | Y49: EE.1 | BY49: EE.3

Sheet Abgrenzung BZ
A1: Energie-Check | F1: =Betriebsübersicht!F1 -> V 1.0 | J1: Abgrenzung der Betriebszweige
B3: Eingabefelder
B4: berechnete Felder | Q4: Abrechnungsjahr | V4: =Energieeinsatz!AV4 -> 2021
B5: Werte
I6: Strom | O6: Kraftstoff | U6: Wärme | AI6: S | AO6: K | AV6: W
I7: kWh | O7: Liter | U7: kWh
B8: Gesamt | I8: =Energieeinsatz!AV6 -> 83100 | L8: 1 | O8: =Energieeinsatz!AV21 -> 24000 | R8: 1 | U8: =Energieeinsatz!AV36 -> 184000 | X8: 1 | AI8: =I8 -> 83100 | AO8: =O8 -> 24000 | AV8: =U8 -> 184000
I9: Bitte Verbrauchsdaten auf die Betriebszweige verteilen
AI10: 0 | AO10: 0 | AV10: 0
B11: P/H | C11: Privat / Haushalt | I11: 3100 | L11: =I11/$I$8 -> 0.03730445247 | O11: 1800 | R11: =O11/$O$8 -> 0.075 | U11: 12000 | X11: =U11/$U$8 -> 0.0652173913 | AI11: 3100 | AO11: 1800 | AV11: 12000
B12: SBZ | C12: Sonstige Betriebszweige | L12: =I12/$I$8 -> 0 | O12: 200 | R12: =O12/$O$8 -> 0.008333333333 | U12: 3800 | X12: =U12/$U$8 -> 0.02065217391 | AI12: 0 | AO12: 200 | AV12: 3800
A13: *) | B13: MV | C13: Milchvieh | I13: 50000 | L13: 0.6016847172 | O13: 4200 | R13: 0.175 | X13: 0 | AI13: 50000 | AO13: 4200 | AV13: 0
A14: *) | B14: RM | C14: Rindermast | I14: 3000 | L14: 0.03610108303 | O14: 3000 | R14: 0.125 | X14: 0 | AI14: 3000 | AO14: 3000 | AV14: 0
B15: FE | C15: Ferkelerzeugung | I15: 20000 | L15: 0.2406738869 | R15: 0 | U15: 30000 | X15: 0.1630434783 | AI15: 20000 | AO15: 0 | AV15: 30000
B16: FA | C16: Ferkelaufzucht | I16: 10000 | L16: 0.1203369434 | R16: 0 | U16: 40000 | X16: 0.2173913043 | AI16: 10000 | AO16: 0 | AV16: 40000
B17: MS | C17: Schweinemast | I17: 5000 | L17: 0.06016847172 | R17: 0 | U17: 6000 | X17: 0.03260869565 | AI17: 5000 | AO17: 0 | AV17: 6000
A18: *) | B18: MSA | C18: Schweinemast Außenklima | I18: 2000 | L18: 0.02406738869 | O18: 1200 | R18: 0.05 | U18: 3000 | X18: 0.01630434783 | AI18: 2000 | AO18: 1200 | AV18: 3000
B19: LH | C19: Legehennen | I19: 2000 | L19: 0.02406738869 | O19: 200 | R19: 0.008333333333 | X19: 0 | AI19: 2000 | AO19: 200 | AV19: 0
A20: *) | B20: GM | C20: Geflügelmast | I20: 2000 | L20: 0.02406738869 | R20: 0 | U20: 12000 | X20: 0.0652173913 | AI20: 2000 | AO20: 0 | AV20: 12000
B21: G-A | C21: Grünland - Ackerbau | L21: 0 | O21: 15000 | R21: 0.625 | X21: 0 | AI21: 0 | AO21: 15000 | AV21: 0
AI22: 0 | AO22: 0 | AV22: 0
B23: Verbleiben | I23: =I8-I12-I11-I13-I14-I15-I16-I17-I18-I19-I20-I21 -> -14000 | L23: =L8-L12-L11-L13-L14-L15-L16-L17-L18-L19-L20-L21 -> -0.1684717208 | O23: =O8-O12-O11-O13-O14-O15-O16-O17-O18-O19-O20-O21 -> -1600 | R23: =R8-R12-R11-R13-R14-R15-R16-R17-R18-R19-R20-R21 -> -0.06666666667 | U23: =U8-U12-U11-U13-U14-U15-U16-U17-U18-U19-U20-U21 -> 77200 | X23: =X8-X12-X11-X13-X14-X15-X16-X17-X18-X19-X20-X21 -> 0.4195652174 | AI23: -14000 | AO23: -1600 | AV23: 77200
I24: Bitte erst Fortfahren, wenn alle Energieträger vollständig auf die Betriebszweige verteilt wurden!
A26: *) Kraftstoffverbrauch für
C27: - | D27: Grundfuttervorlage = Silo: Entnahme und Mischen, Verteilen auf dem Futtertisch
C28: - | D28: mobile Entmistung
D30: =D21 -> 0 | E30: 0 | F30: 0 | G30: 0
D31: =D20 -> 0 | E31: 0 | F31: 0 | G31: 0 | AI31: Strom [kWh] | AO31: Kraftstoff [l] | AV31: Wärme [kWh]
D32: =D19 -> 0 | E32: 0 | F32: 0 | G32: 0
D33: =D18 -> 0 | E33: 0 | F33: 0 | G33: 0 | AB33: =C21 -> Grünland - Ackerbau | AI33: =I21 -> 0 | AO33: =O21 -> 15000 | AV33: =U21 -> 0
D34: =D17 -> 0 | E34: 0 | F34: 0 | G34: 0 | AB34: =C20 -> Geflügelmast | AI34: =I20 -> 2000 | AO34: =O20 -> 0 | AV34: =U20 -> 12000
D35: =D16 -> 0 | E35: 0 | F35: 0 | G35: 0 | AB35: =C19 -> Legehennen | AI35: =I19 -> 2000 | AO35: =O19 -> 200 | AV35: =U19 -> 0
D36: =D15 -> 0 | E36: 0 | F36: 0 | G36: 0 | AB36: =C18 -> Schweinemast Außenklima | AI36: =I18 -> 2000 | AO36: =O18 -> 1200 | AV36: =U18 -> 3000
D37: =D14 -> 0 | E37: 0 | F37: 0 | G37: 0 | AB37: =C17 -> Schweinemast | AI37: =I17 -> 5000 | AO37: =O17 -> 0 | AV37: =U17 -> 6000
D38: =D13 -> 0 | E38: 0 | F38: 0 | G38: 0 | AB38: =C16 -> Ferkelaufzucht | AI38: =I16 -> 10000 | AO38: =O16 -> 0 | AV38: =U16 -> 40000
D39: =D11 -> 0 | E39: 0 | F39: 0 | G39: 0 | AB39: =C15 -> Ferkelerzeugung | AI39: =I15 -> 20000 | AO39: =O15 -> 0 | AV39: =U15 -> 30000
AB40: =C14 -> Rindermast | AI40: =I14 -> 3000 | AO40: =O14 -> 3000 | AV40: =U14 -> 0
AB41: =C13 -> Milchvieh | AI41: =I13 -> 50000 | AO41: =O13 -> 4200 | AV41: =U13 -> 0
AB42: =C12 -> Sonstige Betriebszweige | AI42: =I12 -> 0 | AO42: =O12 -> 200 | AV42: =U12 -> 3800
AB43: =C11 -> Privat / Haushalt | AI43: =I11 -> 3100 | AO43: =O11 -> 1800 | AV43: =U11 -> 12000
Y49: AB.1

Sheet MV
A1: Energie-Check | F1: =Betriebsübersicht!F1 -> V 1.0 | J1: Milchviehhaltung | P1: Ergebnisblatt | AA1: Energie-Check | AF1: =Betriebsübersicht!F1 -> V 1.0 | AJ1: Milchviehhaltung | AP1: Infoblatt | BA1: Energie-Check | BF1: =Betriebsübersicht!F1 -> V 1.0 | BJ1: Milchviehhaltung | BP1: Eingabeblatt 1 | CA1: Energie-Check | CF1: =Betriebsübersicht!F1 -> V 1.0 | CJ1: Milchviehhaltung | CP1: Eingabeblatt 2 | DA1: Energie-Check | DF1: =Betriebsübersicht!F1 -> V 1.0 | DJ1: Milchviehhaltung | DP1: Ergebnisblatt Vgl. SOLL - IST
BA2: Detailbetrachtung | CA2: Detailbetrachtung | DA2: Detailbetrachtung
AB3: Eingabefelder | AI3: Felder für die Eingabe betrieblicher Daten | BA3: Berechnung Stromverbrauch - Technische Ausstattung | CA3: Berechnung Dieselverbrauch mit Futtermischwagen - SOLL:
J4: Anzahl Milchkühe | K4: =Betriebsübersicht!J31 -> 82 | Q4: Abrechnungsjahr | V4: =Energieeinsatz!AV4 -> 2021 | AB4: berechnete Felder | AI4: Felder die vom Programm berechnet werden | BQ4: Abrechnungsjahr | BV4: =V4 -> 2021 | CQ4: Abrechnungsjahr | CV4: =V4 -> 2021 | DJ4: Anzahl Milchkühe | DK4: =K4 -> 82 | DQ4: Abrechnungsjahr | DV4: =V4 -> 2021
AB5: Werte | AI5: Werte die aus Eingebefeldern übernommen wurden bzw. | CB5: Hier kann der Dieseleinsatz anhand der Futtermenge berechnet werden.
K6: Strom | T6: Diesel - Grundfuttervorlage | AJ6: - | AK6: Felder mit hinterlegten Werten | BB6: Sollwerte: durchschnittliche Verbrauchskennzahlen aus zeitgemäßen Tiehaltungsanlagen | CC6: pro Milchkuh | DK6: Strom | DT6: Diesel - Grundfuttervorlage
D7: Gesamtverbrauch | K7: ='Abgrenzung BZ'!AI8 -> 83100 | N7: kWh | T7: ='Abgrenzung BZ'!AO8 -> 24000 | W7: Liter | AJ7: - | AK7: Felder mit hinterlegten Faktoren | BB7: Istwerte: | BE7: Bitte hier betriebliche Daten eintragen, Sollwert kann als Anhaltspunkt dienen. | CG7: Frischmasse: | CH7: 70 | CK7: kg FM/Kuh/Tag | CR7: Diesel: | CS7: 2.4 | CV7: l Diesel / t FM | DD7: pro Milchkuh - SOLL | DK7: 400 | DN7: kWh | DT7: 60 | DW7: Liter
B8: davon | D8: Verbrauch Milchvieh | K8: ='Abgrenzung BZ'!AI13 -> 50000 | N8: kWh | P8: =K8/K7 -> 0.6016847172 | T8: ='Abgrenzung BZ'!AO13 -> 4200 | W8: Liter | Y8: =T8/T7 -> 0.175 | BE8: Falls keine Messwerte vorhanden, Schätzwerte eingeben! | CH8: =CH7*365/1000 -> 25.55 | CK8: t FM/Kuh/Jahr | CS8: =CH8*CS7 -> 61.32 | CV8: l Diesel / Jahr | DD8: pro Milchkuh - IST | DK8: =BV47 -> 638 | DN8: kWh | DP8: =DK8/DK7 -> 1.595 | DT8: =CS8 -> 61.32 | DW8: Liter | DY8: =DT8/DT7 -> 1.022
A9: Anteil am Gesamtverbrauch | BE9: Eingabefelder | BL9: berechnete Felder | BS9: Werte | CC9: Betrieb
AA10: Hauptverbrauchsbereiche sind die Milchgewinnung und die Milchkühlung mit einem Anteil | BA10: pro Milchkuh | BS10: Verbrauchswert | CG10: Frischmasse: | CH10: =CH8*K4 -> 2095.1 | CK10: t FM/Jahr | CR10: Diesel: | CS10: =CS8*K4 -> 5028.24 | CV10: l Diesel / Jahr
AB11: bis über 60 % des Gesamtstromverbrauchs. | BQ11: SOLL | BV11: IST
AA12: Die Vakuumversorgung für den Milchentzug und für die Spülung der Melkanlage weist den | BB12: Milchgewinnung - Melksystem: | CG12: Vergleich: | CH12: Dieselverbrauch lt. Abgrenzung BZ | CS12: =T8 -> 4200 | CV12: l Diesel / Jahr
AB13: höchsten Stromverbrauch bei der Milchgewinnung aus. Weitere technische Anlagen bei der | BP13: Melkstand (Vakuumpumpe nicht frequenzgeregelt) | BQ13: 140 | BT13: kWh | BY13: kWh | CB13: (FM = Frischmasse) | CH13: (BZ=Betriebszweig)
AB14: Milchgewinnung mit geringerem Strombedarf sind die Milchpumpe, die Beleuchtung des | BP14: Melkstand (Vakuumpumpe frequenzgeregelt) | BQ14: 88 | BT14: kWh | BV14: 200 | BY14: kWh
AB15: Melkstands und Kompressoren für die Drucklufterzeugung. Der Druckluftbedarf bei | BP15: Melkroboter (AMS - automatisches Melksystem) | BQ15: 120 | BT15: kWh | BY15: kWh
AB16: Melkroboterbetrieben (pneumatische Abnahmeautomatik der Melkzeuge und Steuerung | CA16: Berechnung Stromverbrauch Automatische Grundfuttervorlage (AFS) - SOLL:
AB17: der Tore, bei neueren Melkrobotersystemen sind diese mit Elektromotoren ausgestattet) | BB17: Milchkühlung: | BP17: Direktkühlung | BQ17: 118 | BT17: kWh | BV17: 162 | BY17: kWh | CB17: pro Milchkuh | CS17: Verbrauchswert
AB18: ist höher als bei Betrieben mit konventionellen Melksystemen. | BP18: Direktkühlung mit Vorkühlung | BQ18: 72 | BT18: kWh | BY18: kWh | CB18: (AFS - automatisches Fütterungssystem) | CQ18: SOLL | CV18: IST
AA19: Für die Abkühlung der Milch können Direktkühlung oder indirekte Kühlsysteme mit Eiswasser | BP19: Eiswasserkühlung | BQ19: 142 | BT19: kWh | BY19: kWh
AB20: genutzt werden. Direktkühlungen haben einen höheren Wirkungsgrad als Eiswasseranlagen | BP20: Eiswaserkühlung mit Vorkühlung | BQ20: 86 | BT20: kWh | BY20: kWh | CP20: Futterentnahme (Silo, Heu, Stroh) und befüllen Bunker | CQ20: 10 | CT20: kWh | CY20: kWh
AB21: (Umwandlungs- und Lagerverluste), der Leistungsbedarf ist jedoch höher. Der Vorteil von | BB21: Melkanlagen-/Tankreinigung - Wärmerückgewinnung (WRG) aus der Milchkühlung: | CP21: Futter auflösen, bervorraten und fördern in Mischer | CQ21: 40 | CT21: kWh | CY21: kWh | DA21: Zusammensetzung des Sollwerts (ohne Kälber und AFS = automatisches Fütterungssystem)
K22: Strom | T22: Diesel - Grundfuttervorlage | AB22: Eiswasserkühlungen ist, dass unabhängig von den Melkzeiten Eiswasser produziert und | BP22: Warmwasserbereitung ohne WRG und Elektroboiler | BQ22: 98 | BT22: kWh | BY22: kWh | CP22: Futter mischen und verteilen (Roboter/Band) | CQ22: 60 | CT22: kWh | CY22: kWh
D23: pro Milchkuh - SOLL | K23: 400 | N23: kWh | T23: 60 | W23: Liter | AB23: somit höhere Nutzungspotenziale für selbst erzeugten Solarstrom ausgenutzt werden kann. | BP23: Warmwasserbereitung mit WRG und Elektroboiler | BQ23: 52 | BT23: kWh | BV23: 86 | BY23: kWh | DG23: Soll
D24: pro Milchkuh - IST | K24: =K8/$K$4 -> 609.7560976 | N24: kWh | P24: =K24/K23 -> 1.524390244 | T24: =T8/K4 -> 51.2195122 | W24: Liter | Y24: =T24/T23 -> 0.8536585366 | AA24: Größere Verbraucher im Milchviehstall sind Beleuchtungseinrichtungen, Zusatzlüftung | CB24: Kraftfutteraufbereitung: | CP24: Mahl- und Mischanlage | CQ24: 40 | CT24: kWh | CY24: kWh | DG24: kWh | EG24: IST | EK24: Soll
A25: Zusammensetzung des Sollwerts (ohne Kälber und AFS = automatisches Fütterungssystem) | AB25: (Ventilatoren), Frostsicherungssysteme für Tränkbecken und Wasserleitungen, | BB25: Summe Milchgewinnung | BQ25: 260 | BT25: kWh | BV25: =SUM(BV13:BX23) -> 448 | BY25: kWh | CB25: Summe AFS | CQ25: 120 | CV25: =SUM(CV20:CX24) -> 0 | DB25: Milchgewinnung | DG25: 120 | EB25: =DB35 -> AFS | EC25: =DC35 -> 0 | ED25: 0 | EE25: 0 | EF25: 0 | EG25: =DG49 -> 0 | EK25: =DG35 -> 120
AB26: Güllerührwerke und –pumpen. Weitere Verbraucher mit eher geringerem Strombedarf sind | DB26: Milchkühlung | DG26: 90 | EB26: =DB34 -> Kälber | EC26: =DC34 -> 0 | ED26: 0 | EE26: 0 | EF26: 0 | EG26: =DG48 -> 62 | EK26: =DG34 -> 40
AB27: Einrichtungen für die Kraftfuttervorlage, stationäre Entmistungssysteme, Kuhbürsten, | BB27: Beleuchtung: | BG27: 3 | BH27: h/d | BP27: Leuchtstoffröhren | BQ27: 36 | BT27: kWh | BY27: kWh | DB27: Reinigung | DG27: 50 | EB27: =DB33 -> Sonstige | EC27: =DC33 -> 0 | ED27: 0 | EE27: 0 | EF27: 0 | EG27: =DG47 -> 22 | EK27: =DG33 -> 20
AB28: Windschutznetze, Hochdruckreiniger und die Büroausstattung. | BP28: Metalldampflampen | BQ28: 24 | BT28: kWh | BV28: 30 | BY28: kWh | CA28: Berechnung Stromverbrauch Kälber - SOLL: | DB28: Beleuchtung | DG28: 30 | EB28: =DB32 -> Lüftung | EC28: =DC32 -> 0 | ED28: 0 | EE28: 0 | EF28: 0 | EG28: =DG46 -> 16 | EK28: =DG32 -> 40
BP29: LED-Leuchten | BQ29: 10 | BT29: kWh | BY29: kWh | CJ29: Anzahl Kälber | CK29: 40 | CQ29: IST | CV29: IST | DB29: Frostsicherung | DG29: 20 | EB29: =DB31 -> Entmistung | EC29: =DC31 -> 0 | ED29: 0 | EE29: 0 | EF29: 0 | EG29: =DG45 -> 22 | EK29: =DG31 -> 20
DB30: Fütterung (KF) | DG30: 10 | EB30: =DB30 -> Fütterung (KF) | EC30: =DC30 -> 0 | ED30: 0 | EE30: 0 | EF30: 0 | EG30: =DG44 -> 4 | EK30: =DG30 -> 10
AA31: Handlungsempfehlungen: | BB31: Frostsicherung: | BP31: Zirkulation / Begleitheizung | BQ31: 20 | BT31: kWh | BV31: 34 | BY31: kWh | CP31: Milch- und MAT-Tränken | CQ31: 40 | CT31: kWh | CV31: 62 | CY31: kWh | DB31: Entmistung | DG31: 20 | EB31: =DB29 -> Frostsicherung | EC31: =DC29 -> 0 | ED31: 0 | EE31: 0 | EF31: 0 | EG31: =DG43 -> 34 | EK31: =DG29 -> 20
AB32: Melken | CP32: Futterautomat | CQ32: 40 | CT32: kWh | CY32: kWh | DB32: Lüftung | DG32: 40 | EB32: =DB28 -> Beleuchtung | EC32: =DC28 -> 0 | ED32: 0 | EE32: 0 | EF32: 0 | EG32: =DG42 -> 30 | EK32: =DG28 -> 30
AC33: - | AD33: Zügiges Melken (Verkürzung der Melkzeiten) | BB33: Fütterung: | BP33: Kraftfutterautomat | BQ33: 6 | BT33: kWh | BV33: 4 | BY33: kWh | CP33: Warmwasserbereitung mit Elektroboiler | CQ33: 10 | CT33: kWh | CY33: kWh | DB33: Sonstige | DG33: 20 | EB33: =DB27 -> Reinigung | EC33: =DC27 -> 0 | ED33: 0 | EE33: 0 | EF33: 0 | EG33: =DG41 -> 86 | EK33: =DG27 -> 50
AC34: - | AD34: Angepasste Auslegung und Frequenzregelung der Vakuumpumpe | CB34: Summe Kälber | CV34: =SUM(CV31:CX33) -> 62 | DB34: Kälber | DG34: 40 | EB34: =DB26 -> Milchkühlung | EC34: =DC26 -> 0 | ED34: 0 | EE34: 0 | EF34: 0 | EG34: =DG40 -> 162 | EK34: =DG26 -> 90
AB35: Kühlen | BB35: Entmistung: | BP35: Faltschieber | BQ35: 16 | BT35: kWh | BV35: 22 | BY35: kWh | DB35: AFS | DG35: 120 | EB35: =DB25 -> Milchgewinnung | EC35: =DC25 -> 0 | ED35: 0 | EE35: 0 | EF35: 0 | EG35: =DG39 -> 200 | EK35: =DG25 -> 120
AC36: - | AD36: Ein Vorkühler senkt die Milchtemperatur vor dem Einlauf in den Milchtank | BP36: Spaltenroboter | BQ36: 10 | BT36: kWh | BY36: kWh
AC37: - | AD37: Bedarfsgerechte Auslegung des Kälteaggregats und der Milchtankgröße | BP37: Güllepumpe | BQ37: 8 | BT37: kWh | BY37: kWh | CA37: Berechnungshilfe elektrische Energie: | DG37: IST
G38: kWh | AC38: - | AD38: Aufstellort des Kühlaggregats an einem kühlen Platz mit genügend Luftzirkulation | CB38: Hier kann mittels Leistung und Laufzeit der Jahresstromverbrauch der einzelnen | DG38: kWh
B39: Milchgewinnung | G39: 120 | AC39: - | AD39: Bauliche Trennung von Milchlagerraum und Kompressor | BB39: Lüftung: | BP39: Ventilatoren | BQ39: 42 | BT39: kWh | BV39: 16 | BY39: kWh | CB39: Systemkomponenten berechnet werden. | DB39: Milchgewinnung | DG39: =SUM(BV13:BX15) -> 200
B40: Milchkühlung | G40: 90 | AC40: - | AD40: Milchtank in Raum mit niedrigen Temperaturen (Nordseite) | DB40: Milchkühlung | DG40: =SUM(BV17:BX20) -> 162
B41: Reinigung | G41: 50 | AC41: - | AD41: Regelmäßige Wartung (Kältemittelstand, Sauberkeit des Aggregats, …) | BB41: Sonstige: | BP41: Kuhbürsten | BQ41: 12 | BT41: kWh | BV41: 14 | BY41: kWh | CB41: Verbraucher | CH41: Anzahl | CK41: Leistung | CO41: Laufzeit | CS41: Tage | CW41: Strom | DB41: Reinigung | DG41: =SUM(BV22:BX23) -> 86
B42: Beleuchtung | G42: 30 | AB42: Warmwasserbereitung | BP42: Windschutznetze | BQ42: 6 | BT42: kWh | BV42: 8 | BY42: kWh | CB42: HDR | CH42: 1 | CK42: 2.6 | CM42: kW | CO42: 0.5 | CQ42: h | CS42: 20 | CU42: d | CW42: =CH42*CK42*CO42*CS42 -> 26 | CY42: kWh | DB42: Beleuchtung | DG42: =SUM(BV27:BX29) -> 30
B43: Frostsicherung | G43: 20 | AC43: - | AD43: Mit Wärmerückgewinnungssystemen wird die Abwärme die beim Abkühlen der | BP43: Wasserpumpen | BQ43: 18 | BT43: kWh | BY43: kWh | CB43: Gebläse | CH43: 1 | CK43: 1.5 | CM43: kW | CO43: 8 | CQ43: h | CS43: 20 | CU43: d | CW43: =CH43*CK43*CO43*CS43 -> 240 | CY43: kWh | DB43: Frostsicherung | DG43: =BV31 -> 34
B44: Fütterung (KF) | G44: 10 | AD44: Milch entsteht, für die Erwärmung des Brauchwassers genutzt. | CB44: Getreidemühle | CH44: 1 | CK44: 7.5 | CM44: kW | CO44: 1.5 | CQ44: h | CS44: 120 | CU44: d | CW44: =CH44*CK44*CO44*CS44 -> 1350 | CY44: kWh | DB44: Fütterung (KF) | DG44: =BV33 -> 4
B45: Entmistung | G45: 20 | AB45: Stall | BB45: Summe Milchviehstall | BQ45: 140 | BT45: kWh | BV45: =SUM(BV27:BX43) -> 128 | BY45: kWh | CB45: Leuchtstoffröhren | CH45: 40 | CK45: 0.07 | CM45: kW | CO45: 3.5 | CQ45: h | CS45: 365 | CU45: d | CW45: =CH45*CK45*CO45*CS45 -> 3577 | CY45: kWh | DB45: Entmistung | DG45: =SUM(BV35:BX37) -> 22
B46: Lüftung | G46: 40 | AC46: - | AD46: Beleuchtung: Umrüstung auf LED | CM46: kW | CQ46: h | CU46: d | CW46: 0 | CY46: kWh | DB46: Lüftung | DG46: =BV39 -> 16
B47: Sonstige | G47: 20 | AC47: - | AD47: Frostsichere Verlegung der Wasserleitungen | BB47: Gesamt Milch + Stall + Kälber pro Platz | BQ47: =BQ25+BQ45 -> 400 | BT47: kWh | BV47: =BV25+BV45+CV31 -> 638 | BY47: kWh | CW47: =SUM(CW42:CX46) -> 5193 | CY47: kWh | DB47: Sonstige | DG47: =SUM(BV41:BX43) -> 22
B48: Kälber | G48: 40 | AC48: - | AD48: Einbau hocheffizienter Antriebe und Pumpen | BB48: Gesamt Milch + Stall + Kälber | BQ48: =BQ47*K4 -> 32800 | BV48: =BV47*K4 -> 52316 | BY48: kWh | DB48: Kälber | DG48: =CV34 -> 62
B49: AFS | G49: 120 | AY49: MV.2 | BY49: MV.3 | CY49: MV.4 | DB49: AFS | DG49: =CV25 -> 0

Sheet RM
A1: Energie-Check | F1: =Betriebsübersicht!F1 -> V 1.0 | J1: Rindermast | P1: Ergebnisblatt | AA1: Energie-Check | AF1: =Betriebsübersicht!F1 -> V 1.0 | AJ1: Rindermast | AP1: Infoblatt | BA1: Energie-Check | BF1: =Betriebsübersicht!F1 -> V 1.0 | BJ1: Rindermast | BP1: Eingabeblatt 1 | CA1: Energie-Check | CF1: =Betriebsübersicht!F1 -> V 1.0 | CJ1: Rindermast | CP1: Eingabeblatt 2 | DA1: Energie-Check | DF1: =Betriebsübersicht!F1 -> V 1.0 | DJ1: Rindermast | DP1: Ergebnisblatt Vgl. SOLL - IST
BA2: Detailbetrachtung | CA2: Detailbetrachtung | DA2: Detailbetrachtung
A3: Rindermast | J3: Bullen / Färsen | K3: =Betriebsübersicht!J33 -> 120 | AB3: Eingabefelder | AI3: Felder für die Eingabe betrieblicher Daten | BA3: Berechnung Stromverbrauch - Technische Ausstattung | CA3: Berechnung Dieselverbrauch mit Futtermischwagen - SOLL: | DJ3: Bullen / Färsen | DK3: =K3 -> 120
J4: Kälber / Fresser | K4: =Betriebsübersicht!J32 -> 40 | Q4: Abrechnungsjahr | V4: =Energieeinsatz!AV4 -> 2021 | AB4: berechnete Felder | AI4: Felder die vom Programm berechnet werden | BQ4: Abrechnungsjahr | BV4: =V4 -> 2021 | CQ4: Abrechnungsjahr | CV4: =V4 -> 2021 | DJ4: Kälber / Fresser | DK4: =K4 -> 40 | DN4: kg/a | DQ4: Abrechnungsjahr | DV4: =V4 -> 2021
AB5: Werte | AI5: Werte die aus Eingebefeldern übernommen wurden bzw. | CB5: Hier kann der Dieseleinsatz anhand der Futtermenge berechnet werden.
K6: Strom | R6: Diesel - Futtervorlage+Entmistung | AJ6: - | AK6: Felder mit hinterlegten Werten | BB6: Sollwerte: durchschnittliche Verbrauchskennzahlen aus zeitgemäßen Tiehaltungsanlagen | CC6: pro Bulle / Färse | DA6: Rindermast gesamt | DK6: Strom | DR6: Diesel - Futtervorlage+Entmistung
D7: Gesamtverbrauch | K7: ='Abgrenzung BZ'!AI8 -> 83100 | N7: kWh | T7: ='Abgrenzung BZ'!AO8 -> 24000 | W7: Liter | AJ7: - | AK7: Felder mit hinterlegten Faktoren | BB7: Istwerte: | BE7: Bitte hier betriebliche Daten eintragen, Sollwert kann als Anhaltspunkt dienen. | CG7: Frischmasse: | CH7: 25 | CK7: kg FM/MR/Tag | CR7: Diesel: | CS7: 2.4 | CV7: l Diesel / t FM | DD7: pro Mastplatz - SOLL | DK7: =BQ29+BQ45 -> 50 | DN7: kWh | DT7: 30 | DW7: Liter
B8: davon | D8: Rindermast | K8: ='Abgrenzung BZ'!AI14 -> 3000 | N8: kWh | P8: =K8/K7 -> 0.03610108303 | T8: ='Abgrenzung BZ'!AO14 -> 3000 | W8: Liter | Y8: =T8/T7 -> 0.125 | BE8: Falls keine Messwerte vorhanden, Schätzwerte eingeben! | CH8: =CH7*365/1000 -> 9.125 | CK8: t FM/MR/Jahr | CS8: =CH8*CS7 -> 21.9 | CV8: l Diesel / Jahr | DD8: pro Mastplatz - IST | DK8: =BV29+BV45 -> 58 | DN8: kWh | DP8: =DK8/DK7 -> 1.16 | DT8: =CS8+CH18 -> 28.65 | DW8: Liter | DY8: =DT8/DT7 -> 0.955
A9: Anteil am Gesamtverbrauch | BE9: Eingabefelder | BL9: berechnete Felder | BS9: Werte | CC9: Betrieb
AA10: Kälber / Fresser | CG10: Frischmasse: | CH10: =CH8*K3 -> 1095 | CK10: t FM/Jahr | CR10: Diesel: | CS10: =CS8*K3 -> 2628 | CV10: l Diesel / Jahr
AB11: Die meiste Elektroenergie bei der Kälber-/Fresseraufzucht wird für die Fütterung | BA11: pro Bulle / Färse | BS11: Verbrauchswert | CC11: (FM = Frischmasse)
AB12: beansprucht. Hauptverbraucher sind Futter- und Tränkautomaten, sowie die | BQ12: SOLL | BV12: IST
AB13: Warmwasserbereitung.
BB14: Beleuchtung: | BH14: 2 | BI14: h/d | BP14: Leuchtstoffröhren | BQ14: 6 | BT14: kWh | BV14: 6 | BY14: kWh | CA14: Berechnung Dieselverbrauch Entmistung - SOLL:
AA15: Bullen / Färsen | BP15: Metalldampflampen | BQ15: 4 | BT15: kWh | BY15: kWh | CH15: Dieselverbrauch | CN15: Dauer | CS15: Tage
AB16: Aufgrund des geringen Stromverbrauchs in der Bullen-/Färsenmast sind auch nur geringe | BP16: LED-Leuchten | BQ16: 2 | BT16: kWh | BY16: kWh | CB16: Schlepper / Hoftruck | CH16: 12 | CK16: Liter/h | CN16: 0.5 | CQ16: h | CS16: 180 | CV16: d
AB17: Energieeinsparpotenziale vorhanden. In der Praxis kann ein automatisiertes
AB18: Fütterungssystem den Dieseleinsatz für die Grundfuttervorlage mit mobilen | BB18: Frostsicherung: | BP18: Zirkulation / Begleitheizung | BQ18: 10 | BT18: kWh | BV18: 8 | BY18: kWh | CC18: pro Mastplatz | CH18: =CS18/(K3+K4) -> 6.75 | CK18: l Diesel / Jahr | CR18: Diesel: | CS18: =CH16*CN16*CS16 -> 1080 | CV18: l Diesel / Jahr
AB19: Futtermischwagen ersetzen.
BB20: Entmistung: | BP20: Faltschieber | BQ20: 8 | BT20: kWh | BV20: 8 | BY20: kWh
BP21: Spaltenroboter | BQ21: 6 | BT21: kWh | BY21: kWh | CA21: Dieselverbrauch Futtervorlage + Entmistung | CS21: =CS10+CS18 -> 3708 | CV21: l Diesel / Jahr | DA21: Zusammensetzung des Sollwerts inkl. Kälber/Fresser ohne AFS = automatisches Fütterungssystem
K22: Strom | R22: Diesel - Futtervorlage+Entmistung | BP22: Güllepumpe | BQ22: 8 | BT22: kWh | BY22: kWh
D23: pro Mastplatz - SOLL | K23: 20 | N23: kWh | T23: 30 | W23: Liter | AA23: Handlungsempfehlungen: | CG23: Vergleich: | CH23: Dieselverbrauch lt. Abgrenzung BZ | CS23: =T8 -> 3000 | CV23: l Diesel / Jahr | DG23: Soll
D24: pro Mastplatz - IST | K24: =K8/K3 -> 25 | N24: kWh | P24: =K24/K23 -> 1.25 | T24: =T8/K3 -> 25 | W24: Liter | Y24: =T24/T23 -> 0.8333333333 | AB24: - | AC24: Bei beheizten Stallanlagen (Kälber-/Fresseraufzucht) sollte darauf geachtet werden, | BB24: Lüftung: | BP24: Ventilatoren | BQ24: 10 | BT24: kWh | BV24: 4 | BY24: kWh | CH24: (BZ=Betriebszweig) | DA24: Bullen / Färsen | DG24: kWh | EG24: IST | EK24: Soll
A25: Zusammensetzung des Sollwerts ohne Kälber/Fresser und AFS = auto. Fütterungssystem | AC25: dass Fenster, Wände und insbesondere die Decken gut gedämmt sind. | DB25: Beleuchtung | DG25: 6 | EB25: =DB35 -> WW Boiler | EC25: =DC35 -> 0 | ED25: =DD35 -> 0 | EE25: =DE35 -> 0 | EF25: =DF35 -> 0 | EG25: =DG49 -> 12 | EK25: =DG35 -> 6
AB26: - | AC26: Wenn möglich auf regenerative Heizsstoffe umstellen | BB26: Sonstige: | BP26: Windschutznetze | BQ26: 2 | BT26: kWh | BV26: 1 | BY26: kWh | DB26: Frostsicherung | DG26: 10 | EB26: =DB34 -> Futterautomat | EC26: =DC34 -> 0 | ED26: =DD34 -> 0 | EE26: =DE34 -> 0 | EF26: =DF34 -> 0 | EG26: =DG48 -> 0 | EK26: =DG34 -> 20
AB27: - | AC27: regelmäßige Wartung der Anlagen insbesondere der Fütterungs- und | BP27: Wasserpumpen | BQ27: 4 | BT27: kWh | BY27: kWh | CA27: Automatisches Fütterungssystem (AFS) | CS27: Verbrauchswert | DB27: Entmistung | DG27: 6 | EB27: =DB33 -> Milchtränken | EC27: =DC33 -> 0 | ED27: =DD33 -> 0 | EE27: =DE33 -> 0 | EF27: =DF33 -> 0 | EG27: =DG47 -> 12 | EK27: =DG33 -> 20
AC28: Futteraufbereitungsanlagen | CB28: pro Mastplatz | CQ28: SOLL | CV28: IST | DB28: Lüftung | DG28: 10 | EB28: =DB32 -> Lüftung | EC28: =DC32 -> 0 | ED28: =DD32 -> 0 | EE28: =DE32 -> 0 | EF28: =DF32 -> 0 | EG28: =DG46 -> 0 | EK28: =DG32 -> 4
AB29: - | AC29: Beleuchtung: Umrüstung auf LED | BB29: Summe Maststall | BQ29: 20 | BT29: kWh | BV29: =SUM(BV14:BX27) -> 27 | BY29: kWh | CB29: Grundfutteraufbereitung/-vorlage | DB29: AFS | DG29: 24 | EB29: =DB31 -> Beleuchtung | EC29: =DC31 -> 0 | ED29: =DD31 -> 0 | EE29: =DE31 -> 0 | EF29: =DF31 -> 0 | EG29: =DG45 -> 6 | EK29: =DG31 -> 6
AB30: - | AC30: frostsichere Verlegung der Wasserleitungen | CP30: Futterentnahme (Silo, Heu, Stroh) und befüllen Bunker | CQ30: 3 | CT30: kWh | CY30: kWh | DA30: Kälber / Fresser | EB30: =DB30 -> 0 | EC30: =DC30 -> 0 | ED30: =DD30 -> 0 | EE30: =DE30 -> 0 | EF30: =DF30 -> 0 | EG30: =DG44 -> 0 | EK30: =DG30 -> 0
AB31: - | AC31: Einbau hocheffizienter Antriebe und Pumpen | CP31: Futter auflösen, bervorraten und fördern in Mischer | CQ31: 10 | CT31: kWh | CV31: 20 | CY31: kWh | DB31: Beleuchtung | DG31: 6 | EB31: =DB29 -> AFS | EC31: =DC29 -> 0 | ED31: =DD29 -> 0 | EE31: =DE29 -> 0 | EF31: =DF29 -> 0 | EG31: =DG43 -> 40 | EK31: =DG29 -> 24
BA32: pro Kalb / Fresser | BS32: Verbrauchswert | CP32: Futter mischen und verteilen (Roboter/Band) | CQ32: 14 | CT32: kWh | CV32: 20 | CY32: kWh | DB32: Lüftung | DG32: 4 | EB32: =DB28 -> Lüftung | EC32: =DC28 -> 0 | ED32: =DD28 -> 0 | EE32: =DE28 -> 0 | EF32: =DF28 -> 0 | EG32: =DG42 -> 4 | EK32: =DG28 -> 10
BQ33: SOLL | BV33: IST | DB33: Milchtränken | DG33: 20 | EB33: =DB27 -> Entmistung | EC33: =DC27 -> 0 | ED33: =DD27 -> 0 | EE33: =DE27 -> 0 | EF33: =DF27 -> 0 | EG33: =DG41 -> 8 | EK33: =DG27 -> 6
CB34: Kraftfutteraufbereitung: | CP34: Mahl- und Mischanlage | CQ34: 40 | CT34: kWh | CY34: kWh | DB34: Futterautomat | DG34: 20 | EB34: =DB26 -> Frostsicherung | EC34: =DC26 -> 0 | ED34: =DD26 -> 0 | EE34: =DE26 -> 0 | EF34: =DF26 -> 0 | EG34: =DG40 -> 8 | EK34: =DG26 -> 10
BB35: Beleuchtung: | BP35: Leuchtstoffröhren | BQ35: 6 | BT35: kWh | BV35: 6 | BY35: kWh | DB35: WW Boiler | DG35: 6 | EB35: =DB25 -> Beleuchtung | EC35: =DC25 -> 0 | ED35: =DD25 -> 0 | EE35: =DE25 -> 0 | EF35: =DF25 -> 0 | EG35: =DG39 -> 6 | EK35: =DG25 -> 6
BP36: Metalldampflampen | BQ36: 4 | BT36: kWh | BY36: kWh | CB36: Gesamt | CV36: =SUM(CV30:CX34) -> 40 | CY36: kWh
B37: *) automatisches Fütterungssystem | L37: *) WW = Warmwasserbereitung | BP37: LED-Leuchten | BQ37: 2 | BT37: kWh | BY37: kWh | DG37: IST
A38: Bullen / Färsen | G38: kWh | DA38: Bullen / Färsen | DG38: kWh
B39: Beleuchtung | G39: 6 | BB39: Lüftung: | BP39: Ventilatoren | BQ39: 4 | BT39: kWh | BY39: kWh | CA39: Berechnungshilfe elektrische Energie: | DB39: Beleuchtung | DG39: =SUM(BV14:BX16) -> 6
B40: Frostsicherung | G40: 10 | BB40: Tränken: | BP40: Milch- und MAT-Tränken | BQ40: 20 | BT40: kWh | BV40: 12 | BY40: kWh | CB40: Hier kann mittels Leistung und Laufzeit der Jahresstromverbrauch der einzelnen | DB40: Frostsicherung | DG40: =BV18 -> 8
B41: Entmistung | G41: 6 | BB41: Fütterung: | BP41: Futterautomat | BQ41: 20 | BT41: kWh | BY41: kWh | CB41: Systemkomponenten berechnet werden. | DB41: Entmistung | DG41: =SUM(BV20:BX22) -> 8
B42: Lüftung | G42: 10 | BB42: Warmwasserbereitung: | BP42: Elektroboiler | BQ42: 6 | BT42: kWh | BV42: 12 | BY42: kWh | CB42: Verbraucher | CH42: Anzahl | CK42: Leistung | CO42: Laufzeit | CS42: Tage | CW42: Strom | DB42: Lüftung | DG42: =BV24 -> 4
A43: *) | B43: AFS | G43: 24 | BB43: Sonstige: | BP43: Windschutznetze, Wasserpumpern, … | BQ43: 2 | BT43: kWh | BV43: 1 | BY43: kWh | CB43: Leuchtstoffröhren | CH43: 20 | CK43: 0.07 | CM43: kW | CO43: 2 | CQ43: h | CS43: 365 | CU43: d | CW43: =CH43*CK43*CO43*CS43 -> 1022 | CY43: kWh | DB43: AFS | DG43: =CV36 -> 40
A44: Kälber / Fresser | CB44: Ventilator | CH44: 4 | CK44: 0.6 | CM44: kW | CO44: 8 | CQ44: h | CS44: 20 | CU44: d | CW44: =CH44*CK44*CO44*CS44 -> 384 | CY44: kWh | DA44: Kälber / Fresser
B45: Beleuchtung | G45: 6 | BB45: Summe Kälber- / Fresserstall | BQ45: 30 | BT45: kWh | BV45: =SUM(BV35:BX43) -> 31 | BY45: kWh | CB45: Getreidemühle | CH45: 1 | CK45: 7.5 | CM45: kW | CO45: 0.5 | CQ45: h | CS45: 170 | CU45: d | CW45: =CH45*CK45*CO45*CS45 -> 637.5 | CY45: kWh | DB45: Beleuchtung | DG45: =SUM(BV35:BX37) -> 6
B46: Lüftung | G46: 4 | CM46: kW | CQ46: h | CU46: d | CW46: =CH46*CK46*CO46*CS46 -> 0 | CY46: kWh | DB46: Lüftung | DG46: =BV39 -> 0
B47: Milchtränken | G47: 20 | BA47: Gesamt pro Platz | BQ47: =BQ29+BQ45 -> 50 | BT47: kWh | BV47: =BV29+BV45 -> 58 | BY47: kWh | CW47: =SUM(CW43:CX46) -> 2043.5 | CY47: kWh | DB47: Milchtränken | DG47: =BV40 -> 12
B48: Futterautomat | G48: 20 | BA48: Gesamt | BQ48: =BQ47*K3 -> 6000 | BV48: =BV47*(K3+K4) -> 9280 | BY48: kWh | DB48: Futterautomat | DG48: =BV41 -> 0
A49: *) | B49: WW Boiler | G49: 6 | AY49: RM.2 | BY49: RM.3 | CY49: RM.4 | DB49: WW Boiler | DG49: =BV42 -> 12

Sheet FE
A1: Energie-Check | F1: =Betriebsübersicht!F1 -> V 1.0 | J1: Ferkelerzeugung | P1: Ergebnisblatt | AA1: Energie-Check | AF1: =Betriebsübersicht!F1 -> V 1.0 | AJ1: Ferkelerzeugung | AP1: Infoblatt | BA1: Energie-Check | BF1: =Betriebsübersicht!F1 -> V 1.0 | BJ1: Ferkelerzeugung | BP1: Eingabeblatt 1 | CA1: Energie-Check | CF1: =Betriebsübersicht!F1 -> V 1.0 | CJ1: Ferkelerzeugung | CP1: Eingabeblatt 2 | DA1: Energie-Check | DF1: =Betriebsübersicht!F1 -> V 1.0 | DJ1: Ferkelerzeugung | DP1: Ergebnisblatt Vgl. SOLL - IST
BA2: Detailbetrachtung | CA2: Detailbetrachtung | DA2: Detailbetrachtung
AB3: Eingabefelder | AI3: Felder für die Eingabe betrieblicher Daten | BA3: Berechnung Stromverbrauch - Technische Ausstattung | CA3: Berechnung Stromverbrauch - Technische Ausstattung
J4: Zuchtsauplätze | K4: =Betriebsübersicht!V31 -> 80 | Q4: Abrechnungsjahr | V4: =Energieeinsatz!AV4 -> 2021 | AB4: berechnete Felder | AI4: Felder die vom Programm berechnet werden | BQ4: Abrechnungsjahr | BV4: =V4 -> 2021 | CQ4: Abrechnungsjahr | CV4: =V4 -> 2021 | DJ4: Zuchtsauplätze | DK4: =K4 -> 80 | DQ4: Abrechnungsjahr | DV4: =V4 -> 2021
AB5: Werte | AI5: Werte die aus Eingebefeldern übernommen wurden bzw.
K6: Strom | T6: Wärme | AJ6: - | AK6: Felder mit hinterlegten Werten | BB6: Sollwerte: durchschnittliche Verbrauchskennzahlen aus zeitgemäßen Tiehaltungsanlagen | CA6: Der Stromverbrauch der Lüftungsanlage ist im Wesentlichen von der baulichen und | DK6: Strom | DT6: Wärme
D7: Gesamtverbrauch | K7: ='Abgrenzung BZ'!AI8 -> 83100 | N7: kWh | T7: ='Abgrenzung BZ'!AV8 -> 184000 | W7: kWh | AJ7: - | AK7: Felder mit hinterlegten Faktoren | BB7: Istwerte: | BE7: Bitte hier betriebliche Daten eintragen, Sollwert kann als Anhaltspunkt dienen. | CB7: technischen Ausführung abhängig. | DD7: pro Zuchtsau - SOLL | DK7: =BQ36 -> 126.75 | DN7: kWh | DT7: =CQ40 -> 220 | DW7: kWh
B8: davon | D8: Ferkelerzeugung | K8: ='Abgrenzung BZ'!AI15 -> 20000 | N8: kWh | P8: =K8/K7 -> 0.2406738869 | T8: ='Abgrenzung BZ'!AV15 -> 30000 | W8: kWh | Y8: =T8/T7 -> 0.1630434783 | BE8: Falls keine Messwerte vorhanden, Schätzwerte eingeben! | CA8: Unter Berechnung Lüftungsstrombedarf ist eine für das Produktionsverfahren | DD8: pro Zuchtsau - IST | DK8: =BV36 -> 169 | DN8: kWh | DP8: =DK8/DK7 -> 1.333333333 | DT8: =CV47 -> 390 | DW8: kWh | DY8: =DT8/DT7 -> 1.772727273
A9: Anteil am Gesamtverbrauch | BE9: Eingabefelder | BL9: berechnete Felder | BS9: Werte | CB9: Ferkelerzeugung typische und energetisch effiziente Ausführung dargestellt.
AA10: Die Haltungsabschnitte der Ferkelerzeugung und -aufzucht können in die Stallbereiche | BA10: pro Zuchtsau | BS10: Verbrauchswert | CA10: Durch Eingabe von Zu-/und Abschlagswerten kann der Stromverbrauch der Praxisanlage
AB11: Abferkelabteil, Ferkelaufzuchtabteil, Warteabteil und Deckzentrum unterteilt werden. | BQ11: SOLL | BV11: IST | CB11: berechnet werden.
AA12: Um den Temperaturansprüchen der Ferkel gerecht zu werden, müssen die Stallungen beheizt
AB13: werden. Deshalb wird neben dem elektrischen, auch der thermische Energieeinsatz | BB13: Lüftung: *) | BP13: Lüftungsanlage | BQ13: =CQ31 -> 57.75 | BT13: kWh | BV13: 75 | BY13: kWh | CA13: Berechnung Lüftungsstrombedarf
AB14: betrachtet. | CB14: Lüftungsanlage:
AA15: Den größten Anteil am elektrischen Energieverbrauch wird für die Stallklimatisierung | BA15: *) Berechnung Lüftungsstrombedarf -> siehe Eingabeblatt 2 | CE15: Zuluftführung | CJ15: Abluftführung | CP15: Kamin | CV15: Regelungstechnik
AB16: beansprucht. Eine Optimierung der Lüftungstechnik birgt daher großes Einsparpotenzial. | CE16: Lochplatten | CJ16: Oberflur zentral | CP16: gerade Ausführung | CZ16: Frequenzregelung
BB17: Fütterung: | BP17: Trockenfütterung | BQ17: 2 | BT17: kWh | BV17: 2 | BY17: kWh
AA18: Handlungsempfehlungen: | BP18: Flüssigfütterung | BQ18: 4 | BT18: kWh | BY18: kWh | CQ18: 35 | CT18: kWh
AB19: Lüftung | BP19: pneumatisches Fütterungssystem | BQ19: 18 | BT19: kWh | BY19: kWh | CB19: Zu-/Abschlagwerte für andere Ausführungen
AC20: - | AD20: Wichtigster Ansatz zur Effizienzsteigerung ist die Minderung von Druckverlusten | CE20: Futtergang | CJ20: Unterflur zentral | CP20: Weitwurfdüse | CV20: Phasenanschnitt
AD21: durch optimal dimensionierte Querschnitte und eine strömungstechnisch günstige | BB21: Futteraufbereitung: | BP21: Mahl- und Mischanlage | BQ21: 20 | BT21: kWh | BV21: 22 | BY21: kWh | CE21: -0.24 | CJ21: 0.42 | CP21: 0.49 | CV21: 0.65
K22: Strom | T22: Wärme | AD22: Ausführung der Zu- und Abluftführung | CE22: Strahllüftung | CJ22: Oberflur dezentral | CP22: Regenhaube | CV22: Traforegelung
D23: pro Zuchtsau - SOLL | K23: 140 | N23: kWh | T23: 220 | W23: kWh | AC23: - | AD23: Durch den Einsatz von Energiesparventilatoren können Einsparpotenziale von 50% | BB23: Beleuchtung: | BH23: 2 | BI23: h/d | BP23: Leuchtstoffröhren | BQ23: 6 | BT23: kWh | BV23: 6 | BY23: kWh | CE23: -0.1 | CJ23: -0.42 | CP23: 0.44 | CV23: 0.45 | DG23: Soll
D24: pro Zuchtsau - IST | K24: =K8/$K$4 -> 250 | N24: kWh | P24: =K24/K23 -> 1.785714286 | T24: =T8/K4 -> 375 | W24: kWh | Y24: =T24/T23 -> 1.704545455 | AD24: und mehr realisiert werden. Die höheren Anschaffungskosten haben eine kurze | BP24: LED-Leuchten | BQ24: 2 | BT24: kWh | BY24: kWh | CE24: Porendecke | CP24: Einströmdüse | CV24: EC-Motor | DG24: kWh | EG24: IST | EK24: Soll
AD25: Amortisationszeit von durchschnittlich 3 bis 5 Jahren. | CE25: 0.2 | CP25: -0.07 | CV25: -0.05 | DB25: Lüftung | DG25: 70 | EB25: =DB35 -> 0 | EC25: =DC35 -> 0 | ED25: 0 | EE25: 0 | EF25: 0 | EG25: =DG49 -> 0 | EK25: =DG35 -> 0
AC26: - | AD26: Die Art der Regelung hat einen direkten Einfluss auf den Energiebedarf. Vor allem | BB26: Reinigung: | BP26: Hochdruckreiniger (HDR) | BQ26: 5 | BT26: kWh | BV26: 4 | BY26: kWh | CP26: Diffusor | DB26: Fütterung | DG26: 2 | EB26: =DB34 -> 0 | EC26: =DC34 -> 0 | ED26: 0 | EE26: 0 | EF26: 0 | EG26: =DG48 -> 0 | EK26: =DG34 -> 0
AD27: im abgeregelten Leistungsbereich haben frequenzgesteuerte und EC-Ventilatoren | CP27: -0.17 | DB27: Mahl-/Mischanlage | DG27: 20 | EB27: =DB33 -> Sonstige | EC27: =DC33 -> 0 | ED27: 0 | EE27: 0 | EF27: 0 | EG27: =DG47 -> 20 | EK27: =DG33 -> 12
AD28: mit elektronisch geregeltem Gleichstrommotor im Vergleich zu herkömmlichen | BB28: Entmistung: | BP28: Güllerührwerk /-pumpe | BQ28: 4 | BT28: kWh | BY28: kWh | DB28: Beleuchtung | DG28: 6 | EB28: =DB32 -> Betriebsstrom | EC28: =DC32 -> 0 | ED28: 0 | EE28: 0 | EF28: 0 | EG28: =DG46 -> 20 | EK28: =DG32 -> 6
AD29: Ventilatoren mit Phasenanschnitt- oder transformatorischer Steuerung eine deutlich | CE29: -0.24 | CP29: 0.44 | CV29: 0.45 | DB29: Reinigung | DG29: 5 | EB29: =DB31 -> Ferkelnest | EC29: =DC31 -> 0 | ED29: 0 | EE29: 0 | EF29: 0 | EG29: =DG45 -> 20 | EK29: =DG31 -> 15
AD30: geringere spezifische Leistungsaufnahme. | BB30: Ferkelnest: | BP30: Infrarotlampen | BQ30: 15 | BT30: kWh | BV30: 20 | BY30: kWh | DB30: Entmistung | DG30: 4 | EB30: =DB30 -> Entmistung | EC30: =DC30 -> 0 | ED30: 0 | EE30: 0 | EF30: 0 | EG30: =DG44 -> 0 | EK30: =DG30 -> 4
AC31: baulich-technische Maßnahmen: | CE31: Verbrauchswert - SOLL | CP31: Lüftungsanlage | CQ31: =CQ18+(CQ18*CE29)+(CQ18*CJ29)+(CQ18*CP29)+(CQ18*CV29) -> 57.75 | CT31: kWh | CW31: Zurück | DB31: Ferkelnest | DG31: 15 | EB31: =DB29 -> Reinigung | EC31: =DC29 -> 0 | ED31: 0 | EE31: 0 | EF31: 0 | EG31: =DG43 -> 4 | EK31: =DG29 -> 5
AC32: - | AD32: richtige Dimensionierung der Lüftungsanlage | BB32: Betriebsstrom Heizung: | BP32: Umwälzpumpen, ... | BQ32: 6 | BT32: kWh | BV32: 20 | BY32: kWh | DB32: Betriebsstrom | DG32: 6 | EB32: =DB28 -> Beleuchtung | EC32: =DC28 -> 0 | ED32: 0 | EE32: 0 | EF32: 0 | EG32: =DG42 -> 6 | EK32: =DG28 -> 6
AF33: (Sommer: Abfuhr der Wärme – Winter: Wasserdampf + Schadgase) | DB33: Sonstige | DG33: 12 | EB33: =DB27 -> Mahl-/Mischanlage | EC33: =DC27 -> 0 | ED33: 0 | EE33: 0 | EF33: 0 | EG33: =DG41 -> 22 | EK33: =DG27 -> 20
AC34: - | AD34: strömungstechnisch günstige Gestaltung der Zu- und Abluftführung | BB34: Sonstige: | BP34: Stallbüro, Elektroboiler, Kühlschränke, … | BQ34: 15 | BT34: kWh | BV34: 20 | BY34: kWh | CA34: Berechnung Wärmebedarf - SOLL: | EB34: =DB26 -> Fütterung | EC34: =DC26 -> 0 | ED34: 0 | EE34: 0 | EF34: 0 | EG34: =DG40 -> 2 | EK34: =DG26 -> 2
AC35: - | AD35: fachgerechte Dämmung und Abdichtung der Stallgebäude und des Dachraums | CB35: pro Zuchtsau | CS35: Verbrauchswert | EB35: =DB25 -> Lüftung | EC35: =DC25 -> 0 | ED35: 0 | EE35: 0 | EF35: 0 | EG35: =DG39 -> 75 | EK35: =DG25 -> 70
AF36: (Vermeidung von Wärmeverlusten im Winter und starke Zuluftanwärmung | BB36: Gesamt pro Platz | BQ36: =BQ13+BQ17+IF(BV21>0.001,BQ21,0)+BQ23+BQ26+BQ30+BQ32+BQ34 -> 126.75 | BT36: kWh | BV36: =SUM(BV13:BX34) -> 169 | BY36: kWh | CQ36: SOLL | CV36: IST
AF37: im Sommer) | BB37: Gesamt | BQ37: =BQ36*K4 -> 10140 | BT37: kWh | BV37: =BV36*K4 -> 13520 | BY37: kWh | CB37: Heizung: Warmwasser und Infrarotlampen | DG37: IST
G38: kWh | AC38: betriebliches Management - Vermeidung von Druckverlusten | CB38: gut gedämmtes Stallgebäude | CP38: Stallheizung | CQ38: 60 | CT38: kWh | CV38: 80 | CY38: kWh | DG38: kWh
B39: Lüftung | G39: 70 | AC39: - | AD39: regelmäßige Reinigung (mindestens zweimal pro Jahr) | BA39: Berechnungshilfe elektrische Energie: | CB39: mit WRG (Wärmetauscher) | CP39: Ferkelnestheizung | CQ39: 160 | CT39: kWh | CV39: 180 | CY39: kWh | DB39: Lüftung | DG39: =BV13 -> 75
B40: Fütterung | G40: =BV17+BV18+BV19 -> 2 | AC40: - | AD40: Wartung und Überprüfung der Zu- und Abluftkanäle, der Ventilatoren und Lüftungs- | BB40: Hier kann mittels Leistung und Laufzeit der Jahresstromverbrauch der einzelnen | CB40: Gesamt pro Platz | CQ40: =CQ38+CQ39 -> 220 | CT40: kWh | CV40: =CV38+CV39 -> 260 | CY40: kWh | DB40: Fütterung | DG40: =SUM(BV17:BX19) -> 2
B41: Mahl-/Mischanlage | G41: =BV21 -> 22 | AD41: klappen inkl. Kalibrierung und optimale Einstellung der Temperaturfühler | BB41: Systemkomponenten berechnet werden. | CB41: Gesamt | CQ41: =CQ40*K4 -> 17600 | CT41: kWh | DB41: Mahl-/Mischanlage | DG41: =BV21 -> 22
B42: Beleuchtung | G42: =BV23+BV24 -> 6 | AB42: Stall | BB42: Verbraucher | BH42: Anzahl | BK42: Leistung | BO42: Laufzeit | BS42: Tage | BW42: Strom | DB42: Beleuchtung | DG42: =SUM(BV23:BX24) -> 6
B43: Reinigung | G43: 5 | AC43: - | AD43: regelmäßige Wartung der Anlagen insbes. der Fütterungs- und | BB43: HDR | BH43: 1 | BK43: 2.6 | BM43: kW | BO43: 4 | BQ43: h | BS43: 80 | BU43: d | BW43: =BH43*BK43*BO43*BS43 -> 832 | BY43: kWh | CB43: Zu/-Abschlagwerte für andere Ausführungen | DB43: Reinigung | DG43: =BV26 -> 4
B44: Entmistung | G44: 4 | AD44: Futteraufbereitungsanlagen | BB44: Gebläse | BH44: 1 | BK44: 1.5 | BM44: kW | BO44: 8 | BQ44: h | BS44: 20 | BU44: d | BW44: =BH44*BK44*BO44*BS44 -> 240 | BY44: kWh | CC44: ohne WRG | CQ44: 0.2 | DB44: Entmistung | DG44: =BV28 -> 0
B45: Ferkelnest | G45: 15 | AC45: - | AD45: Beleuchtung: Umrüstung auf LED | BB45: Schrotmühle | BH45: 1 | BK45: 10.5 | BM45: kW | BO45: 1.5 | BQ45: h | BS45: 180 | BU45: d | BW45: =BH45*BK45*BO45*BS45 -> 2835 | BY45: kWh | CC45: ohne Ferkelnestabdeckung | CQ45: 0.4 | CV45: 0.3 | DB45: Ferkelnest | DG45: =BV30 -> 20
B46: Betriebsstrom | G46: 6 | AC46: - | AD46: Frostsichere Verlegung der Wasserleitungen | BB46: Leuchtstoffröhren | BH46: 35 | BK46: 0.07 | BM46: kW | BO46: 2 | BQ46: h | BS46: 365 | BU46: d | BW46: =BH46*BK46*BO46*BS46 -> 1788.5 | BY46: kWh | CC46: geringe Dämmung + Sonstige Verlustquellen | CQ46: 0.4 | CV46: 0.2 | DB46: Betriebsstrom | DG46: =BV32 -> 20
B47: Sonstige | G47: 12 | AC47: - | AD47: Einbau hocheffizienter Antriebe und Pumpen | BW47: =SUM(BW43:BX46) -> 5695.5 | BY47: kWh | CB47: Gesamt pro Platz | CQ47: =CQ40+(CQ40*CQ44)+(CQ40*CQ45)+(CQ40*CQ46) -> 440 | CT47: kWh | CV47: =CV40+(CV40*CV44)+(CV40*CV45)+(CV40*CV46) -> 390 | CY47: kWh | DB47: Sonstige | DG47: =BV34 -> 20
CB48: Gesamt | CQ48: =CQ47*K4 -> 35200 | CT48: kWh | CV48: =CV47*K4 -> 31200 | CY48: kWh
AC49: Heizung: siehe Ferkelauzucht | AO49: Zurück zu Legehennen | AY49: FE.2 | BY49: FE.3 | CY49: FE.4

Sheet FA
A1: Energie-Check | F1: =Betriebsübersicht!F1 -> V 1.0 | J1: Ferkelaufzucht | P1: Ergebnisblatt | AA1: Energie-Check | AF1: =Betriebsübersicht!F1 -> V 1.0 | AJ1: Ferkelaufzucht | AP1: Infoblatt | BA1: Energie-Check | BF1: =Betriebsübersicht!F1 -> V 1.0 | BJ1: Ferkelaufzucht | BP1: Eingabeblatt 1 | CA1: Energie-Check | CF1: =Betriebsübersicht!F1 -> V 1.0 | CJ1: Ferkelaufzucht | CP1: Eingabeblatt 2 | DA1: Energie-Check | DF1: =Betriebsübersicht!F1 -> V 1.0 | DJ1: Ferkelaufzucht | DP1: Ergebnisblatt Vgl. SOLL - IST
BA2: Detailbetrachtung | CA2: Detailbetrachtung | DA2: Detailbetrachtung
AB3: Eingabefelder | AI3: Felder für die Eingabe betrieblicher Daten | BA3: Berechnung Stromverbrauch - Technische Ausstattung | CA3: Berechnung Stromverbrauch - Technische Ausstattung
J4: Ferkelplätze | K4: =Betriebsübersicht!V32 -> 400 | Q4: Abrechnungsjahr | V4: =Energieeinsatz!AV4 -> 2021 | AB4: berechnete Felder | AI4: Felder die vom Programm berechnet werden | BQ4: Abrechnungsjahr | BV4: =V4 -> 2021 | CQ4: Abrechnungsjahr | CV4: =V4 -> 2021 | DJ4: Ferkelplätze | DK4: =Betriebsübersicht!V32 -> 400 | DQ4: Abrechnungsjahr | DV4: =V4 -> 2021
AB5: Werte | AI5: Werte die aus Eingebefeldern übernommen wurden bzw.
K6: Strom | T6: Wärme | AJ6: - | AK6: Felder mit hinterlegten Werten | BB6: Sollwerte: durchschnittliche Verbrauchskennzahlen aus zeitgemäßen Tiehaltungsanlagen | CA6: Der Stromverbrauch der Lüftungsanlage ist im Wesentlichen Abhängig von baulichen und | DK6: Strom | DT6: Wärme
D7: Gesamtverbrauch | K7: ='Abgrenzung BZ'!AI8 -> 83100 | N7: kWh | T7: ='Abgrenzung BZ'!AV8 -> 184000 | W7: kWh | AJ7: - | AK7: Felder mit hinterlegten Faktoren | BB7: Istwerte: | BE7: Bitte hier betriebliche Daten eintragen, Sollwert kann als Anhaltspunkt dienen. | CB7: technischen Ausführung. | DD7: pro Ferkelplatz - SOLL | DK7: =BQ34 -> 22.1 | DN7: kWh | DT7: =CQ39 -> 100 | DW7: kWh
B8: davon | D8: Ferkelaufzucht | K8: ='Abgrenzung BZ'!AI16 -> 10000 | N8: kWh | P8: =K8/K7 -> 0.1203369434 | T8: ='Abgrenzung BZ'!AV16 -> 40000 | W8: kWh | Y8: =T8/T7 -> 0.2173913043 | BE8: Falls keine Messwerte vorhanden, Schätzwerte eingeben! | CA8: Unter Berechnung Lüftungsstrombedarf ist eine für das Produktionsverfahren | DD8: pro Ferkelplatz - IST | DK8: =BV34 -> 26 | DN8: kWh | DP8: =DK8/DK7 -> 1.176470588 | DT8: =CV46 -> 132 | DW8: kWh | DY8: =DT8/DT7 -> 1.32
A9: Anteil am Gesamtverbrauch | BE9: Eingabefelder | BL9: berechnete Felder | BS9: Werte | CB9: Ferkelaufzucht typische und energetisch effiziente Ausführung dargestellt.
AA10: Der thermische Energiebedarf der Betriebszweige Ferkelproduktion und Ferkelaufzucht ist im | BA10: pro Ferkelplatz | BS10: Verbrauchswert | CA10: Durch Eingabe von Zu-/und Abschlagswerten kann der Stromverbrauch der Praxisanlage
AB11: Vergleich zu anderen Produktionsbereichen sehr hoch und von schwankenden | BQ11: SOLL | BV11: IST | CB11: berechnet werden.
AB12: außenklimatischen Bedingungen (Außentemperaturen) abhängig. Im Wesentlichen werden
AB13: in der Praxis die Abferkel- und Ferkelaufzuchtabteile beheizt. Im Abferkelbereich und in | BB13: Lüftung: *) | BP13: Lüftungsanlage | BQ13: =CQ31 -> 13.8 | BT13: kWh | BV13: 15 | BY13: kWh | CA13: Berechnung Lüftungsstrombedarf
AB14: den Ferkelaufzuchtabteilen sind sowohl Heizelemente für die Temperierung der Raumluft | CB14: Lüftungsanlage:
AB15: als auch elektrische Heizlampen und thermische Warmwasserfußbodenheizungen oder auch | BA15: *) Berechnung Lüftungsstrombedarf -> siehe Eingabeblatt 2 | CE15: Zuluftführung | CJ15: Abluftführung | CP15: Kamin | CV15: Regelungstechnik
AB16: die Kombination aus Raum- und Zonenheizsystemen vorzufinden. | CE16: Lochplatten | CJ16: Oberflur zentral | CP16: gerade Ausführung | CZ16: Frequenzregelung
AA17: Zur Beheizung der gesamten Stallluft sind Twin- oder Deltarohre, Rippenheizungen, | BB17: Fütterung: | BP17: Trockenfütterung | BQ17: 0.3 | BT17: kWh | BY17: kWh
AB18: Flachheizkörper und Radiatoren installiert. Aufgrund guter Wärmeleiteigenschaften sichern | BP18: Flüssigfütterung | BQ18: 0.8 | BT18: kWh | BV18: 1 | BY18: kWh | CQ18: 12 | CT18: kWh
AB19: sie konstante Raumtemperaturen im Stall. Große Oberflächen von Twin-, Delta- und | BP19: pneumatisches Fütterungssystem | BQ19: 3.2 | BT19: kWh | BY19: kWh | CB19: Zu-/Abschlagwerte für andere Ausführungen
AB20: Rippenrohren ermöglichen bei geringen Wassermengen eine hohe Wärmeabgabe. | CE20: Futtergang | CJ20: Unterflur zentral | CP20: Weitwurfdüse | CV20: Phasenanschnitt
AA21: Zum Aufheizen von Stallabteilen vor der Neubelegung werden meist Heizkanonen (direkte | BB21: Futteraufbereitung: | BP21: Mahl- und Mischanlage | BQ21: 3.2 | BT21: kWh | BV21: 4 | BY21: kWh | CE21: -0.24 | CJ21: 0.42 | CP21: 0.49 | CV21: 0.65
K22: Strom | T22: Wärme | AB22: Lufterwärmung) eingesetzt. Sie sind relativ günstig in der Anschaffung und haben ein großes | CE22: Strahllüftung | CJ22: Oberflur dezentral | CP22: Regenhaube | CV22: Traforegelung
D23: pro Ferkelplatz - SOLL | K23: 18 | N23: kWh | T23: 100 | W23: kWh | AB23: Leistungsspektrum. | BB23: Beleuchtung: | BH23: 2 | BI23: h/d | BP23: Leuchtstoffröhren | BQ23: 1.6 | BT23: kWh | BV23: 2 | BY23: kWh | CE23: -0.1 | CJ23: -0.42 | CP23: 0.44 | CV23: 0.45 | DG23: Soll
D24: pro Ferkelplatz - IST | K24: =K8/$K$4 -> 25 | N24: kWh | P24: =K24/K23 -> 1.388888889 | T24: =T8/K4 -> 100 | W24: kWh | Y24: =T24/T23 -> 1 | BP24: LED-Leuchten | BQ24: 0.4 | BT24: kWh | BY24: kWh | CE24: Porendecke | CP24: Einströmdüse | CV24: EC-Motor | DG24: kWh | EG24: IST | EK24: Soll
AA25: Handlungsempfehlungen: | CE25: 0.2 | CP25: -0.07 | CV25: -0.05 | DB25: Lüftung | DG25: 12 | EB25: =DB35 -> 0 | EC25: =DC35 -> 0 | ED25: =DD35 -> 0 | EE25: =DE35 -> 0 | EF25: =DF35 -> 0 | EG25: =DG49 -> 0 | EK25: =DG35 -> 0
AB26: Heizuzng | BB26: Reinigung: | BP26: Hochdruckreiniger (HDR) | BQ26: 0.6 | BT26: kWh | BV26: 1 | BY26: kWh | CP26: Diffusor | DB26: Fütterung | DG26: 1 | EB26: =DB34 -> 0 | EC26: =DC34 -> 0 | ED26: =DD34 -> 0 | EE26: =DE34 -> 0 | EF26: =DF34 -> 0 | EG26: =DG48 -> 0 | EK26: =DG34 -> 0
AC27: - | AD27: Insgesamt lassen sich mit dem Einsatz von Zonenheizungen bis zu 30 % | CP27: -0.17 | DB27: Mahl-/Mischanlage | DG27: 3 | EB27: =DB33 -> 0 | EC27: =DC33 -> 0 | ED27: =DD33 -> 0 | EE27: =DE33 -> 0 | EF27: =DF33 -> 0 | EK27: =DG33 -> 0
AD28: Heizenergie einsparen. Optimale Temperaturbedingungen im Bereich der | BB28: Entmistung: | BP28: Güllerührwerk /-pumpe | BQ28: 0.1 | BT28: kWh | BY28: kWh | DB28: Beleuchtung | DG28: 1.6 | EB28: =DB32 -> Sonstige | EC28: =DC32 -> 0 | ED28: =DD32 -> 0 | EE28: =DE32 -> 0 | EF28: =DF32 -> 0 | EG28: =DG46 -> 2 | EK28: =DG32 -> 1.2
AD29: Ferkelnester sind mit einer Kombination aus regelbarer Fußbodenheizung und | CE29: 0.2 | CV29: -0.05 | DB29: Reinigung | DG29: 0.6 | EB29: =DB31 -> Betriebsstrom | EC29: =DC31 -> 0 | ED29: =DD31 -> 0 | EE29: =DE31 -> 0 | EF29: =DF31 -> 0 | EG29: =DG45 -> 1 | EK29: =DG31 -> 0.6
AD30: Wärmelampen gegeben. Mit dem Einbau von Abdeckplatten werden Wärmepolster | BB30: Betriebsstrom Heizung: | BP30: Umwälzpumpen, ... | BQ30: 0.6 | BT30: kWh | BV30: 1 | BY30: kWh | DB30: Entmistung | DG30: 0.2 | EB30: =DB30 -> Entmistung | EC30: =DC30 -> 0 | ED30: =DD30 -> 0 | EE30: =DE30 -> 0 | EF30: =DF30 -> 0 | EG30: =DG44 -> 0 | EK30: =DG30 -> 0.2
AD31: gebildet, die Wärmeverluste vermindern. Außerhalb des Liegebereichs sind die | CE31: Verbrauchswert - SOLL | CP31: Lüftungsanlage | CQ31: =CQ18+(CQ18*CE29)+(CQ18*CJ29)+(CQ18*CP29)+(CQ18*CV29) -> 13.8 | CT31: kWh | CW31: Zurück | DB31: Betriebsstrom | DG31: 0.6 | EB31: =DB29 -> Reinigung | EC31: =DC29 -> 0 | ED31: =DD29 -> 0 | EE31: =DE29 -> 0 | EF31: =DF29 -> 0 | EG31: =DG43 -> 1 | EK31: =DG29 -> 0.6
AD32: Raumtemperaturen niedriger. | BB32: Sonstige: | BP32: Stallbüro, Elektroboiler, Kühlschränke, … | BQ32: 1.5 | BT32: kWh | BV32: 2 | BY32: kWh | DB32: Sonstige | DG32: 1.2 | EB32: =DB28 -> Beleuchtung | EC32: =DC28 -> 0 | ED32: =DD28 -> 0 | EE32: =DE28 -> 0 | EF32: =DF28 -> 0 | EG32: =DG42 -> 2 | EK32: =DG28 -> 1.6
EB33: =DB27 -> Mahl-/Mischanlage | EC33: =DC27 -> 0 | ED33: =DD27 -> 0 | EE33: =DE27 -> 0 | EF33: =DF27 -> 0 | EG33: =DG41 -> 4 | EK33: =DG27 -> 3
AC34: baulich-technische Maßnahmen: | BB34: Gesamt pro Platz | BQ34: =BQ13+BQ18+IF(BV21>0.001,BQ21,0)+BQ23+BQ26+BQ30+BQ32 -> 22.1 | BT34: kWh | BV34: =SUM(BV13:BX32) -> 26 | BY34: kWh | CA34: Berechnung Wärmebedarf - SOLL: | EB34: =DB26 -> Fütterung | EC34: =DC26 -> 0 | ED34: =DD26 -> 0 | EE34: =DE26 -> 0 | EF34: =DF26 -> 0 | EG34: =DG40 -> 1 | EK34: =DG26 -> 1
AC35: - | AD35: fachgerechte Dämmung und Abdichtung der Stallgebäude und des Dachraums | BB35: Gesamt | BQ35: =BQ34*K4 -> 8840 | BT35: kWh | BV35: =BV34*K4 -> 10400 | BY35: kWh | CB35: pro Ferkelplatz | CS35: Verbrauchswert | EB35: =DB25 -> Lüftung | EC35: =DC25 -> 0 | ED35: =DD25 -> 0 | EE35: =DE25 -> 0 | EF35: =DF25 -> 0 | EG35: =DG39 -> 15 | EK35: =DG25 -> 12
AF36: (Vermeidung von Wärmeverlusten im Winter und starke Zuluftanwärmung
AF37: im Sommer) | BA37: Berechnungshilfe elektrische Energie: | CB37: Heizung: Warmwasser und WRG (Wärmetauscher) | CQ37: SOLL | CV37: IST | DG37: IST
G38: kWh | AC38: - | AD38: regelmäßige Wartung der Heizanlagen | BB38: Hier kann mittels Leistung und Laufzeit der Jahresstromverbrauch der einzelnen | CB38: gut gedämmtes Stallgebäude | DG38: kWh
B39: Lüftung | G39: 12 | BB39: Systemkomponenten berechnet werden. | CB39: Gesamt pro Platz | CP39: Stallheizung | CQ39: 100 | CT39: kWh | CV39: 80 | CY39: kWh | DB39: Lüftung | DG39: =BV13 -> 15
B40: Fütterung | G40: =BV17+BV18+BV19 -> 1 | AB40: Neben dem thermischen Energieaufwand, dem Stromverbrauch für die Infrarotstrahler und | BB40: Verbraucher | BH40: Anzahl | BK40: Leistung | BO40: Laufzeit | BS40: Tage | BW40: Strom | CB40: Gesamt | CQ40: =CQ39*K4 -> 40000 | CT40: kWh | DB40: Fütterung | DG40: =SUM(BV17:BX19) -> 1
B41: Mahl-/Mischanlage | G41: 2 | AC41: der Umwälzpumpen für die Wärmeverteilung in Warmwasserleitungen, wird | BB41: HDR | BH41: 1 | BK41: 2.6 | BM41: kW | BO41: 4 | BQ41: h | BS41: 80 | BU41: d | BW41: =BH41*BK41*BO41*BS41 -> 832 | BY41: kWh | DB41: Mahl-/Mischanlage | DG41: =BV21 -> 4
B42: Beleuchtung | G42: 1.6 | AC42: insbesondere bei Biomasse- und Hackschnitzelheizungen Strom für Förderschnecken, | BB42: Gebläse | BH42: 1 | BK42: 1.5 | BM42: kW | BO42: 8 | BQ42: h | BS42: 20 | BU42: d | BW42: =BH42*BK42*BO42*BS42 -> 240 | BY42: kWh | CB42: Zu/-Abschlagwerte für andere Ausführungen | DB42: Beleuchtung | DG42: =SUM(BV23:BX24) -> 2
B43: Reinigung | G43: 0.6 | AC43: Antriebe und der Steuerung benötigt. | BB43: Schrotmühle | BH43: 1 | BK43: 10.5 | BM43: kW | BO43: 1.5 | BQ43: h | BS43: 180 | BU43: d | BW43: =BH43*BK43*BO43*BS43 -> 2835 | BY43: kWh | CC43: ohne WRG | CQ43: 0.2 | CV43: 0.25 | DB43: Reinigung | DG43: =BV26 -> 1
B44: Entmistung | G44: 0.2 | AC44: - | AD44: Einbau hocheffizienter Antriebe und Pumpen | BM44: kW | BQ44: h | BU44: d | BY44: kWh | CC44: ohne Liegeflächenabdeckung | CQ44: 0.4 | CV44: 0.4 | DB44: Entmistung | DG44: =BV28 -> 0
B45: Betriebsstrom | G45: 1.4 | BM45: kW | BQ45: h | BU45: d | BY45: kWh | CC45: geringe Dämmung + Sonstige Verlustquellen | CQ45: 0.4 | DB45: Betriebsstrom | DG45: =BV30 -> 1
B46: Sonstige | G46: 1.2 | AB46: Beleuchtung --> Umrüstung auf LED | BM46: kW | BQ46: h | BU46: d | BY46: kWh | CB46: Gesamt pro Platz | CQ46: =CQ39+(CQ39*CQ43)+(CQ39*CQ44)+(CQ39*CQ45) -> 200 | CT46: kWh | CV46: =CV39+(CV39*CV43)+(CV39*CV44)+(CV39*CV45) -> 132 | CY46: kWh | DB46: Sonstige | DG46: =BV32 -> 2
BW47: =SUM(BW41:BX46) -> 3907 | BY47: kWh | CB47: Gesamt | CQ47: =CQ46*K4 -> 80000 | CT47: kWh | CV47: =CV46*K4 -> 52800 | CY47: kWh
AC48: Lüftung: siehe Ferkelerzeugung
AY49: FA.2 | BY49: FA.3 | CY49: FA.4

Sheet MS
A1: Energie-Check | F1: =Betriebsübersicht!F1 -> V 1.0 | J1: Schweinemast | P1: Ergebnisblatt | AA1: Energie-Check | AF1: =Betriebsübersicht!F1 -> V 1.0 | AJ1: Schweinemast | AP1: Infoblatt | BA1: Energie-Check | BF1: =Betriebsübersicht!F1 -> V 1.0 | BJ1: Schweinemast | BP1: Eingabeblatt 1 | CA1: Energie-Check | CF1: =Betriebsübersicht!F1 -> V 1.0 | CJ1: Schweinemast | CP1: Eingabeblatt 2 | DA1: Energie-Check | DF1: =Betriebsübersicht!F1 -> V 1.0 | DJ1: Schweinemast | DP1: Ergebnisblatt Vgl. SOLL - IST
BA2: Detailbetrachtung | CA2: Detailbetrachtung | DA2: Detailbetrachtung
AB3: Eingabefelder | AI3: Felder für die Eingabe betrieblicher Daten | BA3: Berechnung Stromverbrauch - Technische Ausstattung | CA3: Berechnung Stromverbrauch - Technische Ausstattung
J4: Mastplätze | K4: =Betriebsübersicht!V33 -> 200 | Q4: Abrechnungsjahr | V4: =Energieeinsatz!AV4 -> 2021 | AB4: berechnete Felder | AI4: Felder die vom Programm berechnet werden | BQ4: Abrechnungsjahr | BV4: =V4 -> 2021 | CQ4: Abrechnungsjahr | CV4: =V4 -> 2021 | DJ4: Mastplätze | DK4: =Betriebsübersicht!V33 -> 200 | DQ4: Abrechnungsjahr | DV4: =V4 -> 2021
AB5: Werte | AI5: Werte die aus Eingebefeldern übernommen wurden bzw.
K6: Strom | T6: Wärme | AJ6: - | AK6: Felder mit hinterlegten Werten | BB6: Sollwerte: durchschnittliche Verbrauchskennzahlen aus zeitgemäßen Tiehaltungsanlagen | CA6: Der Stromverbrauch der Lüftungsanlage ist im Wesentlichen Abhängig von baulichen und | DK6: Strom | DT6: Wärme
D7: Gesamtverbrauch | K7: ='Abgrenzung BZ'!AI8 -> 83100 | N7: kWh | T7: ='Abgrenzung BZ'!AV8 -> 184000 | W7: kWh | AJ7: - | AK7: Felder mit hinterlegten Faktoren | BB7: Istwerte: | BE7: Bitte hier betriebliche Daten eintragen, Sollwert kann als Anhaltspunkt dienen. | CB7: technischen Ausführung. | DD7: pro Mastplatz - SOLL | DK7: =BQ36 -> 64.64 | DN7: kWh | DT7: =CQ40 -> 25 | DW7: kWh
B8: davon | D8: Schweinemast | K8: ='Abgrenzung BZ'!AI17 -> 5000 | N8: kWh | P8: =K8/K7 -> 0.06016847172 | T8: ='Abgrenzung BZ'!AV17 -> 6000 | W8: kWh | Y8: =T8/T7 -> 0.03260869565 | BE8: Falls keine Messwerte vorhanden, Schätzwerte eingeben! | CA8: Unter Berechnung Lüftungsstrombedarf ist eine für das Produktionsverfahren | DD8: pro Mastplatz - IST | DK8: =BV36 -> 51.5 | DN8: kWh | DP8: =DK8/DK7 -> 0.796720297 | DT8: =CV46 -> 27.5 | DW8: kWh | DY8: =DT8/DT7 -> 1.1
A9: Anteil am Gesamtverbrauch | BE9: Eingabefelder | BL9: berechnete Felder | BS9: Werte | CB9: Schweinemast typische und energetisch effiziente Ausführung dargestellt.
AA10: Der Energiebedarf in Schweinemastställen wird im Wesentlichen durch die Lüftung, Fütterung | BA10: pro Mastplatz | BS10: Verbrauchswert | CA10: Durch Eingabe von Zu-/und Abschlagswerten kann der Stromverbrauch der Praxisanlage
AB11: und Futteraufbereitung bestimmt. Bei Betrieben mit Abluftreinigungsanlagen erhöht sich | BQ11: SOLL | BV11: IST | CB11: berechnet werden.
AB12: der Energiebedarf durch Umwälzpumpen, aber auch durch höhere Druckverluste bei der
AB13: Stallklimatisierung. | BB13: Lüftung: *) | BP13: Lüftungsanlage | BQ13: =CV32 -> 38.34 | BT13: kWh | BV13: 30 | BY13: kWh | CA13: Berechnung Lüftungsstrombedarf
AA14: Der Gesamtstromverbrauch (ohne Futteraufbereitung) der konventionell wirtschaftenden | CB14: Lüftungsanlage:
AB15: Mastbetriebe ohne Abluftreinigung liegt durchschnittlich bei 35 kWh pro Mastplatz und | BA15: *) Berechnung Lüftungsstrombedarf -> siehe Eingabeblatt 2 | CE15: Zuluftführung | CJ15: Abluftführung | CP15: Kamin | CV15: Regelungstechnik
AB16: Jahr, mit Abluftreinigung durchschnittlich bei 60 kWh pro Mastplatz und Jahr. | CE16: Lochplatten | CJ16: Oberflur zentral | CP16: gerade Ausführung | CZ16: Frequenzregelung
AA17: Zum Aufheizen von Stallabteilen vor der Neubelegung werden meist Heizkanonen (direkte | BB17: Fütterung: | BP17: Trockenfütterung | BQ17: 1 | BT17: kWh | BY17: kWh
AB18: Lufterwärmung) eingesetzt. Sie sind relativ günstig in der Anschaffung und haben ein großes | BP18: Flüssigfütterung | BQ18: 2.3 | BT18: kWh | BV18: 2.5 | BY18: kWh | CQ18: 18 | CT18: kWh
AB19: Leistungsspektrum. | BP19: pneumatisches Fütterungssystem | BQ19: 9.3 | BT19: kWh | BY19: kWh | CB19: Zu-/Abschlagwerte für andere Ausführungen
CE20: Futtergang | CJ20: Unterflur zentral | CP20: Weitwurfdüse | CV20: Phasenanschnitt
BB21: Futteraufbereitung: | BP21: Mahl- und Mischanlage | BQ21: 9.2 | BT21: kWh | BV21: 4 | BY21: kWh | CE21: -0.24 | CJ21: 0.42 | CP21: 0.49 | CV21: 0.65
K22: Strom | T22: Wärme | AA22: Handlungsempfehlungen: | CE22: Strahllüftung | CJ22: Oberflur dezentral | CP22: Regenhaube | CV22: Traforegelung
D23: pro Mastplatz - SOLL *) | K23: 35 | N23: kWh | T23: 25 | W23: kWh | BB23: Beleuchtung: | BH23: 2 | BI23: h/d | BP23: Leuchtstoffröhren | BQ23: 1.3 | BT23: kWh | BV23: 2 | BY23: kWh | CE23: -0.1 | CJ23: -0.42 | CP23: 0.44 | CV23: 0.45 | DG23: Soll
D24: pro Mastplatz - IST | K24: =K8/$K$4 -> 25 | N24: kWh | P24: =K24/K23 -> 0.7142857143 | T24: =T8/K4 -> 30 | W24: kWh | Y24: =T24/T23 -> 1.2 | AA24: Die höchsten Energieeinsparmöglichkeiten in zwangsbelüfteten Stallanlagen für die | BP24: LED-Leuchten | BQ24: 0.3 | BT24: kWh | BY24: kWh | CE24: Porendecke | CP24: Einströmdüse | CV24: EC-Motor | DG24: kWh | EG24: IST | EK24: Soll
A25: *) ohne Abluftreinigung | AB25: Schweinehaltung liegen bei der Stallklimatisierung. Mit optimaler Dimensionierung und | CE25: 0.2 | CP25: -0.07 | CV25: -0.05 | DB25: Lüftung | DG25: 25 | EB25: =DB35 -> 0 | EC25: =DC35 -> 0 | ED25: =DD35 -> 0 | EE25: =DE35 -> 0 | EF25: =DF35 -> 0 | EG25: =DG49 -> 0 | EK25: =DG35 -> 0
AB26: strömungstechnisch günstiger Gestaltung der Luftführungen, sowie mit dem Einsatz | BB26: Reinigung: | BP26: Hochdruckreiniger (HDR) | BQ26: 0.3 | BT26: kWh | BV26: 1 | BY26: kWh | CP26: Diffusor | DB26: Fütterung | DG26: 2 | EB26: =DB34 -> 0 | EC26: =DC34 -> 0 | ED26: =DD34 -> 0 | EE26: =DE34 -> 0 | EF26: =DF34 -> 0 | EG26: =DG48 -> 0 | EK26: =DG34 -> 0
AB27: moderner Regelungstechnik, wie Frequenzregelung und EC-Technik, kann der | CP27: -0.17 | DB27: Mahl-/Mischanlage | DG27: 9 | EB27: =DB33 -> Abluftreinigung | EC27: =DC33 -> 0 | ED27: =DD33 -> 0 | EE27: =DE33 -> 0 | EF27: =DF33 -> 0 | EG27: =DG47 -> 10 | EK27: =DG33 -> 12
AB28: Gesamtstromverbrauch um bis zu 60 % und mehr reduziert werden. | BB28: Entmistung: | BP28: Güllerührwerk /-pumpe | BQ28: 2 | BT28: kWh | BY28: kWh | DB28: Beleuchtung | DG28: 1 | EB28: =DB32 -> Sonstige | EC28: =DC32 -> 0 | ED28: =DD32 -> 0 | EE28: =DE32 -> 0 | EF28: =DF32 -> 0 | EG28: =DG46 -> 1 | EK28: =DG32 -> 1
CE29: 0.2 | CP29: 0.48 | CV29: -0.05 | DB29: Reinigung | DG29: 0.5 | EB29: =DB31 -> Betriebsstrom | EC29: =DC31 -> 0 | ED29: =DD31 -> 0 | EE29: =DE31 -> 0 | EF29: =DF31 -> 0 | EG29: =DG45 -> 1 | EK29: =DG31 -> 0.5
AA30: In den Praxisställen sind meist Leuchtstoffröhren zur Beleuchtung der Abteile eingebaut. Die | BB30: Betriebsstrom Heizung: | BP30: Umwälzpumpen, ... | BQ30: 0.2 | BT30: kWh | BV30: 1 | BY30: kWh | DB30: Entmistung | DG30: 0 | EB30: =DB30 -> Entmistung | EC30: =DC30 -> 0 | ED30: =DD30 -> 0 | EE30: =DE30 -> 0 | EF30: =DF30 -> 0 | EG30: =DG44 -> 0 | EK30: =DG30 -> 0
AB31: Tierschutz-Nutztierhaltungsverordnung (TierSchNutzV) sieht eine Beleuchtungsstärke im | CE31: Abluftreinigung | CP31: Verbrauchswert - SOLL | DB31: Betriebsstrom | DG31: 0.5 | EB31: =DB29 -> Reinigung | EC31: =DC29 -> 0 | ED31: =DD29 -> 0 | EE31: =DE29 -> 0 | EF31: =DF29 -> 0 | EG31: =DG43 -> 1 | EK31: =DG29 -> 0.5
AB32: Aufenthaltsbereich der Tiere von mindestens 80 Lux, über 8 Stunden, die dem | BB32: Sonstige: | BP32: Stallbüro, Elektroboiler, Kühlschränke, … | BQ32: 1 | BT32: kWh | BV32: 1 | BY32: kWh | CE32: 0.5 | CJ32: 0.5 | CU32: Lüftungsanlage | CV32: =CQ18+(CQ18*CE29)+(CQ18*CJ29)+(CQ18*CP29)+(CQ18*CV29)+(CQ18*CJ32) -> 38.34 | CY32: kWh | DB32: Sonstige | DG32: 1 | EB32: =DB28 -> Beleuchtung | EC32: =DC28 -> 0 | ED32: =DD28 -> 0 | EE32: =DE28 -> 0 | EF32: =DF28 -> 0 | EG32: =DG42 -> 2 | EK32: =DG28 -> 1
AB33: Tagesrhythmus angepasst ist, vor. Der Einsatz von Lichtreflektoren ist Stand der Technik. | DB33: Abluftreinigung | DG33: 12 | EB33: =DB27 -> Mahl-/Mischanlage | EC33: =DC27 -> 0 | ED33: =DD27 -> 0 | EE33: =DE27 -> 0 | EF33: =DF27 -> 0 | EG33: =DG41 -> 4 | EK33: =DG27 -> 9
AB34: Sie verbessern den Lampenwirkungsgrad durch die gezielte Lichtabgabe in die | BB34: Abluftreinigung: | BP34: Wäscher, Umwälzpumpen | BQ34: 12 | BT34: kWh | BV34: 10 | BY34: kWh | CW34: Zurück | EB34: =DB26 -> Fütterung | EC34: =DC26 -> 0 | ED34: =DD26 -> 0 | EE34: =DE26 -> 0 | EF34: =DF26 -> 0 | EG34: =DG40 -> 2.5 | EK34: =DG26 -> 2
AB35: Beleuchtungsebene. Ein Austausch der Leuchtmittel mit LED-Technik kann den | CA35: Berechnung Wärmebedarf - SOLL: | EB35: =DB25 -> Lüftung | EC35: =DC25 -> 0 | ED35: =DD25 -> 0 | EE35: =DE25 -> 0 | EF35: =DF25 -> 0 | EG35: =DG39 -> 30 | EK35: =DG25 -> 25
AB36: Energieverbrauch deutlich reduzieren. | BB36: Gesamt pro Platz | BQ36: =IF(CJ32>0.001,BQ34,0)+BQ13+BQ18+IF(BV21>0.001,BQ21,0)+BQ23+BQ26+BQ30+BQ32 -> 64.64 | BT36: kWh | BV36: =SUM(BV13:BX34) -> 51.5 | BY36: kWh | CB36: pro Mastplatz | CS36: Verbrauchswert
BB37: Gesamt | BQ37: =BQ36*K4 -> 12928 | BT37: kWh | BV37: =BV36*K4 -> 10300 | BY37: kWh | DG37: IST
G38: kWh | AA38: Der Energiebedarf bei der Fütterung und Futteraufbereitung ist abhängig vom | CB38: Heizung: Warmwasser und Gaskanonen | CQ38: SOLL | CV38: IST | DG38: kWh
B39: Lüftung | G39: 25 | AB39: Fütterungssystem. Bei Trockenfütterungsanlagen ist der energetische Aufwand geringer als | BA39: Berechnungshilfe elektrische Energie: | CB39: gut gedämmtes Stallgebäude | DB39: Lüftung | DG39: =BV13 -> 30
B40: Fütterung | G40: 2 | AB40: bei Flüssigfütterungsanlagen und deutlich geringer als bei pneumatischen Systemen. | BB40: Hier kann mittels Leistung und Laufzeit der Jahresstromverbrauch der einzelnen | CB40: Gesamt pro Platz | CP40: Stallheizung | CQ40: 25 | CT40: kWh | CV40: 22 | CY40: kWh | DB40: Fütterung | DG40: =SUM(BV17:BX19) -> 2.5
B41: Mahl-/Mischanlage | G41: =BV21 -> 4 | BB41: Systemkomponenten berechnet werden. | CB41: Gesamt | CQ41: =CQ40*K4 -> 5000 | CT41: kWh | DB41: Mahl-/Mischanlage | DG41: =BV21 -> 4
B42: Beleuchtung | G42: 1 | AA42: Weiterer Energieverbrauch in schweinehaltenden Betrieben wird von Entmistungsanlagen und | BB42: Verbraucher | BH42: Anzahl | BK42: Leistung | BO42: Laufzeit | BS42: Tage | BW42: Strom | DB42: Beleuchtung | DG42: =SUM(BV23:BX24) -> 2
B43: Reinigung | G43: 0.5 | AB43: Reinigungsgeräten, sowie sonstigen Stromverbrauchern für den Verwaltungs- und | BB43: HDR | BH43: 1 | BK43: 2.6 | BM43: kW | BO43: 6 | BQ43: h | BS43: 80 | BU43: d | BW43: =BH43*BK43*BO43*BS43 -> 1248 | BY43: kWh | CB43: Zu/-Abschlagwerte für andere Ausführungen | DB43: Reinigung | DG43: =BV26 -> 1
B44: Entmistung | G44: =BV28 -> 0 | AB44: Betriebsablauf verursacht. | BB44: Gebläse | BH44: 1 | BK44: 1.5 | BM44: kW | BO44: 8 | BQ44: h | BS44: 10 | BU44: d | BW44: =BH44*BK44*BO44*BS44 -> 120 | BY44: kWh | CC44: ohne WRG | CQ44: 0.25 | CV44: 0.25 | DB44: Entmistung | DG44: =BV28 -> 0
B45: Betriebsstrom | G45: 0.5 | BB45: Schrotmühle | BH45: 1 | BK45: 10.5 | BM45: kW | BO45: 1.5 | BQ45: h | BS45: 180 | BU45: d | BW45: =BH45*BK45*BO45*BS45 -> 2835 | BY45: kWh | CC45: ohne Liegeflächenabdeckung | CQ45: 0.4 | DB45: Betriebsstrom | DG45: =BV30 -> 1
B46: Sonstige | G46: =BV32 -> 1 | AA46: Für einen energieeffizienten Betrieb der Anlagen und Geräte ist die regelmäßige Reinigung, | BM46: kW | BQ46: h | BU46: d | BY46: kWh | CB46: Gesamt pro Platz | CQ46: =CQ40+(CQ40*CQ44)+(CQ40*CQ45) -> 41.25 | CT46: kWh | CV46: =CV40+(CV40*CV44)+(CV40*CV45) -> 27.5 | CY46: kWh | DB46: Sonstige | DG46: =BV32 -> 1
B47: Abluftreinigung | G47: 12 | AB47: Wartung und Überprüfung der Anlagen von erheblicher Bedeutung. | BW47: =SUM(BW43:BX46) -> 4203 | BY47: kWh | CB47: Gesamt | CQ47: =CQ46*K4 -> 8250 | CT47: kWh | CV47: =CV46*K4 -> 5500 | CY47: kWh | DB47: Abluftreinigung | DG47: =BV34 -> 10
AY49: MS.2 | BY49: MS.3 | CY49: MS.4

Sheet MS A
A1: Energie-Check | F1: =Betriebsübersicht!F1 -> V 1.0 | J1: Schweinemast A | P1: Ergebnisblatt | AA1: Energie-Check | AF1: =Betriebsübersicht!F1 -> V 1.0 | AJ1: Schweinemast A | AP1: Infoblatt | BA1: Energie-Check | BF1: =Betriebsübersicht!F1 -> V 1.0 | BJ1: Schweinemast A | BP1: Eingabeblatt 1 | CA1: Energie-Check | CF1: =Betriebsübersicht!F1 -> V 1.0 | CJ1: Schweinemast A | CP1: Ergebnisblatt Vgl. SOLL - IST
BA2: Detailbetrachtung | CA2: Detailbetrachtung
AB3: Eingabefelder | AI3: Felder für die Eingabe betrieblicher Daten | BA3: Berechnung Stromverbrauch - Technische Ausstattung
A4: Außenklimastall | J4: Mastplätze | K4: =Betriebsübersicht!V33 -> 200 | Q4: Abrechnungsjahr | V4: =Energieeinsatz!AV4 -> 2021 | AB4: berechnete Felder | AI4: Felder die vom Programm berechnet werden | BQ4: Abrechnungsjahr | BV4: =V4 -> 2021 | CA4: Außenklimastall | CJ4: Mastplätze | CK4: =Betriebsübersicht!V33 -> 200 | CQ4: Abrechnungsjahr | CV4: =V4 -> 2021
AB5: Werte | AI5: Werte die aus Eingebefeldern übernommen wurden bzw.
K6: Strom | T6: Wärme | AJ6: - | AK6: Felder mit hinterlegten Werten | BB6: Sollwerte: durchschnittliche Verbrauchskennzahlen aus zeitgemäßen Tiehaltungsanlagen | CK6: Strom | CT6: Wärme
D7: Gesamtverbrauch | K7: ='Abgrenzung BZ'!AI8 -> 83100 | N7: kWh | T7: ='Abgrenzung BZ'!AV8 -> 184000 | W7: kWh | AJ7: - | AK7: Felder mit hinterlegten Faktoren | BB7: Istwerte: | BE7: Bitte hier betriebliche Daten eintragen, Sollwert kann als Anhaltspunkt dienen. | CD7: pro Mastplatz - SOLL | CK7: =BQ34 -> 15.5 | CN7: kWh | CT7: =BQ42 -> 14 | CW7: kWh
B8: davon | D8: Schweinemast | K8: ='Abgrenzung BZ'!AI18 -> 2000 | N8: kWh | P8: =K8/K7 -> 0.02406738869 | T8: ='Abgrenzung BZ'!AV18 -> 3000 | W8: kWh | Y8: =T8/T7 -> 0.01630434783 | BE8: Falls keine Messwerte vorhanden, Schätzwerte eingeben! | CD8: pro Mastplatz - IST | CK8: =BV34 -> 25 | CN8: kWh | CP8: =CK8/CK7 -> 1.612903226 | CT8: =BV42 -> 18 | CW8: kWh | CY8: =CT8/CT7 -> 1.285714286
A9: Anteil am Gesamtverbrauch | BE9: Eingabefelder | BL9: berechnete Felder | BS9: Werte
AA10: Außenklimastall | BA10: Außenklimastall
AA12: Bei Außenklimaställen bzw. frei gelüfteten Ställen entsteht aufgrund des Haltungsverfahrens, | BA12: pro Mastplatz | BS12: Verbrauchswert
AB13: meist mit unterschiedlichen Klimazonen (eingestreute Stallfläche, Liegekojen und Auslauf) | BA13: Stromverbrauch | BQ13: SOLL | BV13: IST
AB14: kein Energieaufwand für die Lüftung.
AA15: In Kaltställen ohne Einstreu werden jedoch häufig die Liegeflächen beheizt. | BB15: Frostsicherung | BP15: Wasserleitungen, Tränken | BQ15: 2 | BT15: kWh | BV15: 6 | BY15: kWh
AA16: Der Energieaufwand für die Frostsicherung der Wasserleitungen und Tränken, sowie für die
AB17: Entmistung (Festmist + Abschieben des Auslaufs mit mobilen oder stationären | BB17: Fütterung: | BP17: Trockenfütterung | BQ17: 1 | BT17: kWh | BV17: 1 | BY17: kWh
AB18: Entmistungssystemen) ist jedoch deutlich höher einzustufen. | BP18: Flüssigfütterung | BQ18: 2.3 | BT18: kWh | BY18: kWh
BP19: pneumatisches Fütterungssystem | BQ19: 9.3 | BT19: kWh | BY19: kWh
AA21: Handlungsempfehlungen: | BB21: Futteraufbereitung: | BP21: Mahl- und Mischanlage | BQ21: 9.2 | BT21: kWh | BV21: 10 | BY21: kWh
K22: Strom | T22: Wärme | AB22: - | AC22: Heizanlagen wenn möglich auf regenerative Energieträger umstellen.
D23: pro Mastplatz - SOLL | K23: 8 | N23: kWh | T23: =BQ42 -> 14 | W23: kWh | AB23: - | AC23: regelmäßige Wartung der Anlagen insbesondere der Fütterungs- und | BB23: Beleuchtung: | BH23: 2 | BI23: h/d | BP23: Leuchtstoffröhren | BQ23: 1.3 | BT23: kWh | BV23: 2 | BY23: kWh | CG23: Soll
D24: pro Mastplatz - IST | K24: =K8/$K$4 -> 10 | N24: kWh | P24: =K24/K23 -> 1.25 | T24: =T8/K4 -> 15 | W24: kWh | Y24: =T24/T23 -> 1.071428571 | AE24: Futteraufbereitungsanlagen | BP24: LED-Leuchten | BQ24: 0.3 | BT24: kWh | BY24: kWh | CG24: kWh | DG24: IST | DK24: Soll
AB25: - | AC25: Beleuchtung: Umrüstung auf LED | CB25: Frostsicherung | CG25: 2 | DB25: =CB35 -> 0 | DC25: =CC35 -> 0 | DD25: =CD35 -> 0 | DE25: =CE35 -> 0 | DF25: =CF35 -> 0 | DG25: =CG49 -> 0 | DK25: =CG35 -> 0
AB26: - | AC26: frostsichere Verlegung der Wasserleitungen | BB26: Reinigung: | BP26: Hochdruckreiniger (HDR) | BQ26: 0.8 | BT26: kWh | BV26: 2 | BY26: kWh | CB26: Fütterung | CG26: 1 | DB26: =CB34 -> 0 | DC26: =CC34 -> 0 | DD26: =CD34 -> 0 | DE26: =CE34 -> 0 | DF26: =CF34 -> 0 | DG26: =CG48 -> 0 | DK26: =CG34 -> 0
AB27: - | AC27: Einbau hocheffizienter Antriebe und Pumpen | CB27: Mahl-/Mischanlage | CG27: 9 | DB27: =CB33 -> 0 | DC27: =CC33 -> 0 | DD27: =CD33 -> 0 | DE27: =CE33 -> 0 | DF27: =CF33 -> 0 | DG27: =CG47 -> 0 | DK27: =CG33 -> 0
BB28: Entmistung: | BP28: Güllerührwerk /-pumpe | BQ28: 2 | BT28: kWh | BY28: kWh | CB28: Beleuchtung | CG28: 2 | DB28: =CB32 -> Sonstige | DC28: =CC32 -> 0 | DD28: =CD32 -> 0 | DE28: =CE32 -> 0 | DF28: =CF32 -> 0 | DG28: =CG46 -> 2 | DK28: =CG32 -> 2
CB29: Reinigung | CG29: 1 | DB29: =CB31 -> Betriebsstrom | DC29: =CC31 -> 0 | DD29: =CD31 -> 0 | DE29: =CE31 -> 0 | DF29: =CF31 -> 0 | DG29: =CG45 -> 2 | DK29: =CG31 -> 1
BB30: Betriebsstrom Heizung: | BP30: Umwälzpumpen, ... | BQ30: 1 | BT30: kWh | BV30: 2 | BY30: kWh | CB30: Entmistung | CG30: 0 | DB30: =CB30 -> Entmistung | DC30: =CC30 -> 0 | DD30: =CD30 -> 0 | DE30: =CE30 -> 0 | DF30: =CF30 -> 0 | DG30: =CG44 -> 0 | DK30: =CG30 -> 0
CB31: Betriebsstrom | CG31: 1 | DB31: =CB29 -> Reinigung | DC31: =CC29 -> 0 | DD31: =CD29 -> 0 | DE31: =CE29 -> 0 | DF31: =CF29 -> 0 | DG31: =CG43 -> 2 | DK31: =CG29 -> 1
BB32: Sonstige: | BP32: Stallbüro, Elektroboiler, Kühlschränke, … | BQ32: 1 | BT32: kWh | BV32: 2 | BY32: kWh | CB32: Sonstige | CG32: 2 | DB32: =CB28 -> Beleuchtung | DC32: =CC28 -> 0 | DD32: =CD28 -> 0 | DE32: =CE28 -> 0 | DF32: =CF28 -> 0 | DG32: =CG42 -> 2 | DK32: =CG28 -> 2
DB33: =CB27 -> Mahl-/Mischanlage | DC33: =CC27 -> 0 | DD33: =CD27 -> 0 | DE33: =CE27 -> 0 | DF33: =CF27 -> 0 | DG33: =CG41 -> 10 | DK33: =CG27 -> 9
BB34: Gesamt pro Platz | BQ34: =BQ15+BQ17+IF(BV21>0.001,BQ21,0)+BQ23+BQ30+BQ32 -> 15.5 | BT34: kWh | BV34: =SUM(BV15:BX32) -> 25 | BY34: kWh | DB34: =CB26 -> Fütterung | DC34: =CC26 -> 0 | DD34: =CD26 -> 0 | DE34: =CE26 -> 0 | DF34: =CF26 -> 0 | DG34: =CG40 -> 1 | DK34: =CG26 -> 1
BB35: Gesamt | BQ35: =BQ34*K4 -> 3100 | BT35: kWh | BV35: =BV34*K4 -> 5000 | BY35: kWh | DB35: =CB25 -> Frostsicherung | DC35: =CC25 -> 0 | DD35: =CD25 -> 0 | DE35: =CE25 -> 0 | DF35: =CF25 -> 0 | DG35: =CG39 -> 6 | DK35: =CG25 -> 2
AA36: Berechnungshilfe elektrische Energie:
AB37: Hier kann mittels Leistung und Laufzeit der Jahresstromverbrauch der einzelnen | CG37: IST
G38: kWh | AB38: Systemkomponenten berechnet werden. | BA38: Berechnung Wärmebedarf - SOLL: | CG38: kWh
B39: Frostsicherung | G39: 2 | AB39: Verbraucher | AH39: Anzahl | AK39: Leistung | AO39: Laufzeit | AS39: Tage | AW39: Strom | BC39: pro Mastplatz | BS39: Verbrauchswert | CB39: Frostsicherung | CG39: =BV15 -> 6
B40: Fütterung | G40: =BV17+BV18+BV19 -> 1 | AB40: HDR | AH40: 1 | AK40: 2.6 | AM40: kW | AO40: 6 | AQ40: h | AS40: 80 | AU40: d | AW40: =AH40*AK40*AO40*AS40 -> 1248 | AY40: kWh | BB40: Heizung: Warmwasser - Ruhebereich | BQ40: SOLL | BV40: IST | CB40: Fütterung | CG40: =SUM(BV17:BX19) -> 1
B41: Mahl-/Mischanlage | AB41: Gebläse | AH41: 1 | AK41: 1.5 | AM41: kW | AO41: 8 | AQ41: h | AS41: 10 | AU41: d | AW41: =AH41*AK41*AO41*AS41 -> 120 | AY41: kWh | CB41: Mahl-/Mischanlage | CG41: =BV21 -> 10
B42: Beleuchtung | G42: =BV23+BV24 -> 2 | AB42: Schrotmühle | AH42: 1 | AK42: 10.5 | AM42: kW | AO42: 1.5 | AQ42: h | AS42: 180 | AU42: d | AW42: =AH42*AK42*AO42*AS42 -> 2835 | AY42: kWh | BB42: Gesamt pro Platz | BP42: Liegebereichsheizung | BQ42: 14 | BT42: kWh | BV42: 18 | BY42: kWh | CB42: Beleuchtung | CG42: =SUM(BV23:BX24) -> 2
B43: Reinigung | G43: 1 | AM43: kW | AQ43: h | AU43: d | AY43: kWh | BB43: Gesamt | BQ43: =BQ42*K4 -> 2800 | BT43: kWh | BV43: =BV42*K4 -> 3600 | BY43: kWh | CB43: Reinigung | CG43: =BV26 -> 2
B44: Entmistung | G44: =BV28 -> 0 | AM44: kW | AQ44: h | AU44: d | AY44: kWh | CB44: Entmistung | CG44: =BV28 -> 0
B45: Betriebsstrom | G45: 1 | AM45: kW | AQ45: h | AU45: d | AY45: kWh | BA45: Berechnung Dieselverbrauch Entmistung - SOLL: | CB45: Betriebsstrom | CG45: =BV30 -> 2
B46: Sonstige | G46: =BV32 -> 2 | AW46: =SUM(AW40:AX45) -> 4203 | AY46: kWh | BI46: Dieselverbrauch | BO46: Dauer | BS46: Tage | BW46: Diesel | CB46: Sonstige | CG46: =BV32 -> 2
BB47: Schlepper / Hoftruck | BI47: 12 | BK47: Liter/h | BO47: 0.5 | BQ47: h | BS47: 180 | BU47: d | BW47: =BI47*BO47*BS47 -> 1080 | BY47: Liter
BR48: pro Mastplatz | BW48: =BW47/K4 -> 5.4 | BY48: Liter
AY49: MSA.2 | BY49: MSA.3

Sheet LH
A1: Energie-Check | F1: =Betriebsübersicht!F1 -> V 1.0 | J1: Legehennen | P1: Ergebnisblatt | AA1: Energie-Check | AF1: =Betriebsübersicht!F1 -> V 1.0 | AJ1: Legehennen | AP1: Eingabeblatt 1 | BA1: Energie-Check | BF1: =Betriebsübersicht!F1 -> V 1.0 | BJ1: Legehennen | BP1: Ergebnisblatt Vgl. SOLL - IST
AA2: Detailbetrachtung | BA2: Detailbetrachtung
J4: Anzahl Legehennen | K4: =Betriebsübersicht!J37 -> 8000 | Q4: Abrechnungsjahr | V4: =Energieeinsatz!AV4 -> 2021 | AA4: Unterscheidung in Stallhaltung und Mobil+Auslauf | AQ4: Abrechnungsjahr | AV4: =V4 -> 2021 | BJ4: Mastplätze | BK4: =Betriebsübersicht!J37 -> 8000 | BQ4: Abrechnungsjahr | BV4: =V4 -> 2021
K6: Strom | T6: Diesel | AB6: Sollwerte: durchschnittliche Verbrauchskennzahlen aus zeitgemäßen Tiehaltungsanlagen | BI6: Strom - Stallhaltung | BR6: Strom - Mobil + Auslauf
D7: Gesamtverbrauch | K7: ='Abgrenzung BZ'!AI8 -> 83100 | N7: kWh | T7: ='Abgrenzung BZ'!AO8 -> 24000 | W7: kWh | AB7: Istwerte: | AE7: Bitte hier betriebliche Daten eintragen, Sollwert kann als Anhaltspunkt dienen. | BD7: pro Hennenplatz - SOLL | BK7: =AQ33 -> 2.42 | BN7: kWh | BT7: =AQ36 -> 0.2657142857 | BW7: kWh
B8: davon | D8: Legehennen | K8: ='Abgrenzung BZ'!AI19 -> 2000 | N8: kWh | P8: =K8/K7 -> 0.02406738869 | T8: ='Abgrenzung BZ'!AO19 -> 200 | W8: kWh | Y8: =T8/T7 -> 0.008333333333 | AE8: Falls keine Messwerte vorhanden, Schätzwerte eingeben! | BD8: pro Hennenplatz - IST | BK8: =AV33 -> 2.43 | BN8: kWh | BP8: =BK8/BK7 -> 1.004132231 | BT8: =AV36 -> 2.43 | BW8: kWh | BY8: =BT8/BT7 -> 9.14516129
A9: Anteil am Gesamtverbrauch | AE9: Eingabefelder | AL9: berechnete Felder | AS9: Werte
AA11: Berechnung Stromverbrauch - Technische Ausstattung:
AB12: pro Hennenplatz | AS12: Verbrauchswert
AQ13: SOLL | AV13: IST
AB15: Lüftung (Stallhaltung) | AP15: Lüftungsanlage | AQ15: 1.11 | AT15: kWh | AV15: 1 | AY15: kWh
AB17: Frostsicherung (Mobilstall) | AP17: Wasserleitungen, Tränken | AQ17: 0.1 | AT17: kWh | AY17: kWh
AB19: Fütterung: | AP19: Fertigfutter | AQ19: 0.04 | AT19: kWh | AV19: 0.1 | AY19: kWh
AB21: Beleuchtung: | AH21: 14 | AI21: h/d | AP21: Leuchtstoffröhren | AQ21: 0.3 | AT21: kWh | AV21: 0.2 | AY21: kWh
I22: Strom - Stallhaltung | R22: Strom - Mobil + Auslauf | AP22: LED-Leuchten | AQ22: 0.07 | AT22: kWh | AY22: kWh | BF22: kWh
D23: pro Hennenplatz - SOLL *) | K23: 1.5 | N23: kWh | T23: 0.3 | W23: kWh | AC23: Beleuchtungsdauer - Stallhaltung: ca. 14 h/d - Mobil + Auslauf: ca. 4 h/d) | BF23: Soll | BH23: Soll
D24: pro Hennenplatz - IST | K24: =K8/$K$4 -> 0.25 | N24: kWh | P24: =K24/K23 -> 0.1666666667 | T24: =K8/K4 -> 0.25 | W24: kWh | Y24: =T24/T23 -> 0.8333333333 | BF24: Stall | BH24: Mobil | CG24: IST | CK24: Soll S | CM24: Soll M
A25: *) ohne Abluftreinigung | AB25: Reinigung: | AP25: Hochdruckreiniger (HDR) | AQ25: 0.01 | AT25: kWh | AV25: 0.01 | AY25: kWh | BA25: Lüftung | BF25: 1.1 | CB25: =BB35 -> 0 | CC25: =BC35 -> 0 | CD25: =BD35 -> 0 | CE25: =BE35 -> 0 | CF25: =BF35 -> 0 | CG25: =BG49 -> 0 | CK25: =BG35 -> 0
BA26: Frostsicherung | BH26: 0.1 | CB26: =BB34 -> 0 | CC26: =BC34 -> 0 | CD26: =BD34 -> 0 | CE26: =BE34 -> 0 | CF26: =BF34 -> 0 | CG26: =BG48 -> 0 | CK26: =BG34 -> 0
AB27: Entmistung: | AP27: Kotband | AQ27: 0.02 | AT27: kWh | AV27: 0.02 | AY27: kWh | BA27: Fütterung | BF27: 0.04 | BH27: 0.04 | CB27: =BA33 -> 0 | CC27: =BB33 -> 0 | CD27: =BC33 -> 0 | CE27: =BD33 -> 0 | CF27: =BE33 -> 0 | CG27: =BG47 -> 0 | CK27: =BF33 -> 0
BA28: Beleuchtung | BF28: 0.3 | BH28: 0.1 | CB28: =BA32 -> Abluftreinigung | CC28: =BB32 -> 0 | CD28: =BC32 -> 0 | CE28: =BD32 -> 0 | CF28: =BE32 -> 0 | CG28: =BG46 -> 1 | CK28: =BF32 -> 0.9 | CL28: =BG32 -> 0 | CM28: 0 | CN28: 0
AB29: Eiersortiertechnik | AQ29: 0.04 | AT29: kWh | AV29: 0.1 | AY29: kWh | BA29: Reinigung | BF29: 0.01 | BH29: 0.01 | CB29: =BA31 -> Eiersortiertechnik | CC29: =BB31 -> 0 | CD29: =BC31 -> 0 | CE29: =BD31 -> 0 | CF29: =BE31 -> 0 | CG29: =BG45 -> 0.1 | CK29: =BF31 -> 0.04 | CL29: =BG31 -> 0 | CM29: 0.04 | CN29: 0
BA30: Entmistung | BF30: 0.02 | BH30: 0.02 | CB30: =BA30 -> Entmistung | CC30: =BB30 -> 0 | CD30: =BC30 -> 0 | CE30: =BD30 -> 0 | CF30: =BE30 -> 0 | CG30: =BG44 -> 0.02 | CK30: =BF30 -> 0.02 | CL30: =BG30 -> 0 | CM30: 0.02 | CN30: 0
AB31: Abluftreinigung: | AP31: Wäscher, Umwälzpumpen | AQ31: 0.9 | AT31: kWh | AV31: 1 | AY31: kWh | BA31: Eiersortiertechnik | BF31: 0.04 | BH31: 0.04 | CB31: =BA29 -> Reinigung | CC31: =BB29 -> 0 | CD31: =BC29 -> 0 | CE31: =BD29 -> 0 | CF31: =BE29 -> 0 | CG31: =BG43 -> 0.01 | CK31: =BF29 -> 0.01 | CL31: =BG29 -> 0 | CM31: 0.01 | CN31: 0
BA32: Abluftreinigung | BF32: 0.9 | CB32: =BA28 -> Beleuchtung | CC32: =BB28 -> 0 | CD32: =BC28 -> 0 | CE32: =BD28 -> 0 | CF32: =BE28 -> 0 | CG32: =BG42 -> 0.2 | CK32: =BF28 -> 0.3 | CL32: =BG28 -> 0 | CM32: 0.1 | CN32: 0
AB33: Gesamt pro Platz (Stallhaltung) | AQ33: =AQ15+AQ19+AQ21+AQ25+AQ27+AQ29+IF(AV31>0.001,AQ31,0) -> 2.42 | AT33: kWh | AV33: =SUM(AV15:AX31) -> 2.43 | AY33: kWh | CB33: =BA27 -> Fütterung | CC33: =BB27 -> 0 | CD33: =BC27 -> 0 | CE33: =BD27 -> 0 | CF33: =BE27 -> 0 | CG33: =BG41 -> 0.1 | CK33: =BF27 -> 0.04 | CL33: =BG27 -> 0 | CM33: 0.04 | CN33: 0
AB34: Gesamt (Stallhaltung) | AQ34: =AQ33*K4 -> 19360 | AT34: kWh | AV34: =AV33*K4 -> 19440 | AY34: kWh | CB34: =BA26 -> Frostsicherung | CC34: =BB26 -> 0 | CD34: =BC26 -> 0 | CE34: =BD26 -> 0 | CF34: =BE26 -> 0 | CG34: =BG40 -> 0 | CK34: =BF26 -> 0 | CL34: =BG26 -> 0 | CM34: 0.1 | CN34: 0
CB35: =BA25 -> Lüftung | CC35: =BB25 -> 0 | CD35: =BC25 -> 0 | CE35: =BD25 -> 0 | CF35: =BE25 -> 0 | CG35: =BG39 -> 1 | CK35: =BF25 -> 1.1 | CL35: =BG25 -> 0 | CM35: 0 | CN35: 0
AB36: Gesamt pro Platz (Mobil + Auslauf) | AQ36: =AQ17+AQ19+(AQ21/14*4)+AQ29 -> 0.2657142857 | AT36: kWh | AV36: =SUM(AV15:AX31) -> 2.43 | AY36: kWh
AB37: Gesamt (Mobil + Auslauf) | AQ37: =AQ36*K4 -> 2125.714286 | AT37: kWh | AV37: =AV36*K4 -> 19440 | AY37: kWh | BG37: IST
F38: kWh | BG38: kWh
F39: Stall | H39: Mobil | AA39: Berechnungshilfe elektrische Energie: | BA39: Lüftung | BG39: =AV15 -> 1
A40: Lüftung | F40: 1.1 | AB40: Berechnung des Stromverbrauchs mittels Leistung und Laufzeiten | BA40: Frostsicherung | BG40: =AV17 -> 0
A41: Frostsicherung | F41: =AV17 -> 0 | H41: 0.1 | AB41: Verbraucher | AH41: Anzahl | AK41: Leistung | AO41: Laufzeit | AS41: Tage | AW41: Strom | BA41: Fütterung | BG41: =AV19 -> 0.1
A42: Fütterung | F42: 0.04 | H42: 0.04 | AB42: Beleuchtung | AH42: 18 | AK42: 0.075 | AM42: kW | AO42: 4 | AQ42: h | AS42: 365 | AU42: d | AW42: =AH42*AK42*AO42*AS42 -> 1971 | AY42: kWh | BA42: Beleuchtung | BG42: =SUM(AV21:AX22) -> 0.2
A43: Beleuchtung | F43: =AV21+AV22 -> 0.2 | H43: 0.1 | AB43: Eiersortiertechnik | AH43: 1 | AK43: 0.8 | AM43: kW | AO43: 1 | AQ43: h | AS43: 365 | AU43: d | AW43: =AH43*AK43*AO43*AS43 -> 292 | AY43: kWh | BA43: Reinigung | BG43: =AV25 -> 0.01
A44: Reinigung | F44: =AV25 -> 0.01 | H44: 0.01 | AM44: kW | AQ44: h | AU44: d | AY44: kWh | BA44: Entmistung | BG44: =AV27 -> 0.02
A45: Entmistung | F45: =AV27 -> 0.02 | H45: 0.02 | AW45: =SUM(AW42:AX44) -> 2263 | AY45: kWh | BA45: Eiersortiertechnik | BG45: =AV29 -> 0.1
A46: Eiersortiertechnik | F46: 0.04 | H46: 0.04 | AA46: Handlungsempfehlungen: | BA46: Abluftreinigung | BG46: =AV31 -> 1
A47: Abluftreinigung | F47: 0.9 | AB47: Beleuchtung: Umrüstung auf LED
AB48: Frostsichere Verlegung der Wasserleitungen
AC49: Lüftung: siehe Ferkelerzeugung | AY49: LH.2

Sheet GM
A1: Energie-Check | F1: =Betriebsübersicht!F1 -> V 1.0 | J1: Geflügelmast | P1: Ergebnisblatt | AA1: Energie-Check | AF1: =Betriebsübersicht!F1 -> V 1.0 | AJ1: Geflügelmast | AP1: Eingabeblatt 1 | BA1: Energie-Check | BF1: =Betriebsübersicht!F1 -> V 1.0 | BJ1: Geflügelmast | BP1: Eingabeblatt 2 | CA1: Energie-Check | CF1: =Betriebsübersicht!F1 -> V 1.0 | CJ1: Geflügelmast | CP1: Ergebnisblatt Vgl. SOLL - IST
AA2: Detailbetrachtung | BA2: Detailbetrachtung | CA2: Detailbetrachtung
AA3: Berechnung Stromverbrauch - Technische Ausstattung | BA3: Berechnung Stromverbrauch - Technische Ausstattung
J4: Mastplätze | K4: =Betriebsübersicht!J38 -> 4000 | Q4: Abrechnungsjahr | V4: =Energieeinsatz!AV4 -> 2021 | AQ4: Abrechnungsjahr | AV4: =V4 -> 2021 | BQ4: Abrechnungsjahr | BV4: =V4 -> 2021 | CJ4: Mastplätze | CK4: =Betriebsübersicht!J38 -> 4000 | CQ4: Abrechnungsjahr | CV4: =V4 -> 2021
K6: Strom | T6: Wärme | AB6: Sollwerte: durchschnittliche Verbrauchskennzahlen aus zeitgemäßen Tiehaltungsanlagen | BA6: Der Stromverbrauch der Lüftungsanlage ist im Wesentlichen Abhängig von baulichen und | CK6: Strom | CT6: Wärme
D7: Gesamtverbrauch | K7: ='Abgrenzung BZ'!AI8 -> 83100 | N7: kWh | T7: ='Abgrenzung BZ'!AV8 -> 184000 | W7: kWh | AB7: Istwerte: | AE7: Bitte hier betriebliche Daten eintragen, Sollwert kann als Anhaltspunkt dienen. | BB7: technischen Ausführung. | CD7: pro Mastplatz - SOLL | CK7: =AQ26 -> 1.6 | CN7: kWh | CT7: =BQ40 -> 6 | CW7: kWh
B8: davon | D8: Geflügelmast | K8: ='Abgrenzung BZ'!AI20 -> 2000 | N8: kWh | P8: =K8/K7 -> 0.02406738869 | T8: ='Abgrenzung BZ'!AV20 -> 12000 | W8: kWh | Y8: =T8/T7 -> 0.0652173913 | AE8: Falls keine Messwerte vorhanden, Schätzwerte eingeben! | BA8: Unter Berechnung Lüftungsstrombedarf ist eine für das Produktionsverfahren | CD8: pro Mastplatz - IST | CK8: =AV26 -> 1.37 | CN8: kWh | CP8: =CK8/CK7 -> 0.85625 | CT8: =BV46 -> 2.5 | CW8: kWh | CY8: =CT8/CT7 -> 0.4166666667
A9: Anteil am Gesamtverbrauch | AE9: Eingabefelder | AL9: berechnete Felder | AS9: Werte | BB9: Geflügelmast typische und energetisch effiziente Ausführung dargestellt.
AA10: pro Mastplatz | AS10: Verbrauchswert | BA10: Durch Eingabe von Zu-/und Abschlagswerten kann der Stromverbrauch der Praxisanlage
AQ11: SOLL | AV11: IST | BB11: berechnet werden.
AB13: Lüftung: *) | AP13: Lüftungsanlage | AQ13: =BV32 -> 1.17 | AT13: kWh | AV13: 1 | AY13: kWh | BA13: Berechnung Lüftungsstrombedarf
BB14: Lüftungsanlage:
AA15: *) Berechnung Lüftungsstrombedarf -> siehe Eingabeblatt 2 | BE15: Zuluftführung | BJ15: Abluftführung | BP15: Kamin | BV15: Regelungstechnik
BE16: Strahllüftung | BJ16: Oberflur dezentral | BP16: Diffusor | BV16: EC-Motor
AB17: Fütterung: | AP17: Fertigfutter | AQ17: 0.02 | AT17: kWh | AV17: 0.02 | AY17: kWh
BQ18: 1 | BT18: kWh
AB19: Beleuchtung: | AH19: 16 | AI19: h/d | AP19: Leuchtstoffröhren | AQ19: 0.36 | AT19: kWh | AV19: 0.3 | AY19: kWh | BB19: Zu-/Abschlagwerte für andere Ausführungen
AP20: LED-Leuchten | AQ20: 0.08 | AT20: kWh | AY20: kWh | BE20: Lochplatten | BJ20: Unterflur zentral | BP20: Weitwurfdüse | BV20: Phasenanschnitt
BE21: 0.14 | BJ21: 0.84 | BP21: 0.66 | BV21: 0.7
K22: Strom | T22: Wärme | AB22: Reinigung: | AP22: Hochdruckreiniger (HDR) | AQ22: 0.05 | AT22: kWh | AV22: 0.05 | AY22: kWh | BE22: Porendecke | BJ22: Oberflur zentral | BP22: Regenhaube | BV22: Traforegelung
D23: pro Mastplatz - SOLL *) | K23: 1.4 | N23: kWh | T23: 6 | W23: kWh | BE23: 0.2 | BJ23: 0.42 | BP23: 0.61 | BV23: 0.5 | CG23: Soll
D24: pro Mastplatz - IST | K24: =K8/$K$4 -> 0.5 | N24: kWh | P24: =K24/K23 -> 0.3571428571 | T24: =T8/K4 -> 3 | W24: kWh | Y24: =T24/T23 -> 0.5 | AB24: Abluftreinigung: | AP24: Wäscher, Umwälzpumpen | AQ24: 0.9 | AT24: kWh | AV24: 0 | AY24: kWh | BP24: Einströmdüse | BZ24: Frequenzregelung | CG24: kWh | DG24: IST | DK24: Soll
A25: *) ohne Abluftreinigung | BP25: -0.07 | BV25: 0.05 | CB25: Lüftung | CG25: 1.1 | DB25: =CB35 -> 0 | DC25: =CC35 -> 0 | DD25: =CD35 -> 0 | DE25: =CE35 -> 0 | DF25: =CF35 -> 0 | DG25: =CG49 -> 0 | DK25: =CG35 -> 0
AB26: Gesamt pro Platz | AQ26: =IF(BJ32>0.001,AQ24,0)+AQ13+AQ17+AQ19+AQ22 -> 1.6 | AT26: kWh | AV26: =SUM(AV13:AX24) -> 1.37 | AY26: kWh | BP26: gerade Ausführung | CB26: Fütterung | CG26: 0.02 | DB26: =CB34 -> 0 | DC26: =CC34 -> 0 | DD26: =CD34 -> 0 | DE26: =CE34 -> 0 | DF26: =CF34 -> 0 | DG26: =CG48 -> 0 | DK26: =CG34 -> 0
AB27: Gesamt | AQ27: =AQ26*K4 -> 6400 | AT27: kWh | AV27: =AV26*K4 -> 5480 | AY27: kWh | BP27: 0.17 | CB27: Beleuchtung | CG27: 0.3 | DB27: =CB33 -> 0 | DC27: =CC33 -> 0 | DD27: =CD33 -> 0 | DE27: =CE33 -> 0 | DF27: =CF33 -> 0 | DG27: =CG47 -> 0 | DK27: =CG33 -> 0
CB28: Reinigung | CG28: 0.05 | DB28: =CB32 -> 0 | DC28: =CC32 -> 0 | DD28: =CD32 -> 0 | DE28: =CE32 -> 0 | DF28: =CF32 -> 0 | DG28: =CG46 -> 0 | DK28: =CG32 -> 0
BP29: 0.17 | BV29: 0 | CB29: Abluftreinigung | CG29: 0.9 | DB29: =CB31 -> 0 | DC29: =CC31 -> 0 | DD29: =CD31 -> 0 | DE29: =CE31 -> 0 | DF29: =CF31 -> 0 | DG29: =CG45 -> 0 | DK29: =CG31 -> 0
AA30: Berechnung Dieselverbrauch Entmistung - SOLL: | DB30: =CB30 -> 0 | DC30: =CC30 -> 0 | DD30: =CD30 -> 0 | DE30: =CE30 -> 0 | DF30: =CF30 -> 0 | DG30: =CG44 -> 0 | DK30: =CG30 -> 0
AI31: Dieselverbrauch | AO31: Dauer | AS31: Tage | AW31: Diesel | BE31: Abluftreinigung | BP31: Verbrauchswert - SOLL | DB31: =CB29 -> Abluftreinigung | DC31: =CC29 -> 0 | DD31: =CD29 -> 0 | DE31: =CE29 -> 0 | DF31: =CF29 -> 0 | DG31: =CG43 -> 0 | DK31: =CG29 -> 0.9
AB32: Schlepper / Hoftruck | AI32: 12 | AK32: Liter/h | AO32: 6 | AQ32: h | AS32: 8 | AU32: d | AW32: =AI32*AO32*AS32 -> 576 | AY32: Liter | BE32: 0.5 | BJ32: 0 | BU32: Lüftungsanlage | BV32: =BQ18+(BQ18*BE29)+(BQ18*BJ29)+(BQ18*BP29)+(BQ18*BV29)+(BQ18*BJ32) -> 1.17 | BY32: kWh | DB32: =CB28 -> Reinigung | DC32: =CC28 -> 0 | DD32: =CD28 -> 0 | DE32: =CE28 -> 0 | DF32: =CF28 -> 0 | DG32: =CG42 -> 0.05 | DK32: =CG28 -> 0.05
AR33: pro Mastplatz | AW33: =AW32/K4 -> 0.144 | AY33: Liter | DB33: =CB27 -> Beleuchtung | DC33: =CC27 -> 0 | DD33: =CD27 -> 0 | DE33: =CE27 -> 0 | DF33: =CF27 -> 0 | DG33: =CG41 -> 0.3 | DK33: =CG27 -> 0.3
BW34: Zurück | DB34: =CB26 -> Fütterung | DC34: =CC26 -> 0 | DD34: =CD26 -> 0 | DE34: =CE26 -> 0 | DF34: =CF26 -> 0 | DG34: =CG40 -> 0.02 | DK34: =CG26 -> 0.02
AA35: Berechnungshilfe elektrische Energie: | BA35: Berechnung Wärmebedarf - SOLL: | DB35: =CB25 -> Lüftung | DC35: =CC25 -> 0 | DD35: =CD25 -> 0 | DE35: =CE25 -> 0 | DF35: =CF25 -> 0 | DG35: =CG39 -> 1 | DK35: =CG25 -> 1.1
AB36: Berechnung des Stromverbrauchs mittels Leistung und Laufzeiten | BB36: pro Mastplatz | BS36: Verbrauchswert
AB37: Verbraucher | AH37: Anzahl | AK37: Leistung | AO37: Laufzeit | AS37: Tage | AW37: Strom | CG37: IST
G38: kWh | AB38: Beleuchtung | AH38: 40 | AK38: 0.075 | AM38: kW | AO38: 6 | AQ38: h | AS38: 365 | AU38: d | AW38: =AH38*AK38*AO38*AS38 -> 6570 | AY38: kWh | BB38: Heizung: Warmwasser und Gaskanonen | BQ38: SOLL | BV38: IST | CG38: kWh
B39: Lüftung | G39: =AV13 -> 1 | AB39: HDR | AH39: 2 | AK39: 1.8 | AM39: kW | AO39: 8 | AQ39: h | AS39: 30 | AU39: d | AW39: =AH39*AK39*AO39*AS39 -> 864 | AY39: kWh | BB39: gut gedämmtes Stallgebäude | CB39: Lüftung | CG39: =AV13 -> 1
B40: Fütterung | G40: =AV17 -> 0.02 | AM40: kW | AQ40: h | AU40: d | AY40: kWh | BB40: Gesamt pro Platz | BP40: Stallheizung | BQ40: 6 | BT40: kWh | BV40: 2 | BY40: kWh | CB40: Fütterung | CG40: =AV17 -> 0.02
B41: Beleuchtung | G41: =AV19+AV20 -> 0.3 | AM41: kW | AQ41: h | AU41: d | AY41: kWh | BB41: Gesamt | BQ41: =BQ40*K4 -> 24000 | BT41: kWh | CB41: Beleuchtung | CG41: =SUM(AV19:AX20) -> 0.3
B42: Reinigung | G42: =AV22 -> 0.05 | AW42: =SUM(AW38:AX41) -> 7434 | AY42: kWh | CB42: Reinigung | CG42: =AV22 -> 0.05
B43: Abluftreinigung | G43: 0.9 | BB43: Zu/-Abschlagwerte für andere Ausführungen | CB43: Abluftreinigung | CG43: =AV24 -> 0
AA44: Handlungsempfehlungen: | AI44: Lüftungsanlage | BC44: ohne WRG | BQ44: 0.25 | BV44: 0.25
AB45: richtige Dimensionierung der Lüftungsanlage | BC45: ohne Liegeflächenabdeckung | BQ45: 0.4
AB46: strömungstechnisch günstige Gestaltung der Zu- und Abluftführung | BB46: Gesamt pro Platz | BQ46: =BQ40+(BQ40*BQ44)+(BQ40*BQ45) -> 9.9 | BT46: kWh | BV46: =BV40+(BV40*BV44)+(BV40*BV45) -> 2.5 | BY46: kWh
AB47: Wartung und Überprüfung der Zu- und Abluftkanäle, der Ventilatoren und Lüftungs- | BB47: Gesamt | BQ47: =BQ46*K4 -> 39600 | BT47: kWh | BV47: =BV46*K4 -> 10000 | BY47: kWh
AB48: klappen inkl. Kalibrierung und optimale Einstellung der Temperaturfühler
AY49: GM.2 | BY49: GM.3

Sheet G-A
A1: Energie-Check | F1: =Betriebsübersicht!F1 -> V 1.0 | J1: Grünland/Ackerbau | P1: Ergebnisblatt | AA1: Energie-Check | AF1: =Betriebsübersicht!F1 -> V 1.0 | AJ1: Grünland/Ackerbau | AP1: Infoblatt
AA2: Dieseleinsatz im Grünland
J3: Grünlandfläche | K3: =Betriebsübersicht!J19 -> 46 | AB3: Mähwerk ohne Aufbereiter | AJ3: 5 - 7 | AL3: l/ha | AO3: mit Aufbereiter | AT3: 6 - 8 | AV3: l/ha
J4: Ackerfläche | K4: =Betriebsübersicht!V19 -> 32 | N4: kg/a | Q4: Abrechnungsjahr | V4: =Energieeinsatz!AV4 -> 2021 | AB4: Kreiselheuer | AJ4: 2 | AL4: l/ha | AO4: Schwader | AT4: 3 | AV4: l/ha
AB5: Ladewagen | AJ5: 8 - 10 | AL5: l/ha
K6: Diesel | T6: Diesel | AA6: Dieseleinsatz im Ackerbau | AO6: Bodenbearbeitungskombinationen
D7: Gesamtverbrauch | K7: ='Abgrenzung BZ'!O8 -> 24000 | N7: Liter | S7: DG | T7: =K8/(Betriebsübersicht!J19*Betriebsübersicht!AJ19+Betriebsübersicht!V19*Betriebsübersicht!AV19)*(Betriebsübersicht!J19*Betriebsübersicht!AJ19) -> 9495.412844 | W7: Liter | Y7: =T7/K8 -> 0.6330275229 | AB7: Stoppelbearbeitung | AJ7: 8 - 10 | AL7: l/ha | AP7: Konventionell:
B8: davon | D8: Grünland/Ackerbau | K8: ='Abgrenzung BZ'!O21 -> 15000 | N8: Liter | P8: =K8/K7 -> 0.625 | S8: AF | T8: =K8/(Betriebsübersicht!J19*Betriebsübersicht!AJ19+Betriebsübersicht!V19*Betriebsübersicht!AV19)*Betriebsübersicht!V19*Betriebsübersicht!AV19 -> 5504.587156 | W8: Liter | Y8: =T8/K8 -> 0.3669724771 | AB8: Pflügen | AJ8: 18 - 28 | AL8: l/ha | AP8: - | AQ8: Pflug mit Packer
A9: Anteil am Gesamtverbrauch | AB9: Saatbeetbereitung | AJ9: 6 - 10 | AL9: l/ha | AT9: 20 - 26 | AV9: l/ha
AB10: Aussaat | AJ10: 3 - 4 | AL10: l/ha | AP10: - | AQ10: Kreiselegge mit Drillmaschine
AB11: Düngung | AI11: mineralisch | AJ11: 2 - 4 | AL11: l/ha | AT11: 10 - 12 | AV11: l/ha
AI12: organisch | AJ12: 6 - 12 | AL12: l/ha | AP12: Mulchsaat:
AB13: Pflanzenschutz | AI13: chemisch | AJ13: 2 | AL13: l/ha | AP13: - | AQ13: Grubberscheibeneggenkombination
AI14: mechanisch | AJ14: 4 - 6 | AL14: l/ha | AT14: 13 - 18 | AV14: l/ha
AB15: Ernte | AI15: Feldhäcksler | AJ15: 30 - 36 | AL15: l/ha | AP15: - | AQ15: Drillmaschine für Mulchsaat
AI16: Mähdrescher | AJ16: 22 - 27 | AL16: l/ha | AT16: 10 - 12 | AV16: l/ha
AI17: Kartoffel-/Rübenroder | AJ17: 40 - 55 | AL17: l/ha | AP17: Diektsaat:
AB18: Transporte | AJ18: 16 - 18 | AL18: l/ha | AT18: 10 - 12 | AV18: l/ha
AA19: Handlungsempfehlungen:
AB20: Schlaggröße und -form, Innerbetriebliche Organisation
AC21: - | AD21: große und gleichförmige (optimal sind rechteckige) Schläge reduzieren den
K22: Grünland | T22: Ackerbau | AD22: Dieselverbrauch aufgrund weniger Wendemanöver und geringerem Zeitaufwand
D23: Diesel pro ha - SOLL | K23: =G39 -> 120 | N23: kWh | T23: =G43 -> 100 | W23: Liter | AC23: - | AD23: größere Einzelschläge verringern die Anzahl der Fahrten zweichen Hof und Feld
D24: Diesel pro ha - IST | K24: =T7/K3 -> 206.4220183 | N24: kWh | P24: =K24/K23 -> 1.720183486 | T24: =T8/K4 -> 172.0183486 | W24: Liter | Y24: =T24/T23 -> 1.720183486 | AC24: - | AD24: Organisation einer günstigen innerbetrieblichen Verkehrslage
AB25: Außenwirtschaft: Arbeitsgänge verringern bzw. kombinieren
AC26: - | AD26: bei der Bodenbearbeitung kann, durch den Verzicht auf das Pflügen ca. 20 l/ha oder
AD27: durch den Ersatz mit dem Grubber ca. 10 l/ha Diesel eigespart werden
AB28: Außenwirtschaft: Optimaler Geräteeinsatz und ideale Bearbeitungsintensität
AC29: - | AD29: Reduzierung des Dieselverbrauchs durch fruchtspezifisch angepasste
AD30: Bearbeitungstiefe und Kombination von Arbeitsgängen (Bodenbearbeitung)
AC31: - | AD31: Optimale Geräteeinstellungen und große Arbeitsbreiten wählen
AB32: Schleppereinsatz
AC33: - | AD33: Optimierter Schleppereinsatz - Motorauswahl, Motorauslastung
AC34: - | AD34: Anpassung des Schleppers und Geräte (Reifendruckregelung und Ballastierung) an
AD35: die Einsatzbedingungen + angepasste Fahrweise
AC36: - | AD36: Bereifung: Reifenhöhe, -breite, angepasster Luftdruck (Einsparung bis 10%)
AC37: - | AD37: Arbeiten mit möglichst geringer Motordrehzahl/Sparzapfwellenbetrieb ausführen
G38: kWh | AB38: Regelmäßige Pflege und Wartung
B39: Grünland | G39: 120 | AC39: Für einen energieeffizienten Betrieb ist die regelmäßige und sorgfältige Reinigung,
B40: Silage | G40: 110 | AC40: Wartung und Überprüfung der Anlagen von erheblicher Bedeutung
B41: Heu | G41: 130 | AC41: - | AD41: Kühler + Luftfilter (Einsparung jeweils bis 5%)
AC42: - | AD42: Motoreinstellung (Einsparung bis 10%)
B43: Ackerbau | G43: 100 | AC43: - | AD43: sonstige Wartungsarbeiten (Einsparung bis 2%)
B44: Getreide | G44: 90 | AB44: Möglichkeiten des Precision Farming zur Energieeffizienzverbesserung nutzen
B45: Silomais | G45: 110 | AC45: - | AD45: Vermeiden von Überlappungen durch satellitengestütztes Anschlussfahren mit
B46: Kartoffeln | G46: 130 | AD46: Parallelfahrsystemen (Lenkassistenzsysteme)
B47: Zuckerrüben | G47: 110 | AC47: - | AD47: Anpassen der Bodenbearbeitungstiefe an das teilflächenspezifische
B48: Ackergras | G48: 150 | AD48: Lockerungsbedürfnis der Böden
AC49: - | AD49: Erhöhung der Stickstoff-Effizienz durch sensorgesteuerte N-Düngung | AY49: G-A.2

Sheet PV
A1: Energie-Check | F1: =Betriebsübersicht!F1 -> V 1.0 | J1: Photovoltaik | P1: Ergebnisblatt | AA1: Energie-Check | AF1: =Betriebsübersicht!F1 -> V 1.0 | AJ1: Photovoltaik | AP1: Infoblatt | BA1: PV-Eigennutzung % | BK1: Verhältnis Erzeugung/Verbrauch
BG2: 10 | BH2: 20 | BI2: 30 | BJ2: 40 | BK2: 50 | BL2: 60 | BM2: 70 | BN2: 80 | BO2: 90 | BP2: 100 | BQ2: 110 | BR2: 120 | BS2: 130 | BT2: 140 | BU2: 150
A3: Berechnung der möglichen Solartromeigennutzung | AB3: Eingabefelder | AI3: Felder für die Eingabe betrieblicher Daten | BB3: Haushalt | BG3: 88 | BH3: 86 | BI3: 80 | BJ3: 72 | BK3: 66 | BL3: 60 | BM3: 54 | BN3: 50 | BO3: 46 | BP3: 42 | BQ3: 40 | BR3: 38 | BS3: 36 | BT3: 34 | BU3: 32
B4: Aufgrund betriebsindividueller Lastprofile kann die Solarstromeigennutzung nur näherungsweise kalkuliert werden. | Q4: Abrechnungsjahr | V4: =Energieeinsatz!AV4 -> 2021 | AB4: berechnete Felder | AI4: Felder die vom Programm berechnet werden | BB4: MV FGM | BG4: 78 | BH4: 76 | BI4: 70 | BJ4: 62 | BK4: 56 | BL4: 50 | BM4: 46 | BN4: 42 | BO4: 38 | BP4: 36 | BQ4: 32 | BR4: 28 | BS4: 28 | BT4: 26 | BU4: 24
AB5: Werte | AI5: Werte die aus Eingebefeldern übernommen wurden bzw. | BB5: MV FGM Eis | BG5: 82 | BH5: 80 | BI5: 74 | BJ5: 68 | BK5: 62 | BL5: 58 | BM5: 54 | BN5: 50 | BO5: 46 | BP5: 42 | BQ5: 38 | BR5: 34 | BS5: 32 | BT5: 30 | BU5: 28
I6: Stromverbrauch | R6: PV-Anlage Erzeugung | AJ6: - | AK6: Felder mit hinterlegten Werten | BB6: MV AMS | BG6: 82 | BH6: 80 | BI6: 74 | BJ6: 68 | BK6: 60 | BL6: 56 | BM6: 52 | BN6: 48 | BO6: 44 | BP6: 40 | BQ6: 36 | BR6: 32 | BS6: 30 | BT6: 28 | BU6: 26
I7: kWh | AJ7: - | AK7: Felder mit hinterlegten Faktoren | BB7: MV AMS Eis | BG7: 86 | BH7: 84 | BI7: 78 | BJ7: 74 | BK7: 66 | BL7: 64 | BM7: 60 | BN7: 56 | BO7: 52 | BP7: 46 | BQ7: 42 | BR7: 38 | BS7: 34 | BT7: 32 | BU7: 30
B8: Gesamt | I8: ='Abgrenzung BZ'!AI8 -> 83100 | L8: 1 | R8: Bitte Anlagenertrag eingeben | AA8: Begriffsdefinition: | BB8: Veredelung | BG8: 90 | BH8: 88 | BI8: 82 | BJ8: 76 | BK8: 70 | BL8: 66 | BM8: 60 | BN8: 56 | BO8: 50 | BP8: 46 | BQ8: 44 | BR8: 40 | BS8: 38 | BT8: 36 | BU8: 34 | BW8: =W26*100 -> 108.3032491
V9: 90000 | Y9: kWh | AB9: Eigenstromnutzung oder auch Eigenstromverbrauch bezeichnen den Anteil der
B10: P/H | C10: Privat / Haushalt | I10: ='Abgrenzung BZ'!AI11 -> 3100 | L10: =I10/$I$8 -> 0.03730445247 | AC10: Erzeugung, der vom Anlagenbetreiber selbst verbraucht wird. Dabei ist es egal, ob | BA10: Eigenverbrauchssteigerung mit Batteriespeicher % | BK10: Verhältnis Nutzkapazität/Nennleistung PV
B11: SBZ | C11: Sonstige Betriebszweige | I11: ='Abgrenzung BZ'!AI12 -> 0 | L11: 0 | AC11: der Strom direkt oder nach einer Speicherung verbraucht wird. Je höher der | BG11: 10 | BH11: 20 | BI11: 30 | BJ11: 40 | BK11: 50 | BL11: 60 | BM11: 70 | BN11: 80 | BO11: 90 | BP11: 100 | BQ11: 110 | BR11: 120 | BS11: 130 | BT11: 140 | BU11: 150
A12: *) | B12: MV | C12: Milchvieh | I12: ='Abgrenzung BZ'!AI13 -> 50000 | L12: 0.6016847172 | R12: Ausrichtung: | V12: West | AC12: Eigenverbrauchsanteil ist, desto weniger Strom wird in das Netz eingespeist. | BB12: Haushalt | BG12: 6 | BH12: 7 | BI12: 9 | BJ12: 11 | BK12: 13 | BL12: 16 | BM12: 19 | BN12: 21 | BO12: 23 | BP12: 25 | BQ12: 25 | BR12: 26 | BS12: 26 | BT12: 27 | BU12: 27
B13: RM | C13: Rindermast | I13: ='Abgrenzung BZ'!AI14 -> 3000 | L13: 0.03610108303 | AB13: Selbstversorgungsgrad oder auch Autarkiegrad geben den Anteil des Stromverbrauchs an, | BB13: MV FGM | BG13: 7 | BH13: 8 | BI13: 10 | BJ13: 12 | BK13: 14 | BL13: 17 | BM13: 20 | BN13: 23 | BO13: 25 | BP13: 27 | BQ13: 29 | BR13: 30 | BS13: 31 | BT13: 32 | BU13: 33
B14: FE | C14: Ferkelerzeugung | I14: ='Abgrenzung BZ'!AI15 -> 20000 | L14: 0.2406738869 | AC14: der durch selbst erzeugten Strom gedeckt wird. Hierzu trägt entweder der zeitgleiche | BB14: MV FGM Eis | BG14: 8 | BH14: 9 | BI14: 11 | BJ14: 13 | BK14: 15 | BL14: 18 | BM14: 21 | BN14: 24 | BO14: 26 | BP14: 28 | BQ14: 30 | BR14: 31 | BS14: 32 | BT14: 33 | BU14: 34
B15: FA | C15: Ferkelaufzucht | I15: ='Abgrenzung BZ'!AI16 -> 10000 | L15: 0.1203369434 | R15: Batteriespeicher: | AC15: Direktverbrauch des erzeugten Stroms oder die Entladung eines Batteriespeichers bei. | BB15: MV AMS | BG15: 8 | BH15: 9 | BI15: 11 | BJ15: 13 | BK15: 15 | BL15: 18 | BM15: 21 | BN15: 24 | BO15: 26 | BP15: 28 | BQ15: 30 | BR15: 31 | BS15: 32 | BT15: 33 | BU15: 34
B16: MS | C16: Schweinemast | I16: ='Abgrenzung BZ'!AI17 -> 5000 | L16: 0.06016847172 | AC16: Je höher die Eigenstromdeckung ist, desto weniger Energie wird aus dem Stromnetz | BB16: MV AMS Eis | BG16: 9 | BH16: 10 | BI16: 12 | BJ16: 14 | BK16: 16 | BL16: 19 | BM16: 22 | BN16: 25 | BO16: 27 | BP16: 29 | BQ16: 31 | BR16: 32 | BS16: 33 | BT16: 34 | BU16: 35
B17: MSA | C17: Schweinemast Außenklima | I17: ='Abgrenzung BZ'!AI18 -> 2000 | L17: 0.02406738869 | R17: Bitte Nutzkapazität eingeben | AC17: bezogen. | BB17: Veredelung | BG17: 7 | BH17: 8 | BI17: 10 | BJ17: 12 | BK17: 14 | BL17: 17 | BM17: 20 | BN17: 23 | BO17: 25 | BP17: 27 | BQ17: 28 | BR17: 29 | BS17: 29 | BT17: 30 | BU17: 30 | BW17: =W27*100 -> 22.22222222
B18: LH | C18: Legehennen | I18: ='Abgrenzung BZ'!AI19 -> 2000 | L18: 0.02406738869 | V18: 20 | Y18: kWh | AB18: Leistungsprofile bzw. Lastprofile beschreiben den zeitlichen Verlauf der erzeugten bzw.
B19: GM | C19: Geflügelmast | I19: ='Abgrenzung BZ'!AI20 -> 2000 | L19: 0.02406738869 | AC19: abgenommenen Leistung während einer bestimmten Zeitperiode. | BA19: PV-Ausrichtung
B20: G-A | C20: Grünland - Ackerbau | I20: ='Abgrenzung BZ'!AI21 -> 0 | L20: 0 | BB20: Süd | BG20: 100
BB21: Ost | BG21: 92
B22: Verbleiben | I22: =I8-I11-I10-I12-I13-I14-I15-I16-I17-I18-I19-I20 -> -14000 | L22: =L8-L11-L10-L12-L13-L14-L15-L16-L17-L18-L19-L20 -> -0.1684717208 | P22: Zurück zur Abgrenzung BZ | BB22: West | BG22: 96
BB23: Ost-West | BG23: 104 | BW23: =IF(V12="Süd",BG20,IF(V12="Ost",BG21,IF(V12="West",BG22,IF(V12="Ost-West",BG23,BG20)))) -> 96
A24: *) Bei Milchviehbetrieb bitte Melk- und Kühlsystem auswählen | R24: AMS | U24: Direktkühlung
BA25: Berechnung Eigenstrom
T26: Verhältnis Stromverbrauch zu Solarstromerzeugung | V26: 1 : | W26: =V9/I8 -> 1.083032491 | BI26: Strom | BJ26: 96% | BK26: 98% | BL26: PV | BM26: PV-E/V | BN26: Ausrichtung | BO26: PV-E | BP26: max. | BQ26: Batterie-N/N | BR26: B-E | BS26: max. | BT26: PV+B-E | BU26: max.
T27: Verhältnis Solarstromerzeugung zu Nutzkapazität Batterie | V27: 1 : | W27: =IF(V9=0,0,V18*1000/V9) -> 0.2222222222 | BB27: Gesamt | BG27: =I8 -> 83100 | BI27: =I8 -> 83100 | BL27: =V9 -> 90000 | BQ27: =V18 -> 20 | BS27: =V18*200 -> 4000
BB28: Haushalt | BG28: =L10+L11 -> 0.03730445247 | BI28: =BI27*BG28/BG34 -> 2653.038105 | BJ28: =BI28*0.96 -> 2546.916581 | BK28: =BI28*0.98 -> 2599.977343 | BL28: =$BL$27*BG28/$BG$34 -> 2873.326468 | BM28: =IF($BG$2>$BW$8,BG3,IF($BH$2>$BW$8,BH3,IF($BI$2>$BW$8,BI3,IF($BJ$2>$BW$8,BJ3,IF($BK$2>$BW$8,BK3,IF($BL$2>$BW$8,BL3,IF($BM$2>$BW$8,BM3,IF($BN$2>$BW$8,BN3,IF($BO$2>$BW$8,BO3,IF($BP$2>$BW$8,BP3,IF($BQ$2>$BW$8,BQ3,IF($BR$2>$BW$8,BR3,IF($BS$2>$BW$8,BS3,IF($BT$2>$BW$8,BT3,IF($BU$2>$BW$8,BU3,BU3))))))))))))))) -> 40 | BN28: =IF(V12="Süd",BG20,IF(V12="Ost",BG21,IF(V12="West",BG22,IF(V12="Ost-West",BG23,100)))) -> 96 | BO28: =BL28*(BM28%*BN28%) -> 1103.357364 | BP28: =IF(BO28>BJ28,BJ28,BO28) -> 1103.357364 | BQ28: =IF($V$18=0,0,IF($BG$11>$BW$17,BG12,IF($BH$11>$BW$17,BH12,IF($BI$11>$BW$17,BI12,IF($BJ$11>$BW$17,BJ12,IF($BK$11>$BW$17,BK12,IF($BL$11>$BW$17,BL12,IF($BM$11>$BW$17,BM12,IF($BN$11>$BW$17,BN12,IF($BO$11>$BW$17,BO12,IF($BP$11>$BW$17,BP12,IF($BQ$11>$BW$17,BQ12,IF($BR$11>$BW$17,BR12,IF($BS$11>$BW$17,BS12,IF($BT$11>$BW$17,BT12,IF($BU$11>$BW$17,BU12,BU12)))))))))))))))) -> 9 | BR28: =BL28*BQ28% -> 258.5993821
A29: Strombilanz | BB29: MV FGM | BG29: =IF(AND(R24 ="FGM",U24="Direktkühlung"),L12,0) -> 0 | BI29: =BG29*BI27/BG34 -> 0 | BJ29: =BI29*0.96 -> 0 | BK29: =BI29*0.98 -> 0 | BL29: 0 | BM29: 32 | BN29: =BN28 -> 96 | BO29: 0 | BP29: 0 | BQ29: 10 | BR29: =BL29*BQ29% -> 0
J30: Eigenverbrauch Solarstrom | K30: =BU34 -> 38346.44696 | N30: kWh/a | V30: Eigenverbrauchsanteil | W30: =K30/V9% -> 42.60716329 | Y30: % | BB30: MV FGM Eis | BG30: =IF(AND(R24 ="FGM",U24="Eiswasserkühlung"),L12,0) -> 0 | BI30: =BG30*BI27/BG34 -> 0 | BJ30: 0 | BK30: 0 | BL30: 0 | BM30: 38 | BN30: =BN28 -> 96 | BO30: 0 | BP30: 0 | BQ30: 11 | BR30: =BL30*BQ30% -> 0
J31: noch benötigter Netzbezug | K31: =I8-K30 -> 44753.55304 | N31: kWh/a | V31: Selbstversorgungsgrad | W31: =K30/I8% -> 46.14494219 | Y31: % | BB31: MV AMS | BG31: =IF(AND(R24 ="AMS",U24="Direktkühlung"),L12,0) -> 0.6016847172 | BI31: =BG31*BI27/BG34 -> 42790.93718 | BJ31: 41079.29969 | BK31: 41935.11843 | BL31: 46343.97528 | BM31: 36 | BN31: =BN28 -> 96 | BO31: 16016.47786 | BP31: 16016.47786 | BQ31: 11 | BR31: =BL31*BQ31% -> 5097.837281
J32: PV Überschuß = Netzeinspeisung | K32: =V9-K30 -> 51653.55304 | N32: kWh/a | BB32: MV AMS Eis | BG32: =IF(AND(R24 ="AMS",U24="Eiswasserkühlung"),L12,0) -> 0 | BI32: =BG32*BI27/BG34 -> 0 | BJ32: 0 | BK32: 0 | BL32: 0 | BM32: 42 | BN32: =BN28 -> 96 | BO32: 0 | BP32: 0 | BQ32: 12 | BR32: =BL32*BQ32% -> 0
BB33: Veredelung | BG33: =L13+L14+L15+L16+L17+L18+L19+L20 -> 0.5294825511 | BI33: =BG33*BI27/BG34 -> 37656.02472 | BJ33: 36149.78373 | BK33: 36902.90422 | BL33: 40782.69825 | BM33: 44 | BN33: =BN28 -> 96 | BO33: 17226.61174 | BP33: 17226.61174 | BQ33: 10 | BR33: =BL33*BQ33% -> 4078.269825
BG34: =SUM(BG28:BG33) -> 1.168471721 | BI34: =SUM(BI28:BI33) -> 83100 | BJ34: =SUM(BJ28:BJ33) -> 79776 | BK34: =SUM(BK28:BK33) -> 81438 | BL34: =SUM(BL28:BL33) -> 90000 | BO34: =SUM(BO28:BO33) -> 34346.44696 | BP34: =SUM(BP28:BP33) -> 34346.44696 | BR34: =SUM(BR28:BR33) -> 9434.706488 | BS34: =IF(BR34>BS27,BS27,BR34) -> 4000 | BT34: =BS34+BP34 -> 38346.44696 | BU34: =IF(BT34>BK34,BK34,BT34) -> 38346.44696
BG38: 0.6016847172 | BI38: 42790.93718 | BJ38: 41079.29969 | BK38: 41935.11843 | BL38: 41194.6447 | BM38: 46 | BN38: 100 | BO38: 18949.53656 | BP38: 18949.53656 | BQ38: 33 | BR38: 13594.23275
BB41: FGM | BE41: Direktkühlung
BB42: AMS | BE42: Eiswasserkühlung
BH44: Stromverbrauch Betrieb | BI44: =I8 -> 83100 | BT44: Eigen-verbrauchs-anteil | BU44: =W30 -> 42.60716329
BH45: Solarstromerzeugung | BI45: =V9 -> 90000 | BT45: Solarstromerzeugung | BU45: =100-W30 -> 57.39283671
BH46: Eigenverbrauch | BI46: =K30 -> 38346.44696 | BT46: Selbst-versorgungs-grad | BU46: =W31 -> 46.14494219
BH47: Netzbezug | BI47: =K31 -> 44753.55304 | BT47: Stromverbrauch Betrieb | BU47: =100-W31 -> 53.85505781
BH48: Netzeinspeisung | BI48: =K32 -> 51653.55304
AY49: PV.2

Sheet CO2
A1: Energie-Check | F1: =Betriebsübersicht!F1 -> V 1.0 | J1: CO2-Bilanz | AA1: Energie-Check | AF1: =Betriebsübersicht!F1 -> V 1.0 | AJ1: CO2-Bilanz | AP1: Infoblatt 1 | BA1: Energie-Check | BF1: =Betriebsübersicht!AF1 -> 0 | BJ1: CO2-Bilanz | BP1: Infoblatt 2
A3: Berechnung der möglichen Einsparung von CO2-Emissionen | AB3: Eingabefelder | AI3: Felder für die Eingabe betrieblicher Daten | BA3: Berechnungshilfen
B4: Die CO2-Berechnung bezieht sich ausschließlich auf den Energieträgereinsatz am Betrieb. | Q4: Abrechnungsjahr | V4: =Energieeinsatz!AV4 -> 2021 | AB4: berechnete Felder | AI4: Felder die vom Programm berechnet werden
AB5: Werte | AI5: Werte die aus Eingebefeldern übernommen wurden bzw. | BA5: Umrechnungsfaktoren für den Wärme- bzw. Heizenergieeinsatz
I6: Strom | O6: Kraftstoff | U6: Wärme | AJ6: - | AK6: Felder mit hinterlegten Werten | BP6: Heizwert
I7: kWh | O7: Liter | U7: kWh | AJ7: - | AK7: Felder mit hinterlegten Faktoren | BB7: Heizöl | BK7: 8000 | BN7: l | BP7: 9.8 | BU7: =BK7*BP7 -> 78400 | BX7: kWh
B8: Gesamt | I8: ='Abgrenzung BZ'!AI8 -> 83100 | L8: 1 | O8: ='Abgrenzung BZ'!AO8 -> 24000 | R8: 1 | U8: ='Abgrenzung BZ'!AV8 -> 184000 | X8: 1 | BB8: Erdgas | BK8: 8000 | BN8: m³ | BP8: 10.4 | BU8: =BK8*BP8 -> 83200 | BX8: kWh
I9: Bitte Einsparpotenziale eintragen | AA9: Spezifische CO2-Emissionsfaktoren nach Energieträgern | AQ9: (Stand 15.11.2021) | BB9: Flüssiggas | BK9: 1200 | BN9: l | BP9: 6.57 | BU9: 7884 | BX9: kWh
B10: P/H | C10: Privat / Haushalt | I10: ='Abgrenzung BZ'!AI11 -> 3100 | L10: 300 | O10: ='Abgrenzung BZ'!AO11 -> 1800 | R10: 200 | U10: ='Abgrenzung BZ'!AV11 -> 12000 | X10: 2000 | BB10: Scheitholz - Hartholz | BK10: 14 | BN10: rm | BP10: 1800 | BU10: 25200 | BX10: kWh
B11: SBZ | C11: Sonstige Betriebszweige | I11: ='Abgrenzung BZ'!AI12 -> 0 | L11: 0 | O11: ='Abgrenzung BZ'!AO12 -> 200 | R11: 0 | U11: ='Abgrenzung BZ'!AV12 -> 3800 | X11: 0 | AB11: Energieträger | AQ11: Einheit | AU11: CO2-Faktor | BB11: Scheitholz - Weichholz | BK11: 12 | BN11: rm | BP11: 1400 | BU11: 16800 | BX11: kWh | CB11: Energieträger | CH11: Einheit | CK11: CO2-Faktor
B12: MV | C12: Milchvieh | I12: ='Abgrenzung BZ'!AI13 -> 50000 | L12: 9000 | O12: ='Abgrenzung BZ'!AO13 -> 4200 | R12: 0 | U12: ='Abgrenzung BZ'!AV13 -> 0 | X12: 0 | AB12: Strom (Strommix Deutschland 2021) | AQ12: kg CO2/kWh | AU12: 0.42 | BB12: Hackschnitzel - Hartholz | BK12: 14 | BN12: srm | BP12: 945 | BU12: 13230 | BX12: kWh | CB12: Strom | CH12: kg CO2/kWh | CL12: 0.42
B13: RM | C13: Rindermast | I13: ='Abgrenzung BZ'!AI14 -> 3000 | L13: 100 | O13: ='Abgrenzung BZ'!AO14 -> 3000 | R13: 0 | U13: ='Abgrenzung BZ'!AV14 -> 0 | X13: 0 | AB13: Strom (bei Energieeffizienzmaßnahmen | AQ13: kg CO2/kWh | AU13: 0.732 | BB13: Hackschnitzel - Weichholz | BK13: 12 | BN13: srm | BP13: 720 | BU13: 8640 | BX13: kWh | CB13: Strom PV | CH13: kg CO2/kWh | CL13: 0.252
B14: FE | C14: Ferkelerzeugung | I14: ='Abgrenzung BZ'!AI15 -> 20000 | L14: 2000 | O14: ='Abgrenzung BZ'!AO15 -> 0 | R14: 0 | U14: ='Abgrenzung BZ'!AV15 -> 30000 | X14: 6000 | AC14: und erneuerbaren Erzeugungsanlagen) | BB14: Holzpellets | BK14: 8.4 | BN14: t | BP14: 4300 | BU14: 36120 | BX14: kWh | CB14: Wärmepumpe | CH14: kg CO2/kWh | CL14: 0.22
B15: FA | C15: Ferkelaufzucht | I15: ='Abgrenzung BZ'!AI16 -> 10000 | L15: 1000 | O15: ='Abgrenzung BZ'!AO16 -> 0 | R15: 0 | U15: ='Abgrenzung BZ'!AV16 -> 40000 | X15: 6000 | AB15: Strom (bei einem Wechsel des | AQ15: kg CO2/kWh | AU15: 0.366 | CB15: Wärmepumpe PV | CH15: kg CO2/kWh | CL15: 0.132
B16: MS | C16: Schweinemast | I16: ='Abgrenzung BZ'!AI17 -> 5000 | L16: 0 | O16: ='Abgrenzung BZ'!AO17 -> 0 | R16: 0 | U16: ='Abgrenzung BZ'!AV17 -> 6000 | X16: 0 | AC16: Energieträgers z.B. von Diesel zu Strom) | CB16: Nah-/Fernwärme | CH16: kg CO2/kWh | CL16: 0.28
B17: MSA | C17: Schweinemast Außenklima | I17: ='Abgrenzung BZ'!AI18 -> 2000 | L17: 0 | O17: ='Abgrenzung BZ'!AO18 -> 1200 | R17: 0 | U17: ='Abgrenzung BZ'!AV18 -> 3000 | X17: 0 | AB17: Nah-/Fernwärme | AQ17: kg CO2/kWh | AU17: 0.28 | BA17: Berechnung der Klimawirksamkeit: | BL17: CO2 - Einsparung pro Jahr | CB17: Heizöl | CH17: kg CO2/kWh | CL17: 0.266
B18: LH | C18: Legehennen | I18: ='Abgrenzung BZ'!AI19 -> 2000 | L18: 0 | O18: ='Abgrenzung BZ'!AO19 -> 200 | R18: 0 | U18: ='Abgrenzung BZ'!AV19 -> 0 | X18: 0 | AB18: Heizöl leicht | AQ18: kg CO2/kWh | AU18: 0.266 | CB18: Erdgas | CH18: kg CO2/kWh | CL18: 0.201
B19: GM | C19: Geflügelmast | I19: ='Abgrenzung BZ'!AI20 -> 2000 | L19: 0 | O19: ='Abgrenzung BZ'!AO20 -> 0 | R19: 0 | U19: ='Abgrenzung BZ'!AV20 -> 12000 | X19: 0 | AB19: Heizöl schwer | AQ19: kg CO2/kWh | AU19: 0.288 | BA19: Energieeinsparung | CB19: Flüssiggas | CH19: kg CO2/kWh | CL19: 0.239
B20: G-A | C20: Grünland - Ackerbau | I20: ='Abgrenzung BZ'!AI21 -> 0 | L20: 0 | O20: ='Abgrenzung BZ'!AO21 -> 15000 | R20: 1800 | U20: ='Abgrenzung BZ'!AV21 -> 0 | X20: 0 | AB20: Erdgas | AQ20: kg CO2/kWh | AU20: 0.201 | BH20: Verbrauchswert | CB20: Gas+Solarthermie | CH20: kg CO2/kWh | CL20: 0.124
B21: Energieeinsparung | J21: kWh | K21: =L10+L11+L12+L13+L14+L15+L16+L17+L18+L19+L20 -> 12400 | P21: Liter | Q21: =R10+R11+R12+R13+R14+R15+R16+R17+R18+R19+R20 -> 2000 | V21: kWh th. | W21: =X10+X11+X12+X13+X14+X15+X16+X17+X18+X19+X20 -> 14000 | AB21: Flüssiggas | AQ21: kg CO2/kWh | AU21: 0.239 | BB21: Verbraucher | BH21: IST | BK21: SOLL | BN21: Einsparung | BR21: CO2-Faktor | BV21: Einsparung | CB21: Scheitholz | CH21: kg CO2/kWh | CL21: 0.026
AB22: Steinkohle | AQ22: kg CO2/kWh | AU22: 0.335 | BH22: kWh | BK22: kWh | BN22: kWh/a | BR22: kg CO2/kWh | BV22: t CO2/a | CB22: Hackschnitzel | CH22: kg CO2/kWh | CL22: 0.027
T23: Wärme: Bitte Energieträger auswählen | U23: Scheitholz | AB23: Braunkohle | AQ23: kg CO2/kWh | AU23: 0.383 | BB23: HDR | BH23: 1700 | BK23: 800 | BN23: =BH23-BK23 -> 900 | BR23: 0.732 | BV23: =BN23*BR23/1000 -> 0.6588 | CB23: Pellets | CH23: kg CO2/kWh | CL23: 0.036
AB24: Rohbenzin | AQ24: kg CO2/kWh | AU24: 0.264 | BB24: Schrotmühle | BH24: 2400 | BK24: 2000 | BN24: =BH24-BK24 -> 400 | BR24: 0.732 | BV24: =BN24*BR24/1000 -> 0.2928 | CB24: Biogas | CH24: kg CO2/kWh | CL24: 0.152
I25: kg CO2 | L25: 0.732 | O25: kg CO2 | R25: 0.266 | U25: kg CO2 | X25: =IF(U23="Strom",CL12,IF(U23="Strom PV",CL13,IF(U23="Wärmepumpe",CL14,IF(U23="Wärmepumpe PV",CL15,IF(U23="Nah-/Fernwärme",CL16,IF(U23="Heizöl",CL17,IF(U23="Erdgas",CL18,IF(U23="Flüssiggas",CL19,IF(U23="Gas+Solarthermie",CL20,IF(U23="Scheitholz",CL21,IF(U23="Hackschnitzel",CL22,IF(U23="Pellets",CL23,IF(U23="Biogas",CL24,IF(U23="Pflanzenöl",CL25,0.28)))))))))))))) -> 0.026 | AB25: Diesel | AQ25: kg CO2/kWh | AU25: 0.266 | BB25: Lechtstoff - LED | BH25: 4600 | BK25: 1200 | BN25: =BH25-BK25 -> 3400 | BR25: 0.732 | BV25: 2.4888 | CB25: Pflanzenöl | CH25: kg CO2/kWh | CL25: 0.114
B26: CO2-Emissionen | I26: =I8*L25 -> 60829.2 | L26: 1 | O26: =O8*R25 -> 6384 | R26: 1 | U26: =U8*X25 -> 4784 | X26: 1 | AB26: Biomasse Holz | AQ26: kg CO2/kWh | AU26: 0.027 | BB26: Vakuump. Frequ. | BH26: 9600 | BK26: 5760 | BN26: =BH26-BK26 -> 3840 | BR26: 0.732 | BV26: 2.81088
B27: CO2-Einsparpotenzial | I27: =K21*L25 -> 9076.8 | L27: =I27/I26 -> 0.1492178099 | O27: =Q21*R25 -> 532 | R27: =O27/O26 -> 0.08333333333 | U27: =W21*X25 -> 364 | X27: =U27/U26 -> 0.07608695652 | AB27: Pellets | AQ27: kg CO2/kWh | AU27: 0.036 | BN27: 0 | BV27: 0
A28: *) | B28: Solarstromeigennutzung | I28: =C30*L25 -> 28069.59918 | L28: =I28/I26 -> 0.4614494219 | AB28: Biomethan | AQ28: kg CO2/kWh | AU28: 0.03218 | BN28: 0 | BV28: 0
AB29: Biogas | AQ29: kg CO2/kWh | AU29: 0.152 | BN29: =SUM(BN23:BO28) -> 8540 | BP29: kWh/a | BV29: =SUM(BV23:BW28) -> 6.25128 | BX29: t CO2/a
B30: *) | C30: =PV!K30 -> 38346.44696 | F30: kWh | T30: CO2-Eimissionen, gesamt | U30: =(I26+O26+U26)/1000 -> 71.9972 | X30: t CO2 | AB30: Bioethanol | AQ30: kg CO2/kWh | AU30: 0.02678
D31: =D19 -> 0 | E31: 0 | F31: 0 | G31: 0 | T31: CO2-Einsparpotenzial, gesamt | U31: =(I27+I28+O27+U27)/1000 -> 38.04239918 | X31: t CO2 | AB31: Pflanzenöl | AQ31: kg CO2/kWh | AU31: 0.11376 | BA31: Elektrifizierung - Energieträgerwechsel
D32: =D18 -> 0 | E32: 0 | F32: 0 | G32: 0 | AB32: Biodiesel | AQ32: kg CO2/kWh | AU32: 0.06469 | BB32: Verbraucher | BH32: IST | BK32: U-Faktor | BR32: CO2-Faktor | BV32: Einsparung | CI32: Strom [kWh] | CO32: Kraftstoff [l] | CV32: Wärme [kWh]
D33: =D17 -> 0 | E33: 0 | F33: 0 | G33: 0 | BH33: Liter | BN33: kWh/a | BR33: kg CO2/kWh | BV33: t CO2/a
D34: =D16 -> 0 | E34: 0 | F34: 0 | G34: 0 | AA34: Quelle: | AC34: Informationsblatt CO2-Faktoren; Bundesamt für Wirtschaft und Ausfuhrkontrolle | BA34: 1 | BB34: Hof-Truck Diesel | BH34: 600 | BK34: 9.8 | BN34: =BH34*BK34 -> 5880 | BR34: 0.266 | BV34: =BN34*BR34/1000 -> 1.56408 | CB34: =C20 -> Grünland - Ackerbau | CI34: =L20 -> 0 | CO34: =R20 -> 1800 | CV34: =X20 -> 0
D35: =D15 -> 0 | E35: 0 | F35: 0 | G35: 0 | AC35: https://www.bafa.de/SharedDocs/Downloads/DE/Energie/eew_infoblatt_co2_faktoren_2021.html | BB35: E-Truck | BK35: SOLL | BN35: 3600 | BR35: 0.366 | BV35: =BN35*BR35/1000 -> 1.3176 | CB35: =C19 -> Geflügelmast | CI35: =L19 -> 0 | CO35: =R19 -> 0 | CV35: =X19 -> 0
D36: =D14 -> 0 | E36: 0 | F36: 0 | G36: 0 | CB36: =C18 -> Legehennen | CI36: =L18 -> 0 | CO36: =R18 -> 0 | CV36: =X18 -> 0
D37: =D13 -> 0 | E37: 0 | F37: 0 | G37: 0 | AA37: Handlungsempfehlungen: | BA37: 2 | BB37: Futtermischwagen | BH37: 6200 | BK37: 9.8 | BN37: =BH37*BK37 -> 60760 | BR37: 0.266 | BV37: =BN37*BR37/1000 -> 16.16216 | CB37: =C17 -> Schweinemast Außenklima | CI37: =L17 -> 0 | CO37: =R17 -> 0 | CV37: =X17 -> 0
D38: =D12 -> 0 | E38: 0 | F38: 0 | G38: 0 | AC38: - | AD38: Energieeinsparung mit effizienten Anlagen die Klimabilanz | BB38: Auto. Fütterung | BK38: SOLL | BN38: 25600 | BR38: 0.366 | BV38: =BN38*BR38/1000 -> 9.3696 | CB38: =C16 -> Schweinemast | CI38: =L16 -> 0 | CO38: =R16 -> 0 | CV38: =X16 -> 0
D39: =D10 -> 0 | E39: 0 | F39: 0 | G39: 0 | AC39: - | AD39: Nutzung regenerativer Energieträger (Ökostrom, Biogas, …) | CB39: =C15 -> Ferkelaufzucht | CI39: =L15 -> 1000 | CO39: =R15 -> 0 | CV39: =X15 -> 6000
AC40: - | AD40: Umstig auf eletrische Antriebe bei stationären Anlagen und mobilen Maschinen | BB40: Einsparung | BN40: =(BN34-BN35)+(BN37-BN38) -> 37440 | BP40: kWh/a | BV40: =(BV34-BV35)+(BV37-BV38) -> 7.03904 | BX40: t CO2/a | CB40: =C14 -> Ferkelerzeugung | CI40: =L14 -> 2000 | CO40: =R14 -> 0 | CV40: =X14 -> 6000
AB41: Heizung | CB41: =C13 -> Rindermast | CI41: =L13 -> 100 | CO41: =R13 -> 0 | CV41: =X13 -> 0
AC42: - | AD42: optimale Einstellung und Wartung der Heizanlagen, Dämmung von Heizungsrohren, .. | BA42: PV-Eigennutzung | CB42: =C12 -> Milchvieh | CI42: =L12 -> 9000 | CO42: =R12 -> 0 | CV42: =X12 -> 0
AC43: - | AD43: Energieträgerwechsel kann die CO2-Emissionen senken | BN43: kWh/a | BR43: kg CO2/kWh | BV43: t CO2/a | CB43: =C11 -> Sonstige Betriebszweige | CI43: =L11 -> 0 | CO43: =R11 -> 0 | CV43: =X11 -> 0
AC44: - | AD44: angemessene Stall-/Abteiltemperaturen | BB44: Solarstromeigennutzung PV1 Wohnhaus | BN44: 2000 | BR44: 0.732 | BV44: =BN44*BR44/1000 -> 1.464 | BX44: t CO2/a | CB44: =C10 -> Privat / Haushalt | CI44: =L10 -> 300 | CO44: =R10 -> 200 | CV44: =X10 -> 2000
AC45: - | AD45: baulicher Wärmeschutz / energetische Sanierung (Decken, Wände, Fenster, Türen, ..) | BB45: Solarstromeigennutzung PV2 Stall | BN45: 36567 | BR45: 0.732 | BV45: =BN45*BR45/1000 -> 26.767044 | BX45: t CO2/a
AB46: Lüftungsanlagen
AC47: - | AD47: optimale Einstellung und Wartung der Lüftungsanlagen | BA47: Einsparung von CO2-Emissionen, gesamt | BV47: =BV29+BV44+BV40+BV45 -> 41.521364 | BX47: t CO2/a
AC48: - | AD48: Nutzung von Wärmerückgewinnungstechniken
Y49: CO2.1 | AB49: Technische Anlagen auf aktuellem Stand: Effiziente Motore, Pumpen, … | AY49: CO2.2 | BY49: CO2.3

Sheet Effizienzförderung
A1: Energie-Check | F1: =Betriebsübersicht!F1 -> V 1.0 | J1: Förderprogramme
A3: Bundesprogramm zur Steigerung der Energieeffizienz und CO2-Einsparung in Landwirtschaft und
A4: Gartenbau | F4: https://www.ble.de/DE/Projektfoerderung/Foerderungen-Auftraege/Bundesprogramm-Energieeffizienz/bundesprogramm-energieeffizienz_node.html
A5: Förderung von
B6: Beratung
C7: Gefördert werden qualifizierte Beratungen zur Ermittlung des betriebsindividuellen
D8: CO2-Einsparpotenzials
C9: Fördermodalitäten:
D10: 80% der förderfähigen Netto-Beratungskosten, max. Zuwendung 7.000 € bei
D11: betrieblichen Energiekosten von ≥ 10.000 €/a (≤ 10.000 € max. Zuschuss 4.500 €)
B12: Einzelmaßnahmen
C13: Förderfähig sind einzelne oder mehrere Investitionen in definierte technische,
D14: Komponenten als Austausch, Nach- oder Umrüstung
C15: Fördermodalitäten:
D16: bis zu 30% der förderfähigen Netto-Investitionskosten, 3.000 € Mindestinvestitions-
D17: ausgaben
B18: Modernisierung und Neubau
C19: Gefördert werden Maßnahmen an bestehenden Anlagen zur Kühlung, Belüftung und
D20: Wärmeversorgung; Optimierung der Mess-, Steuer- und Regelungstechnik,
D21: Umstellungen auf energieeffiziente Technologien und energetische Optimierung
D22: von technischen Prozessen
C23: Fördermodalitäten:
D24: bis zu 30% der förderfähigen Investitionskosten, bis zu 40% bei Nutzung von
D25: erneuerbaren Energien, maximal 700 € pro jährl. eingesparter Tonne CO2,
D26: 20.000 € Mindestinvestitionsausgaben
B27: Regenerative Eigenenergieerzeugung
C28: Gefördert werden Solarkollektoranlagen, Photovoltaikanlagen, Anlagen zum Einsatz von
D29: Biomasse und kleine BGA, Wärmepumpen, Geothermie, Maßnahmen zur Ab- und
D30: Fernwärmenutzung, Anlagen zur Speicherung und Wiederabgabe dieser Energien
C31: Fördermodalitäten:
D32: 800 € pro jährl. eingesparter Tonne CO2, bis 40% der förderfähigen Investitionskosten
B33: Mobile Maschinen und Geräte
C34: Förderfähig sind die direkte Elektrifizierung von mobilen Motoren als Ersatz für
D35: Verbrennungsmotoren, die Anschaffung oder die Umrüstung von Landmaschinen zur
D36: Nutzung von Biomethan und kaltgepresstem Rapsöl aus Treibstoff
C37: Fördermodalitäten:
D38: 700 € pro jährl. Eingesparter Tonne CO2, bis40% der förderfähigen Investitionskosten
D39: (Differenz von Anschaffungspreis zu Referenzpreis einer konventionellen Maschine),
D40: 16.000 € Mindestinvestitionsausgaben (bei Um- & Nachrüstung 5.000 €)
A42: CO2 - Einsparkonzepte von gelisteten Sachverständigen sind als Grundlage für folgende
A43: investive Maßnahmen vorzulegen:
B44: - | C44: Modernisierungen oder dem Neubau von energieeffizienten Anlagen
B45: - | C45: Regenerative Eigenenergieerzeugung und Abwärmenutzung zur betrieblichen Nutzung
B46: - | C46: Mobile Geräte und Maschinen, die regenerative Energien nutzen
A48: Antrags- und Bewilligungsbehörde ist die Bundesanstalt für Landwirtschaft und Ernährung (BLE) | U48: http://www.ble.de
A49: Antragsstellung erfolgt über Förderportal des Bundes easy-Online | O49: https://foerderportal.bund.de | Z49: EF

Sheet Quellen+Literatur
A1: Energie-Check | F1: =Betriebsübersicht!F1 -> V 1.0 | J1: Quellen und Literatur
A3: KTBL Betriebsplanung Landwirtschaft, Trocknungs- und Aufbereitungskosten
A5: KTBL-Heft 104, Energiebedarf in der Milchviehhaltung
A7: KTBL-Heft 105, Energiebedarf in der Schweine- und Hühnerhaltung
A9: KTBL-Heft 110, Strom speichern, Eigenverbrauch steigern
A11: KTBL-Tagungsband, Mit Energie in die Zukunft - Strom, Wärme und kraftstoffe in der
B12: Landwirtschaft
A14: KTBL-Schrift, Energie vom Hof - Eigenversorgung mit Strom, Wärme und Kraftstoffen
A16: KTBL Enrgiebedarfsrechner Tierhaltung
B17: https://www.ktbl.de/webanwendungen/energiebedarfsrechner
A19: KTBL Dieselbedarf
B20: https://daten.ktbl.de/dieselbedarf/main.html
A22: DLG Merkblatt 339, Dieseleinsparung bei der Pflanzenproduktion
A24: Broschüre Energieeffizienzverbesserung in der Landwirtschaft der LWK Niedersachsen und NRW
A26: Energieeffizienz in der Landwirtschaft - Leitfaden für die Praxis, LfULG Sachsen
A28: LfL-Publikation, Energieeinsparung in der Milchviehhaltung - Beleuchtung und
B29: Beleuchtungssysteme
B30: https://www.lfl.bayern.de/publikationen/informationen/040274/index.php
A32: LfL-Publikation, Energieeinsparung in der Milchviehhaltung - Milchgewinnung
B33: Vakuumversorgung, Kühlung, Reinigung
B34: https://www.lfl.bayern.de/publikationen/informationen/040273/index.php
A36: LfL-Publikation, Energieeinsparung in der Schweinehaltung - Lüftung
B37: https://www.lfl.bayern.de/publikationen/informationen/040275/index.php
A39: LfL-Publikation, Energieeinsparung in der Schweinehaltung - Wärmetauscher
B40: https://www.lfl.bayern.de/publikationen/informationen/040276/index.php
A42: LfL-Publikation, Energieeinsparung und Eigenstromnutzung in der Milchviehhaltung, Nutzung
B43: von Solarstrom für die Erzeugung von Eiswasser zum Abkühlen der Milch
B44: https://www.lfl.bayern.de/publikationen/informationen/132711/index.php
A46: LfL-Publikation, Enerieeffizienz und Solarstromnutzung in der Landwirtschaft, Beispielhafte
B47: Beratungsempfehlungen - Energieeinsparlösungen auf landwirtschftlichen Praxisbetrieben
B48: https://www.lfl.bayern.de/publikationen/informationen/142325/index.php
Z49: Q+L

Sheet Fragebogen
A1: Energie-Check | F1: =Betriebsübersicht!F1 -> V 1.0 | J1: Fragebogen für Landwirte | AA1: Energie-Check | AF1: =Betriebsübersicht!F1 -> V 1.0 | AJ1: Fragebogen für Berater an den ÄELF
A3: Zu Welchen Betriesschwerpunkten bzw. zu welchem Themenbereich wünschen Sie Beratung? | AA3: Wie viele Anfragen zur Energieeinsparung und zur Eigennutzung selbst erzeugter
B4: X | D4: Nuztung regenerativer Energien | R4: Energieeinsparung | AA4: regenerativer Energien sind seit Jahresbeginn am AELF eingegangen?
B5: Betriebszweige | AF5: Anfragen zur Energieeinsparung
B6: X | D6: Pflanzliche Erzeugung | AF6: Anfragen zur Nuztung regenerativer Energien
D7: X | F7: Dieseleinsparung
F8: Lagerung, Trocknung, ... | AA8: Welche Schwerpunkte hatten die Anfragen?
F9: Sonstige | AD9: Pflanzliche Erzeugung
B10: X | D10: Tierische Erzeugung | P10: Produktionstechnik | AF10: Dieseleinsparung
D11: X | F11: Milchviehhaltung | P11: X | R11: Melk-, Kühltechnik | AF11: Lagerung, Trocknung, ...
F12: Rindermast | P12: X | R12: Fütterungstechnik | AF12: Sonstige
F13: Ferkelerzeugung. -aufzucht | R13: Entmistung | AD13: Tierische Erzeugung | AP13: Produktionstechnik
F14: Schweinemast | P14: X | R14: Beleuchtung | AF14: Milchviehhaltung | AR14: Melk-, Kühltechnik
F15: Legehennenhaltung | R15: Lüftung | AF15: Rindermast | AR15: Fütterungstechnik
F16: Geflügelmast | R16: Wärmeerzeugung/-verteilung | AF16: Ferkelerzeugung. -aufzucht | AR16: Entmistung
R17: Sanierung/Dämmung | AF17: Schweinemast | AR17: Beleuchtung
R18: Umrüstung auf LED | AF18: Legehennenhaltung | AR18: Lüftung
AF19: Geflügelmast | AR19: Wärmeerzeugung/-verteilung
B20: X | D20: Erneuerbare Energien (Eigenenergieerzeugung, Energiespeichertechnologien) | AR20: Sanierung/Dämmung
D21: X | F21: Energieeigenerzeugung
F22: Energiespeichertechnologien
F23: Anmerkungen | K23: Solarstromnutzung | AD23: Erneuerbare Energien (Eigenenergieerzeugung, Energiespeichertechnologien)
B24: X | D24: Mobilität | AF24: Energieeigenerzeugung
D25: X | F25: Elektrifizierung mobiler Maschinen (E-Hoftruck + Akku, …) | AF25: Energiespeichertechnologien
F26: Maschinen und Geräte auf Basis regenerativer Antriebstechnologien | AF26: Anmerkungen
F27: Anmerkungen | AD27: Mobilität
B28: X | D28: Förderprogramme/-möglichkeiten | AF28: Elektrifizierung mobiler Maschinen (E-Hoftruck + Akku, …)
AF29: Maschinen und Geräte auf Basis regenerativer Antriebstechnologien
A30: Haben Sie Kontakt zu einem AELF oder einer Beratungsorganisation aufgenommen? | AF30: Anmerkungen
D31: Ja | G31: Welches AELF bzw. welche Beratungsorganisation | AD31: Förderprogramme/-möglichkeiten
AA33: Konnten die Anfragen durch Mitarbeiter des AELF bearbeitet werden?
A34: Konnten Ihre Fragen beantwortet werden? | AD34: Ja | AG34: Wie hoch war der durchschnittliche Zeitaufwand?
G35: Welche Schwerpunkte?
D36: Ja | AD36: Nein | AG36: Weitervermittlung an Baratungsorganisation?
D37: Nein
A39: Wie sehen Sie das Potenzial eines webbasierten Energiechecks, mit dessen Hilfe Sie sich | AA39: Wie sehen Sie das Potenzial eines webbasierten Energiechecks, mit dessen Hilfe sich der/die
A40: einen ersten Überblick über den eigenen Energieverbrauch, Energieeinsparmöglichkeiten, | AA40: Betriebsleiter/in eigenständig einen ersten Überblick über den eigenen Energieverbrauch,
A41: Fördermöglichkeiten, Nutzung und Speicherung selbst erzeugter regenerativer Energien | AA41: Energieeinsparmöglichkeiten, Fördermöglichkeiten, Nutzung und Speicherung selbst erzeugter
A42: verschaffen können? | AA42: regenerativer Energien verschaffen kann?
D43: positiv | G43: 1 | I43: 2 | K43: 3 | M43: 4 | O43: 5 | Q43: 6 | T43: negativ | AD43: positiv | AG43: 1 | AI43: 2 | AK43: 3 | AM43: 4 | AO43: 5 | AQ43: 6 | AT43: negativ
A45: Eigene Anmerkungen: | AA45: Eigene Anmerkungen:
B48: Im Registerblatt "Druck" kann eine PDF-Datei des Fragebogens erzeugt und an die LfL übermittelt werdenwerden. | AB48: Im Registerblatt "Druck" kann eine PDF-Datei des Fragebogens erzeugt und an die LfL übermittelt werdenwerden.
H49: weiter Zum Registerblatt "Druck" | Y49: F-LW | AH49: weiter Zum Registerblatt "Druck" | AZ49: F-B

Sheet Druck
A1: Energie-Check | F1: =Betriebsübersicht!F1 -> V 1.0 | J1: Druckseite
A3: Bitte Seiten die gedruckt werden sollen hier auswählen:
U4: Seitenauswahl
U5: 1 | V5: 2 | W5: 3 | X5: 4 | Y5: 5
A7: Dateneingabe | AA7: Betriebsübersicht | AB7: FALSE
AB8: A1:Z49
AA9: Energieeinsatz | AB9: FALSE | AC9: FALSE | AD9: FALSE
AB10: A1:Z49 | AC10: AA1:AZ49 | AD10: BA1:BZ49
AA11: Abgrenzung BZ | AB11: FALSE
AB12: A1:Z49
A13: Ergebnisseiten
B14: Rinderhaltung | AA14: MV | AB14: FALSE | AC14: FALSE | AD14: FALSE | AE14: FALSE | AF14: FALSE
AB15: A1:Z49 | AC15: AA1:AZ49 | AD15: BA1:BZ49 | AE15: CA1:CZ49 | AF15: DA1:DZ49
AA16: RM | AB16: FALSE | AC16: FALSE | AD16: FALSE | AE16: FALSE | AF16: FALSE
AB17: A1:Z49 | AC17: AA1:AZ49 | AD17: BA1:BZ49 | AE17: CA1:CZ49 | AF17: DA1:DZ49
B18: Schweinhaltung | AA18: FE | AB18: TRUE | AC18: TRUE | AD18: FALSE | AE18: FALSE | AF18: FALSE
AB19: A1:Z49 | AC19: AA1:AZ49 | AD19: BA1:BZ49 | AE19: CA1:CZ49 | AF19: DA1:DZ49
AA20: FA | AB20: TRUE | AC20: TRUE | AD20: FALSE | AE20: FALSE | AF20: FALSE
AB21: A1:Z49 | AC21: AA1:AZ49 | AD21: BA1:BZ49 | AE21: CA1:CZ49 | AF21: DA1:DZ49
AA22: MS | AB22: FALSE | AC22: FALSE | AD22: FALSE | AE22: FALSE | AF22: FALSE
AB23: A1:Z49 | AC23: AA1:AZ49 | AD23: BA1:BZ49 | AE23: CA1:CZ49 | AF23: DA1:DZ49
AA24: MS A | AB24: FALSE | AC24: FALSE | AD24: FALSE | AE24: FALSE
AB25: A1:Z49 | AC25: AA1:AZ49 | AD25: BA1:BZ49 | AE25: CA1:CZ49
B26: Geflügelhaltung | AA26: LH | AB26: FALSE | AC26: FALSE | AD26: FALSE
AB27: A1:Z49 | AC27: AA1:AZ49 | AD27: BA1:BZ49
AA28: GM | AB28: FALSE | AC28: FALSE | AD28: FALSE | AE28: FALSE
AB29: A1:Z49 | AC29: AA1:AZ49 | AD29: BA1:BZ49 | AE29: CA1:CZ49
B30: Futter-/Marktfruchtbau | AA30: G-A | AB30: FALSE | AC30: FALSE
AB31: A1:Z49 | AC31: AA1:AZ49
B32: Energieeigennutzung | AA32: PV | AB32: FALSE | AC32: FALSE
AB33: A1:Z49 | AC33: AA1:AZ49
B34: Klimawirkung | AA34: CO2 | AB34: FALSE | AC34: FALSE | AD34: FALSE
AB35: A1:Z49 | AC35: AA1:AZ49 | AD35: BA1:BZ49
A37: Infoseiten | AA37: Effizienzförderung | AB37: FALSE
AB38: A1:Z49
AA39: Quellen+Literatur | AB39: FALSE
AB40: A1:Z49
D41: Durch betätigen des Buttons "Druck Fragebogen" oder "Druck" werden PDF-Dateien erzeugt. | T41: Vor betätigen des Druckbuttons muss mindestens eine Seite ausgewählt werden.
D43: Diese werden im selben Verzeichnis, in dem auch die Excel Datei "E-Check" liegt, gespeichert. | AB43: josef.neiber@lfl.bayern.de
L49: Bitte PDF-Datei als Anhang einfügen. | Z49: D
